{"text_format":"1","workbook":"xlsx","n_sheets":5,"sheets":["Instruccions - Instrucciones","Dades i com... - Datos y com...","Pressupost - Pressupuesto","Detall - Detalle","Llista desplegable"],"not_rendered":{"charts":0,"images":2,"macros":1,"external_links":0,"defined_names":11,"comments":0,"pivot_tables":0},"unopened":[],"bounds":{"document_bytes":16777216,"sheet_cells":100000,"rows_first":2000,"rows_last":500,"rows_between":2000,"halvings":0,"cell_chars":16384,"cell_head_chars":4096},"cells_cut":0,"cells_raw":0,"read":"whole","date_system":"1900"}

{"sheet":"Instruccions - Instrucciones","index":0,"n_rows":30,"n_cols":7,"rows_kept":30,"cut":false,"hidden":false,"merged":[]}
[]
[null,"Instruccions d'ús del formulari",null,null,null,null,"Instrucciones de uso del formulario"]
[]
[null,"Aquest formulari de pressupost consta de 3 pestanyes:",null,null,null,null,"Este formulario de presupuesto consta de 3 pestañas:"]
[null,"1. Dades i comprovacions: s'introduiran les dades generals del projecte i també inclourà les verificacions per tal de comprovar que s'ha emplenat correctament.",null,null,null,null,"1. Datos y comprobaciones: se introducirán los datos generales del proyecto y también incluirá las verificaciones para comprobar que se ha rellenado correctamente."]
[null,"2. Detall despeses: S'inclouran les dades relatives a les despeses del projecte, així com la seva imputació als diferents projectes.",null,null,null,null,"2. Detalle gastos: Se incluirán los datos relativos a los gastos del proyecto, así como su imputación a los diferentes proyectos."]
[null,"3. Pressupost: És la visualització en format compte de resultats de les despeses que s'han introduït a la pestanya detall de despeses. Es pot visualitzar les despeses de la totalitat del projecte o per cada activitat.",null,null,null,null,"3. Presupuesto: Es la visualización en formato cuenta de resultados de los gastos que se han introducido en la pestaña detalle de gastos. Se pueden visualizar los gastos de la totalidad del proyecto o por cada actividad."]
[]
[null,"Com omplir el formulari de pressupost?",null,null,null,null,"Como rellenar el formulario de presupuesto?"]
[null,"Pas 1: Introduir la informació del projecte a la pestanya \"Dades i  comprovacions\"",null,null,null,null,"Paso 1: Introducir la información del proyecto en la pestaña \"Datos y comprobaciones\""]
[null,"En primer lloc, introduirem tota la informació relativa al projecte a la pestanya \"Dades i comprovacions\". Els camps a omplir estan ombrejats en gris.",null,null,null,null,"En primer lugar, introduciremos toda la información relativa al proyecto en la pestaña Datos y comprobaciones. Los campos a llenar están sombreados en gris."]
[null,"Aquest pas és molt important i s'ha d'emplenar tota la informació a l'inici, ja que posteriorment el que haurem introduït aquí, alimentarà la informació a introduir en la pestanya \"detall despesa\".",null,null,null,null,"Este paso es muy importante y debe rellenarse toda la información al inicio, ya que posteriormente lo que habremos introducido aquí, alimentará la información a introducir en la pestaña \"detalle gasto\"."]
[]
[null,"Pas 2: Introducció de les despeses a la pestanya \"Detall despeses\"",null,null,null,null,"Paso 2: Introducción de los gastos en la pestaña \"Detalle gastos\""]
[null,"A l'apartat \"detall de despeses\" anirem introduint les diferents despeses del projecte en funció de la partida pressupostària detallada a les bases a la qual fan referència.",null,null,null,null,"En el apartado \"detalle de gastos\" iremos introduciendo los diferentes gastos del proyecto en función de la partida presupuestaria detallada en las bases a las que se refieren."]
[null,"Els camps a omplir són els que estan sombrejats en color gris.",null,null,null,null,"Los campos a rellenar son los que están sombreados en color gris."]
[null,"El camp valorització només l'omplirem amb \"Sí\" en cas que es tracti d'una despesa valoritzada, en cas contrari, el deixarem en blanc.",null,null,null,null,"El campo valorización sólo lo llenaremos con \"Sí\" en caso de que se trate de un gasto valorizado, de lo contrario, lo dejaremos en blanco."]
[null,"Detallarem el número d'activitats al que fa referència la despesa al camp \"núm d'activitats a imputar la despesa\", en cas que només faci referencia a una activitat o sigui una despesa transversal (p.ex. l'avaluació) en aquest apartat també indicarem \"1\".",null,null,null,null,"Detallaremos el número de actividades al que hace referencia el gasto en el campo \"número de actividades a imputar el gasto\", en caso de que sólo haga referencia a una actividad o se trate de un gasto transversal (p. ej. la evaluación) en este apartado también indicaremos \"1\"."]
[null,"Si hem indicat que la despesa fa referència a més d'una activitat, se'ns obriràn automàticament tantes files com activitats a imputar la despesa. ",null,null,null,null,"\nSi hemos indicado que el gasto hace referencia a más de una actividad, se nos abrirán automáticamente tantas filas como actividades a imputar el gasto."]
[null,"No s'haurà d'omplir res a les cel·les que canviïn a aquest format:",null,null,null,null,"No se tendrá que rellenar nada en las celdas que cambien a este formato:"]
[null,"Detallarem el % de despesa que s'ha d'imputar a cada activitat en cas que l'activitat n'afecti a varies, sinó deixarem el camp en blanc. La columna \"check\" ens indica si hem fet correctament la imputació.",null,null,null,null,"\nDetallaremos el % de gasto que debe imputarse a cada actividad en caso de que la actividad afecte a varias, sino dejaremos el campo en blanco. La columna \"check\" nos indica si hemos realizado correctamente la imputación."]
[null,"A les columnes que estan sota l'apartat \"filtres\" podrem filtrar i exportar la informació per treballar-la si ens fes falta.",null,null,null,null,"En las columnas que están debajo del apartado \"filtros\" podremos filtrar y exportar la información para trabajarla si nos hiciera falta."]
[]
[null,"Pas 3: Comprovació d'errors",null,null,null,null,"Paso 3: Comprobación de errores"]
[null,"Comprovar a la pestanya \"Dades i comprovacions\" que no hi ha cap error marcat el vermell.",null,null,null,null,"Compruebe en la pestaña \"Datos y comprobaciones\" que no hay ningún error marcado el rojo."]
[]
[null,"A tenir en compte en l'apartat \"Detall de despeses\":",null,null,null,null,"A tener en cuenta en el apartado \"Detalle de gastos\":"]
[null,"Quan afegim files, sempre s'afegeixen al final",null,null,null,null,"Cuando añadimos filas, siempre se añaden al final"]
[null,"En cas que haguem oblidat o vulguem imputar una despesa a una activitat addicional, haurem d'eliminar totes les linies que fan referencia a aquesta despesa i tornar-la a crear de nou a l'última fila buida, ja que no es permet inserir files.",null,null,null,null,"En caso de que hayamos olvidado o queramos imputar un gasto a una actividad adicional, deberemos eliminar todas las líneas que hacen referencia a este gasto y volver a crearlo de nuevo en la última fila vacía, ya que no se permite insertar filas."]
[null,"No s'han d'eliminar mai totes les files, ja que és bloquejarà el programa.",null,null,null,null,"Nunca se deben eliminar todas las filas, ya que se bloqueará el programa."]

{"sheet":"Dades i com... - Datos y com...","index":1,"n_rows":65,"n_cols":10,"rows_kept":65,"cut":false,"hidden":false,"merged":[[6,3,6,9],[50,6,50,9],[33,3,33,9],[13,3,13,4],[17,3,17,4],[27,3,27,4],[28,3,28,4],[35,4,35,5],[36,4,36,5],[47,6,48,6],[40,5,40,11],[9,3,9,8],[29,3,29,4],[64,5,65,11],[12,6,12,7],[13,6,13,7],[14,6,14,7],[15,6,15,7],[54,6,54,7],[29,6,29,9],[51,6,51,7],[52,6,52,7],[53,6,53,7],[24,3,24,9],[27,6,27,9],[28,6,28,9],[40,1,40,4],[55,6,55,7],[56,6,56,7]]}
[]
[null,"Convocatòria 2023 / Convocatoria 2023"]
[null,"Formulari pressupost / Formulario pressupuesto"]
[]
[]
[]
[null,null,null,"DADES GENERALS / DATOS GENERALES"]
[]
[null,null,null,"Nom del projecte / Nombre del proyecto:"]
[]
[]
[null,null,null,null,null,null,"Altres finançadors / Otros finanzadores:",null,"Import / Importe:"]
[null,null,null,"Línia estratègica / Linea estratégica:"]
[]
[null,null,null,null,null,null,null,null,null,"Despeses:"]
[null,null,null,null,null,null,null,null,{"$f":"SUM(I13:I15)","v":0},{"$f":"I37","v":0}]
[null,null,null,"Entitat líder / Entidad líder:"]
[]
[null,null,null,null,null,null,null,null,"% A APLICAR","IMPORT / IMPORTE"]
[null,null,null,null,null,null,"DESPESES INDIRECTES / GASTOS INDIRECTOS",null,null,{"$f":"+H37*I20","v":0}]
[null,null,null,null,null,null,"Acreditar el sistema de càlcul mitjançant declaració responsable / Acreditar sistema de cálculo mediante declaración responsable"]
[]
[]
[]
[null,null,null,"ENTITATS PARTICIPANTS AL PROJECTE / ENTIDADES PARTICIPANTES DEL PROYECTO"]
[]
[null,null,null,"Agrupada / Agrupada",null,null,"Soci local / Socio Local"]
[null,null,1,null,null,1]
[null,null,2,null,null,2]
[null,null,3,null,null,3]
[]
[]
[]
[null,null,null,"RESUM ECONÒMIC DEL PROJECTE / RESUMEN ECONÓMICO DEL PROYECTO"]
[]
[null,null,null,"TOTAL DESPESES / TOTAL GASTOS","INDIRECTES / INDIRECTOS",null,"DIRECTES / DIRECTOS","ACCD","OTROS","ENTIDADES"]
[null,null,null,{"$f":"+E37+G37","v":0},{"$f":"+J20","v":0},null,{"$f":"+SUM('Detall - Detalle'!J:J)","v":0},{"$f":"+SUM('Detall - Detalle'!L:L)","v":0},{"$f":"+SUM('Detall - Detalle'!N:N)","v":0},{"$f":"+SUM('Detall - Detalle'!P:P)","v":0}]
[]
[]
[]
[null,"ACTIVITATS DEL PROJECTE / ACTIVIDADES DEL PROYECTO",null,null,null,"COMPROVACIONS / COMPROBACIONES"]
[]
[null,1,null,"Totes les activitats"]
[null,2,"Actvitat 1",1,null,null,"Pressupost total / pressupuesto total:",null,{"$f":"D37","v":0}]
[null,{"$f":"+IF(D45<>\"\",B44+1,\"\")","v":""},"Actvitat 2",null,null,null,"Finançament ACCD / Financiación ACCD:",null,{"$f":"+H37+E37","v":0}]
[null,{"$f":"+IF(D46<>\"\",B45+1,\"\")","v":""},"Actvitat 3",null,null,null,"% Finançament ACCD / % Financiación ACCD:",null,{"$f":"IFERROR(I45/I44,0)","v":0},"Màxim 95% del total"]
[null,"","Actvitat 4"]
[null,"","Actvitat 5",null,null,null,"Import subvencionat\nsegons modalitat","Màxim","Import","Mínim"]
[null,"","Actvitat 6",null,null,null,null,{"$f":"+IF(D28<>\"\",SUMIF('Llista desplegable'!$K$2:$K$5,'Dades i com... - Datos y com...'!$D$14&\"agrupació\",'Llista desplegable'!$L$2:$L$5),SUMIF('Llista desplegable'!$K$2:$K$5,'Dades i com... - Datos y com...'!$D$14&\"individual\",'Llista desplegable'!$L$2:$L$5))","v":0},{"$f":"+H37+E37","v":0},{"$f":"+IF(D28<>\"\",SUMIF('Llista desplegable'!$K$2:$K$5,'Dades i com... - Datos y com...'!$D$14&\"agrupació\",'Llista desplegable'!$M$2:$M$5),SUMIF('Llista desplegable'!$K$2:$K$5,'Dades i com... - Datos y com...'!$D$14&\"individual\",'Llista desplegable'!$M$2:$M$5))","v":0}]
[null,"","Actvitat 7"]
[null,"","Actvitat 8",null,null,null,"Comprovacions de pressupost / Comprobaciones pressupuesto"]
[null,"","Actvitat 9",null,null,null,"a11 Identificació i formulació / Identificación y formulación",null,"Màx 10% ",{"$f":"+IFERROR(SUMIF('Detall - Detalle'!AA:AA,G52,'Detall - Detalle'!W:W)/$I$45,\"\")","v":""}]
[null,"","Actvitat 10",null,null,null,"a12 Avaluació / Evaluación",null,"Mín 4% - Màx 8%",{"$f":"+IFERROR(SUMIF('Detall - Detalle'!AA:AA,G53,'Detall - Detalle'!W:W)/$I$45,\"\")","v":""}]
[null,"","Actvitat 11",null,null,null,"a17 Beques / Becas",null,"Màx 10% ",{"$f":"+IFERROR(SUMIF('Detall - Detalle'!AA:AA,G54,'Detall - Detalle'!W:W)/$I$45,\"\")","v":""}]
[null,"","Actvitat 12",null,null,null,"a18 Imprevistos / Imprevistos",null,"Màx. 5% ",{"$f":"+IFERROR(SUMIF('Detall - Detalle'!AA:AA,G55,'Detall - Detalle'!W:W)/$I$45,\"\")","v":""}]
[null,"","Actvitat 13",null,null,null,"b1 Béns inventariables / Bienes inventariables",null,"Màx. 10%* ",{"$f":"+IFERROR(SUMIF('Detall - Detalle'!AA:AA,G56,'Detall - Detalle'!W:W)/$I$45,\"\")","v":""}]
[null,"","Actvitat 14",null,null,null,"b2 Amortitzacions / Amortizaciones",null,"Màx. 5% ",{"$f":"+IFERROR(SUMIF('Detall - Detalle'!AA:AA,G57,'Detall - Detalle'!W:W)/$I$45,\"\")","v":""}]
[null,"","Actvitat 15"]
[null,"","Actvitat 16",null,null,null,"Subcontractació / Subcontratación",null,"Màx 20%",{"$f":"+IFERROR(SUMIF('Detall - Detalle'!F:F,\"sí\",'Detall - Detalle'!J:J)/I44,\"\")","v":""}]
[null,"","Actvitat 17"]
[null,"","Actvitat 18"]
[null,"","Actvitat 19",null,null,"Altres comprovacions a tenir en compte:"]
[null,"","Actvitat 20",null,null,"Microcrèdits: El cost de les accions destinades als crèdits no podrà ser superior al 10% de la subvenció de l'ACCD."]
[null,null,null,null,null,"Salaris: El salari brut mensual màxim serà de 3.500 euros prorratejat en 14 pagues."]
[null,null,null,null,null,"* Béns inventariables: En el cas de projectes de desenvolupament, s'admetrà un 30% de l'import sol·licitat a l'ACCD per béns corresponents a infrastructures de salut i sanejament."]

{"sheet":"Pressupost - Pressupuesto","index":2,"n_rows":32,"n_cols":34,"rows_kept":32,"cut":false,"hidden":false,"merged":[[2,2,2,8],[2,9,2,13]]}
[{"$f":"+VLOOKUP(A4,'Dades i com... - Datos y com...'!$B$43:$D$61,3,FALSE)","v":"Totes les activitats"}]
[]
[null,null,"DISTRIBUCIÓ PRESSUPOST PER ENTITAT FINANÇADORA",null,null,null,null,null,null,"DISTRIBUCIÓ PRESSUPOST PER ENTITAT EXECUTORA"]
[1,{"$f":"+IF(A1=\"TOTES LES ACTIVITATS\",\"TOTAL PROJECTE\",\"TOTAL \"&A1)","v":"TOTAL PROJECTE"},"ACCD","ALTRES FINANÇADORS","LÍDER","AGRUPADA","SOCI_LOCAL","COL·LECTIUS PROTAGONISTES","TERCER SECTOR","LÍDER","AGRUPADA","SOCI_LOCAL","COL·LECTIUS PROTAGONISTES","TERCER SECTOR",{"$f":"+IF(A1=\"TOTES LES ACTIVITATS\",IF('Dades i com... - Datos y com...'!D44=\"\",\"\",'Dades i com... - Datos y com...'!D44),\"\")","v":1},{"$f":"+IF(A1=\"TOTES LES ACTIVITATS\",IF('Dades i com... - Datos y com...'!D45=\"\",\"\",'Dades i com... - Datos y com...'!D45),\"\")","v":""},{"$f":"+IF(A1=\"TOTES LES ACTIVITATS\",IF('Dades i com... - Datos y com...'!D46=\"\",\"\",'Dades i com... - Datos y com...'!D46),\"\")","v":""},{"$f":"+IF(A1=\"TOTES LES ACTIVITATS\",IF('Dades i com... - Datos y com...'!D47=\"\",\"\",'Dades i com... - Datos y com...'!D47),\"\")","v":""},{"$f":"+IF(A1=\"TOTES LES ACTIVITATS\",IF('Dades i com... - Datos y com...'!D48=\"\",\"\",'Dades i com... - Datos y com...'!D48),\"\")","v":""},{"$f":"+IF(A1=\"TOTES LES ACTIVITATS\",IF('Dades i com... - Datos y com...'!D49=\"\",\"\",'Dades i com... - Datos y com...'!D49),\"\")","v":""},{"$f":"+IF(A1=\"TOTES LES ACTIVITATS\",IF('Dades i com... - Datos y com...'!D50=\"\",\"\",'Dades i com... - Datos y com...'!D50),\"\")","v":""},{"$f":"+IF(A1=\"TOTES LES ACTIVITATS\",IF('Dades i com... - Datos y com...'!D51=\"\",\"\",'Dades i com... - Datos y com...'!D51),\"\")","v":""},{"$f":"+IF(A1=\"TOTES LES ACTIVITATS\",IF('Dades i com... - Datos y com...'!D52=\"\",\"\",'Dades i com... - Datos y com...'!D52),\"\")","v":""},{"$f":"+IF(A1=\"TOTES LES ACTIVITATS\",IF('Dades i com... - Datos y com...'!D53=\"\",\"\",'Dades i com... - Datos y com...'!D53),\"\")","v":""},{"$f":"+IF(A1=\"TOTES LES ACTIVITATS\",IF('Dades i com... - Datos y com...'!D54=\"\",\"\",'Dades i com... - Datos y com...'!D54),\"\")","v":""},{"$f":"+IF(A1=\"TOTES LES ACTIVITATS\",IF('Dades i com... - Datos y com...'!D55=\"\",\"\",'Dades i com... - Datos y com...'!D55),\"\")","v":""},{"$f":"+IF(A1=\"TOTES LES ACTIVITATS\",IF('Dades i com... - Datos y com...'!D56=\"\",\"\",'Dades i com... - Datos y com...'!D56),\"\")","v":""},{"$f":"+IF(A1=\"TOTES LES ACTIVITATS\",IF('Dades i com... - Datos y com...'!D57=\"\",\"\",'Dades i com... - Datos y com...'!D57),\"\")","v":""},{"$f":"+IF(A1=\"TOTES LES ACTIVITATS\",IF('Dades i com... - Datos y com...'!D58=\"\",\"\",'Dades i com... - Datos y com...'!D58),\"\")","v":""},{"$f":"+IF(A1=\"TOTES LES ACTIVITATS\",IF('Dades i com... - Datos y com...'!D59=\"\",\"\",'Dades i com... - Datos y com...'!D59),\"\")","v":""},{"$f":"+IF(A1=\"TOTES LES ACTIVITATS\",IF('Dades i com... - Datos y com...'!D60=\"\",\"\",'Dades i com... - Datos y com...'!D60),\"\")","v":""},{"$f":"+IF(A1=\"TOTES LES ACTIVITATS\",IF('Dades i com... - Datos y com...'!D61=\"\",\"\",'Dades i com... - Datos y com...'!D61),\"\")","v":""},{"$f":"+IF(A1=\"TOTES LES ACTIVITATS\",IF('Dades i com... - Datos y com...'!D62=\"\",\"\",'Dades i com... - Datos y com...'!D62),\"\")","v":""},{"$f":"+IF(A1=\"TOTES LES ACTIVITATS\",IF('Dades i com... - Datos y com...'!D63=\"\",\"\",'Dades i com... - Datos y com...'!D63),\"\")","v":""}]
["DESPESES DIRECTES CORRENTS (Capítol IV) / GASTOS DIRECTOS CORRIENTES (Capítulo IV)",{"$f":"SUM(C5:I5)","v":0},{"$f":"+SUM(C6,C10:C26)","v":0},{"$f":"+SUM(D6,D10:D26)","v":0},{"$f":"+SUM(E6,E10:E26)","v":0},0,{"$f":"+SUM(G6,G10:G26)","v":0},{"$f":"+SUM(H6,H10:H26)","v":0},{"$f":"+SUM(I6,I10:I26)","v":0},{"$f":"+SUM(J6,J10:J26)","v":0},0,0,{"$f":"+SUM(M6,M10:M26)","v":0},0,{"$f":"+SUM(O6,O10:O26)","v":0},0,0,0,0,0,0,0,0,0,0,0,0,0,0,0,0,0,0,0]
["a1. Remuneració  personal assalariat / Remuneracion personal asalariado",0,{"$f":"SUM(C7:C9)","v":0},{"$f":"SUM(D7:D9)","v":0},{"$f":"SUM(E7:E9)","v":0},0,{"$f":"SUM(G7:G9)","v":0},{"$f":"SUM(H7:H9)","v":0},{"$f":"SUM(I7:I9)","v":0},{"$f":"SUM(J7:J9)","v":0},0,0,{"$f":"SUM(M7:M9)","v":0},0,0,0,0,0,0,0,0,0,0,0,0,0,0,0,0,0,0,0,0,0]
["a1.1 Personal assalariat local / Personal asalariado local",0,{"$f":"+IF(OR($A$1=\"TOTES LES ACTIVITATS\",$A$1=\"\"),SUMIF('Detall - Detalle'!$AA:$AA,$A7,'Detall - Detalle'!$W:$W),SUMIFS('Detall - Detalle'!$W:$W,'Detall - Detalle'!$T:$T,'Pressupost - Pressupuesto'!$A$1,'Detall - Detalle'!$AA:$AA,'Pressupost - Pressupuesto'!$A7))","v":0},{"$f":"+IF(OR($A$1=\"TOTES LES ACTIVITATS\",$A$1=\"\"),SUMIF('Detall - Detalle'!$AA:$AA,$A7,'Detall - Detalle'!$X:$X),SUMIFS('Detall - Detalle'!$X:$X,'Detall - Detalle'!$T:$T,'Pressupost - Pressupuesto'!$A$1,'Detall - Detalle'!$AA:$AA,'Pressupost - Pressupuesto'!$A7))","v":0},{"$f":"+IF(OR($A$1=\"TOTES LES ACTIVITATS\",$A$1=\"\"),SUMIFS('Detall - Detalle'!$Y:$Y,'Detall - Detalle'!$AA:$AA,'Pressupost - Pressupuesto'!$A7,'Detall - Detalle'!$Z:$Z,E$4),SUMIFS('Detall - Detalle'!$Y:$Y,'Detall - Detalle'!$T:$T,'Pressupost - Pressupuesto'!$A$1,'Detall - Detalle'!$AA:$AA,'Pressupost - Pressupuesto'!$A7,'Detall - Detalle'!$Z:$Z,E$4))","v":0},{"$f":"+IF(OR($A$1=\"TOTES LES ACTIVITATS\",$A$1=\"\"),SUMIFS('Detall - Detalle'!$Y:$Y,'Detall - Detalle'!$AA:$AA,'Pressupost - Pressupuesto'!$A7,'Detall - Detalle'!$Z:$Z,F$4),SUMIFS('Detall - Detalle'!$Y:$Y,'Detall - Detalle'!$T:$T,'Pressupost - Pressupuesto'!$A$1,'Detall - Detalle'!$AA:$AA,'Pressupost - Pressupuesto'!$A7,'Detall - Detalle'!$Z:$Z,F$4))","v":0},{"$f":"+IF(OR($A$1=\"TOTES LES ACTIVITATS\",$A$1=\"\"),SUMIFS('Detall - Detalle'!$Y:$Y,'Detall - Detalle'!$AA:$AA,'Pressupost - Pressupuesto'!$A7,'Detall - Detalle'!$Z:$Z,G$4),SUMIFS('Detall - Detalle'!$Y:$Y,'Detall - Detalle'!$T:$T,'Pressupost - Pressupuesto'!$A$1,'Detall - Detalle'!$AA:$AA,'Pressupost - Pressupuesto'!$A7,'Detall - Detalle'!$Z:$Z,G$4))","v":0},{"$f":"+IF(OR($A$1=\"TOTES LES ACTIVITATS\",$A$1=\"\"),SUMIFS('Detall - Detalle'!$Y:$Y,'Detall - Detalle'!$AA:$AA,'Pressupost - Pressupuesto'!$A7,'Detall - Detalle'!$Z:$Z,H$4),SUMIFS('Detall - Detalle'!$Y:$Y,'Detall - Detalle'!$T:$T,'Pressupost - Pressupuesto'!$A$1,'Detall - Detalle'!$AA:$AA,'Pressupost - Pressupuesto'!$A7,'Detall - Detalle'!$Z:$Z,H$4))","v":0},{"$f":"+IF(OR($A$1=\"TOTES LES ACTIVITATS\",$A$1=\"\"),SUMIFS('Detall - Detalle'!$Y:$Y,'Detall - Detalle'!$AA:$AA,'Pressupost - Pressupuesto'!$A7,'Detall - Detalle'!$Z:$Z,I$4),SUMIFS('Detall - Detalle'!$Y:$Y,'Detall - Detalle'!$T:$T,'Pressupost - Pressupuesto'!$A$1,'Detall - Detalle'!$AA:$AA,'Pressupost - Pressupuesto'!$A7,'Detall - Detalle'!$Z:$Z,I$4))","v":0},{"$f":"+IF(OR($A$1=\"TOTES LES ACTIVITATS\",$A$1=\"\"),SUMIFS('Detall - Detalle'!$V:$V,'Detall - Detalle'!$AA:$AA,'Pressupost - Pressupuesto'!$A7,'Detall - Detalle'!$Z:$Z,J$4),SUMIFS('Detall - Detalle'!$V:$V,'Detall - Detalle'!$T:$T,'Pressupost - Pressupuesto'!$A$1,'Detall - Detalle'!$AA:$AA,'Pressupost - Pressupuesto'!$A7,'Detall - Detalle'!$Z:$Z,J$4))","v":0},{"$f":"+IF(OR($A$1=\"TOTES LES ACTIVITATS\",$A$1=\"\"),SUMIFS('Detall - Detalle'!$V:$V,'Detall - Detalle'!$AA:$AA,'Pressupost - Pressupuesto'!$A7,'Detall - Detalle'!$Z:$Z,K$4),SUMIFS('Detall - Detalle'!$V:$V,'Detall - Detalle'!$T:$T,'Pressupost - Pressupuesto'!$A$1,'Detall - Detalle'!$AA:$AA,'Pressupost - Pressupuesto'!$A7,'Detall - Detalle'!$Z:$Z,K$4))","v":0},{"$f":"+IF(OR($A$1=\"TOTES LES ACTIVITATS\",$A$1=\"\"),SUMIFS('Detall - Detalle'!$V:$V,'Detall - Detalle'!$AA:$AA,'Pressupost - Pressupuesto'!$A7,'Detall - Detalle'!$Z:$Z,L$4),SUMIFS('Detall - Detalle'!$V:$V,'Detall - Detalle'!$T:$T,'Pressupost - Pressupuesto'!$A$1,'Detall - Detalle'!$AA:$AA,'Pressupost - Pressupuesto'!$A7,'Detall - Detalle'!$Z:$Z,L$4))","v":0},{"$f":"+IF(OR($A$1=\"TOTES LES ACTIVITATS\",$A$1=\"\"),SUMIFS('Detall - Detalle'!$V:$V,'Detall - Detalle'!$AA:$AA,'Pressupost - Pressupuesto'!$A7,'Detall - Detalle'!$Z:$Z,M$4),SUMIFS('Detall - Detalle'!$V:$V,'Detall - Detalle'!$T:$T,'Pressupost - Pressupuesto'!$A$1,'Detall - Detalle'!$AA:$AA,'Pressupost - Pressupuesto'!$A7,'Detall - Detalle'!$Z:$Z,M$4))","v":0},{"$f":"+IF(OR($A$1=\"TOTES LES ACTIVITATS\",$A$1=\"\"),SUMIFS('Detall - Detalle'!$V:$V,'Detall - Detalle'!$AA:$AA,'Pressupost - Pressupuesto'!$A7,'Detall - Detalle'!$Z:$Z,N$4),SUMIFS('Detall - Detalle'!$V:$V,'Detall - Detalle'!$T:$T,'Pressupost - Pressupuesto'!$A$1,'Detall - Detalle'!$AA:$AA,'Pressupost - Pressupuesto'!$A7,'Detall - Detalle'!$Z:$Z,N$4))","v":0},{"$f":"+SUMIFS('Detall - Detalle'!$V:$V,'Detall - Detalle'!$T:$T,O$4,'Detall - Detalle'!$AA:$AA,'Pressupost - Pressupuesto'!$A7)","v":0},{"$f":"+SUMIFS('Detall - Detalle'!$V:$V,'Detall - Detalle'!$T:$T,P$4,'Detall - Detalle'!$AA:$AA,'Pressupost - Pressupuesto'!$A7)","v":0},{"$f":"+SUMIFS('Detall - Detalle'!$V:$V,'Detall - Detalle'!$T:$T,Q$4,'Detall - Detalle'!$AA:$AA,'Pressupost - Pressupuesto'!$A7)","v":0},{"$f":"+SUMIFS('Detall - Detalle'!$V:$V,'Detall - Detalle'!$T:$T,R$4,'Detall - Detalle'!$AA:$AA,'Pressupost - Pressupuesto'!$A7)","v":0},{"$f":"+SUMIFS('Detall - Detalle'!$V:$V,'Detall - Detalle'!$T:$T,S$4,'Detall - Detalle'!$AA:$AA,'Pressupost - Pressupuesto'!$A7)","v":0},{"$f":"+SUMIFS('Detall - Detalle'!$V:$V,'Detall - Detalle'!$T:$T,T$4,'Detall - Detalle'!$AA:$AA,'Pressupost - Pressupuesto'!$A7)","v":0},{"$f":"+SUMIFS('Detall - Detalle'!$V:$V,'Detall - Detalle'!$T:$T,U$4,'Detall - Detalle'!$AA:$AA,'Pressupost - Pressupuesto'!$A7)","v":0},{"$f":"+SUMIFS('Detall - Detalle'!$V:$V,'Detall - Detalle'!$T:$T,V$4,'Detall - Detalle'!$AA:$AA,'Pressupost - Pressupuesto'!$A7)","v":0},{"$f":"+SUMIFS('Detall - Detalle'!$V:$V,'Detall - Detalle'!$T:$T,W$4,'Detall - Detalle'!$AA:$AA,'Pressupost - Pressupuesto'!$A7)","v":0},{"$f":"+SUMIFS('Detall - Detalle'!$V:$V,'Detall - Detalle'!$T:$T,X$4,'Detall - Detalle'!$AA:$AA,'Pressupost - Pressupuesto'!$A7)","v":0},{"$f":"+SUMIFS('Detall - Detalle'!$V:$V,'Detall - Detalle'!$T:$T,Y$4,'Detall - Detalle'!$AA:$AA,'Pressupost - Pressupuesto'!$A7)","v":0},{"$f":"+SUMIFS('Detall - Detalle'!$V:$V,'Detall - Detalle'!$T:$T,Z$4,'Detall - Detalle'!$AA:$AA,'Pressupost - Pressupuesto'!$A7)","v":0},{"$f":"+SUMIFS('Detall - Detalle'!$V:$V,'Detall - Detalle'!$T:$T,AA$4,'Detall - Detalle'!$AA:$AA,'Pressupost - Pressupuesto'!$A7)","v":0},{"$f":"+SUMIFS('Detall - Detalle'!$V:$V,'Detall - Detalle'!$T:$T,AB$4,'Detall - Detalle'!$AA:$AA,'Pressupost - Pressupuesto'!$A7)","v":0},{"$f":"+SUMIFS('Detall - Detalle'!$V:$V,'Detall - Detalle'!$T:$T,AC$4,'Detall - Detalle'!$AA:$AA,'Pressupost - Pressupuesto'!$A7)","v":0},{"$f":"+SUMIFS('Detall - Detalle'!$V:$V,'Detall - Detalle'!$T:$T,AD$4,'Detall - Detalle'!$AA:$AA,'Pressupost - Pressupuesto'!$A7)","v":0},{"$f":"+SUMIFS('Detall - Detalle'!$V:$V,'Detall - Detalle'!$T:$T,AE$4,'Detall - Detalle'!$AA:$AA,'Pressupost - Pressupuesto'!$A7)","v":0},{"$f":"+SUMIFS('Detall - Detalle'!$V:$V,'Detall - Detalle'!$T:$T,AF$4,'Detall - Detalle'!$AA:$AA,'Pressupost - Pressupuesto'!$A7)","v":0},{"$f":"+SUMIFS('Detall - Detalle'!$V:$V,'Detall - Detalle'!$T:$T,AG$4,'Detall - Detalle'!$AA:$AA,'Pressupost - Pressupuesto'!$A7)","v":0},{"$f":"+SUMIFS('Detall - Detalle'!$V:$V,'Detall - Detalle'!$T:$T,AH$4,'Detall - Detalle'!$AA:$AA,'Pressupost - Pressupuesto'!$A7)","v":0}]
["a1.2 Personal assalariat expatriat / Personal asalariado expatriado",0,{"$f":"+IF(OR($A$1=\"TOTES LES ACTIVITATS\",$A$1=\"\"),SUMIF('Detall - Detalle'!$AA:$AA,$A8,'Detall - Detalle'!$W:$W),SUMIFS('Detall - Detalle'!$W:$W,'Detall - Detalle'!$T:$T,'Pressupost - Pressupuesto'!$A$1,'Detall - Detalle'!$AA:$AA,'Pressupost - Pressupuesto'!$A8))","v":0},{"$f":"+IF(OR($A$1=\"TOTES LES ACTIVITATS\",$A$1=\"\"),SUMIF('Detall - Detalle'!$AA:$AA,$A8,'Detall - Detalle'!$X:$X),SUMIFS('Detall - Detalle'!$X:$X,'Detall - Detalle'!$T:$T,'Pressupost - Pressupuesto'!$A$1,'Detall - Detalle'!$AA:$AA,'Pressupost - Pressupuesto'!$A8))","v":0},{"$f":"+IF(OR($A$1=\"TOTES LES ACTIVITATS\",$A$1=\"\"),SUMIFS('Detall - Detalle'!$Y:$Y,'Detall - Detalle'!$AA:$AA,'Pressupost - Pressupuesto'!$A8,'Detall - Detalle'!$Z:$Z,E$4),SUMIFS('Detall - Detalle'!$Y:$Y,'Detall - Detalle'!$T:$T,'Pressupost - Pressupuesto'!$A$1,'Detall - Detalle'!$AA:$AA,'Pressupost - Pressupuesto'!$A8,'Detall - Detalle'!$Z:$Z,E$4))","v":0},{"$f":"+IF(OR($A$1=\"TOTES LES ACTIVITATS\",$A$1=\"\"),SUMIFS('Detall - Detalle'!$Y:$Y,'Detall - Detalle'!$AA:$AA,'Pressupost - Pressupuesto'!$A8,'Detall - Detalle'!$Z:$Z,F$4),SUMIFS('Detall - Detalle'!$Y:$Y,'Detall - Detalle'!$T:$T,'Pressupost - Pressupuesto'!$A$1,'Detall - Detalle'!$AA:$AA,'Pressupost - Pressupuesto'!$A8,'Detall - Detalle'!$Z:$Z,F$4))","v":0},{"$f":"+IF(OR($A$1=\"TOTES LES ACTIVITATS\",$A$1=\"\"),SUMIFS('Detall - Detalle'!$Y:$Y,'Detall - Detalle'!$AA:$AA,'Pressupost - Pressupuesto'!$A8,'Detall - Detalle'!$Z:$Z,G$4),SUMIFS('Detall - Detalle'!$Y:$Y,'Detall - Detalle'!$T:$T,'Pressupost - Pressupuesto'!$A$1,'Detall - Detalle'!$AA:$AA,'Pressupost - Pressupuesto'!$A8,'Detall - Detalle'!$Z:$Z,G$4))","v":0},{"$f":"+IF(OR($A$1=\"TOTES LES ACTIVITATS\",$A$1=\"\"),SUMIFS('Detall - Detalle'!$Y:$Y,'Detall - Detalle'!$AA:$AA,'Pressupost - Pressupuesto'!$A8,'Detall - Detalle'!$Z:$Z,H$4),SUMIFS('Detall - Detalle'!$Y:$Y,'Detall - Detalle'!$T:$T,'Pressupost - Pressupuesto'!$A$1,'Detall - Detalle'!$AA:$AA,'Pressupost - Pressupuesto'!$A8,'Detall - Detalle'!$Z:$Z,H$4))","v":0},{"$f":"+IF(OR($A$1=\"TOTES LES ACTIVITATS\",$A$1=\"\"),SUMIFS('Detall - Detalle'!$Y:$Y,'Detall - Detalle'!$AA:$AA,'Pressupost - Pressupuesto'!$A8,'Detall - Detalle'!$Z:$Z,I$4),SUMIFS('Detall - Detalle'!$Y:$Y,'Detall - Detalle'!$T:$T,'Pressupost - Pressupuesto'!$A$1,'Detall - Detalle'!$AA:$AA,'Pressupost - Pressupuesto'!$A8,'Detall - Detalle'!$Z:$Z,I$4))","v":0},{"$f":"+IF(OR($A$1=\"TOTES LES ACTIVITATS\",$A$1=\"\"),SUMIFS('Detall - Detalle'!$V:$V,'Detall - Detalle'!$AA:$AA,'Pressupost - Pressupuesto'!$A8,'Detall - Detalle'!$Z:$Z,J$4),SUMIFS('Detall - Detalle'!$V:$V,'Detall - Detalle'!$T:$T,'Pressupost - Pressupuesto'!$A$1,'Detall - Detalle'!$AA:$AA,'Pressupost - Pressupuesto'!$A8,'Detall - Detalle'!$Z:$Z,J$4))","v":0},{"$f":"+IF(OR($A$1=\"TOTES LES ACTIVITATS\",$A$1=\"\"),SUMIFS('Detall - Detalle'!$V:$V,'Detall - Detalle'!$AA:$AA,'Pressupost - Pressupuesto'!$A8,'Detall - Detalle'!$Z:$Z,K$4),SUMIFS('Detall - Detalle'!$V:$V,'Detall - Detalle'!$T:$T,'Pressupost - Pressupuesto'!$A$1,'Detall - Detalle'!$AA:$AA,'Pressupost - Pressupuesto'!$A8,'Detall - Detalle'!$Z:$Z,K$4))","v":0},{"$f":"+IF(OR($A$1=\"TOTES LES ACTIVITATS\",$A$1=\"\"),SUMIFS('Detall - Detalle'!$V:$V,'Detall - Detalle'!$AA:$AA,'Pressupost - Pressupuesto'!$A8,'Detall - Detalle'!$Z:$Z,L$4),SUMIFS('Detall - Detalle'!$V:$V,'Detall - Detalle'!$T:$T,'Pressupost - Pressupuesto'!$A$1,'Detall - Detalle'!$AA:$AA,'Pressupost - Pressupuesto'!$A8,'Detall - Detalle'!$Z:$Z,L$4))","v":0},{"$f":"+IF(OR($A$1=\"TOTES LES ACTIVITATS\",$A$1=\"\"),SUMIFS('Detall - Detalle'!$V:$V,'Detall - Detalle'!$AA:$AA,'Pressupost - Pressupuesto'!$A8,'Detall - Detalle'!$Z:$Z,M$4),SUMIFS('Detall - Detalle'!$V:$V,'Detall - Detalle'!$T:$T,'Pressupost - Pressupuesto'!$A$1,'Detall - Detalle'!$AA:$AA,'Pressupost - Pressupuesto'!$A8,'Detall - Detalle'!$Z:$Z,M$4))","v":0},{"$f":"+IF(OR($A$1=\"TOTES LES ACTIVITATS\",$A$1=\"\"),SUMIFS('Detall - Detalle'!$V:$V,'Detall - Detalle'!$AA:$AA,'Pressupost - Pressupuesto'!$A8,'Detall - Detalle'!$Z:$Z,N$4),SUMIFS('Detall - Detalle'!$V:$V,'Detall - Detalle'!$T:$T,'Pressupost - Pressupuesto'!$A$1,'Detall - Detalle'!$AA:$AA,'Pressupost - Pressupuesto'!$A8,'Detall - Detalle'!$Z:$Z,N$4))","v":0},{"$f":"+SUMIFS('Detall - Detalle'!$V:$V,'Detall - Detalle'!$T:$T,O$4,'Detall - Detalle'!$AA:$AA,'Pressupost - Pressupuesto'!$A8)","v":0},{"$f":"+SUMIFS('Detall - Detalle'!$V:$V,'Detall - Detalle'!$T:$T,P$4,'Detall - Detalle'!$AA:$AA,'Pressupost - Pressupuesto'!$A8)","v":0},{"$f":"+SUMIFS('Detall - Detalle'!$V:$V,'Detall - Detalle'!$T:$T,Q$4,'Detall - Detalle'!$AA:$AA,'Pressupost - Pressupuesto'!$A8)","v":0},{"$f":"+SUMIFS('Detall - Detalle'!$V:$V,'Detall - Detalle'!$T:$T,R$4,'Detall - Detalle'!$AA:$AA,'Pressupost - Pressupuesto'!$A8)","v":0},{"$f":"+SUMIFS('Detall - Detalle'!$V:$V,'Detall - Detalle'!$T:$T,S$4,'Detall - Detalle'!$AA:$AA,'Pressupost - Pressupuesto'!$A8)","v":0},{"$f":"+SUMIFS('Detall - Detalle'!$V:$V,'Detall - Detalle'!$T:$T,T$4,'Detall - Detalle'!$AA:$AA,'Pressupost - Pressupuesto'!$A8)","v":0},{"$f":"+SUMIFS('Detall - Detalle'!$V:$V,'Detall - Detalle'!$T:$T,U$4,'Detall - Detalle'!$AA:$AA,'Pressupost - Pressupuesto'!$A8)","v":0},{"$f":"+SUMIFS('Detall - Detalle'!$V:$V,'Detall - Detalle'!$T:$T,V$4,'Detall - Detalle'!$AA:$AA,'Pressupost - Pressupuesto'!$A8)","v":0},{"$f":"+SUMIFS('Detall - Detalle'!$V:$V,'Detall - Detalle'!$T:$T,W$4,'Detall - Detalle'!$AA:$AA,'Pressupost - Pressupuesto'!$A8)","v":0},{"$f":"+SUMIFS('Detall - Detalle'!$V:$V,'Detall - Detalle'!$T:$T,X$4,'Detall - Detalle'!$AA:$AA,'Pressupost - Pressupuesto'!$A8)","v":0},{"$f":"+SUMIFS('Detall - Detalle'!$V:$V,'Detall - Detalle'!$T:$T,Y$4,'Detall - Detalle'!$AA:$AA,'Pressupost - Pressupuesto'!$A8)","v":0},{"$f":"+SUMIFS('Detall - Detalle'!$V:$V,'Detall - Detalle'!$T:$T,Z$4,'Detall - Detalle'!$AA:$AA,'Pressupost - Pressupuesto'!$A8)","v":0},{"$f":"+SUMIFS('Detall - Detalle'!$V:$V,'Detall - Detalle'!$T:$T,AA$4,'Detall - Detalle'!$AA:$AA,'Pressupost - Pressupuesto'!$A8)","v":0},{"$f":"+SUMIFS('Detall - Detalle'!$V:$V,'Detall - Detalle'!$T:$T,AB$4,'Detall - Detalle'!$AA:$AA,'Pressupost - Pressupuesto'!$A8)","v":0},{"$f":"+SUMIFS('Detall - Detalle'!$V:$V,'Detall - Detalle'!$T:$T,AC$4,'Detall - Detalle'!$AA:$AA,'Pressupost - Pressupuesto'!$A8)","v":0},{"$f":"+SUMIFS('Detall - Detalle'!$V:$V,'Detall - Detalle'!$T:$T,AD$4,'Detall - Detalle'!$AA:$AA,'Pressupost - Pressupuesto'!$A8)","v":0},{"$f":"+SUMIFS('Detall - Detalle'!$V:$V,'Detall - Detalle'!$T:$T,AE$4,'Detall - Detalle'!$AA:$AA,'Pressupost - Pressupuesto'!$A8)","v":0},{"$f":"+SUMIFS('Detall - Detalle'!$V:$V,'Detall - Detalle'!$T:$T,AF$4,'Detall - Detalle'!$AA:$AA,'Pressupost - Pressupuesto'!$A8)","v":0},{"$f":"+SUMIFS('Detall - Detalle'!$V:$V,'Detall - Detalle'!$T:$T,AG$4,'Detall - Detalle'!$AA:$AA,'Pressupost - Pressupuesto'!$A8)","v":0},{"$f":"+SUMIFS('Detall - Detalle'!$V:$V,'Detall - Detalle'!$T:$T,AH$4,'Detall - Detalle'!$AA:$AA,'Pressupost - Pressupuesto'!$A8)","v":0}]
["a1.3 Personal assalariat a Catalunya / Personal asalariado Cataluña",0,{"$f":"+IF(OR($A$1=\"TOTES LES ACTIVITATS\",$A$1=\"\"),SUMIF('Detall - Detalle'!$AA:$AA,$A9,'Detall - Detalle'!$W:$W),SUMIFS('Detall - Detalle'!$W:$W,'Detall - Detalle'!$T:$T,'Pressupost - Pressupuesto'!$A$1,'Detall - Detalle'!$AA:$AA,'Pressupost - Pressupuesto'!$A9))","v":0},{"$f":"+IF(OR($A$1=\"TOTES LES ACTIVITATS\",$A$1=\"\"),SUMIF('Detall - Detalle'!$AA:$AA,$A9,'Detall - Detalle'!$X:$X),SUMIFS('Detall - Detalle'!$X:$X,'Detall - Detalle'!$T:$T,'Pressupost - Pressupuesto'!$A$1,'Detall - Detalle'!$AA:$AA,'Pressupost - Pressupuesto'!$A9))","v":0},{"$f":"+IF(OR($A$1=\"TOTES LES ACTIVITATS\",$A$1=\"\"),SUMIFS('Detall - Detalle'!$Y:$Y,'Detall - Detalle'!$AA:$AA,'Pressupost - Pressupuesto'!$A9,'Detall - Detalle'!$Z:$Z,E$4),SUMIFS('Detall - Detalle'!$Y:$Y,'Detall - Detalle'!$T:$T,'Pressupost - Pressupuesto'!$A$1,'Detall - Detalle'!$AA:$AA,'Pressupost - Pressupuesto'!$A9,'Detall - Detalle'!$Z:$Z,E$4))","v":0},{"$f":"+IF(OR($A$1=\"TOTES LES ACTIVITATS\",$A$1=\"\"),SUMIFS('Detall - Detalle'!$Y:$Y,'Detall - Detalle'!$AA:$AA,'Pressupost - Pressupuesto'!$A9,'Detall - Detalle'!$Z:$Z,F$4),SUMIFS('Detall - Detalle'!$Y:$Y,'Detall - Detalle'!$T:$T,'Pressupost - Pressupuesto'!$A$1,'Detall - Detalle'!$AA:$AA,'Pressupost - Pressupuesto'!$A9,'Detall - Detalle'!$Z:$Z,F$4))","v":0},{"$f":"+IF(OR($A$1=\"TOTES LES ACTIVITATS\",$A$1=\"\"),SUMIFS('Detall - Detalle'!$Y:$Y,'Detall - Detalle'!$AA:$AA,'Pressupost - Pressupuesto'!$A9,'Detall - Detalle'!$Z:$Z,G$4),SUMIFS('Detall - Detalle'!$Y:$Y,'Detall - Detalle'!$T:$T,'Pressupost - Pressupuesto'!$A$1,'Detall - Detalle'!$AA:$AA,'Pressupost - Pressupuesto'!$A9,'Detall - Detalle'!$Z:$Z,G$4))","v":0},{"$f":"+IF(OR($A$1=\"TOTES LES ACTIVITATS\",$A$1=\"\"),SUMIFS('Detall - Detalle'!$Y:$Y,'Detall - Detalle'!$AA:$AA,'Pressupost - Pressupuesto'!$A9,'Detall - Detalle'!$Z:$Z,H$4),SUMIFS('Detall - Detalle'!$Y:$Y,'Detall - Detalle'!$T:$T,'Pressupost - Pressupuesto'!$A$1,'Detall - Detalle'!$AA:$AA,'Pressupost - Pressupuesto'!$A9,'Detall - Detalle'!$Z:$Z,H$4))","v":0},{"$f":"+IF(OR($A$1=\"TOTES LES ACTIVITATS\",$A$1=\"\"),SUMIFS('Detall - Detalle'!$Y:$Y,'Detall - Detalle'!$AA:$AA,'Pressupost - Pressupuesto'!$A9,'Detall - Detalle'!$Z:$Z,I$4),SUMIFS('Detall - Detalle'!$Y:$Y,'Detall - Detalle'!$T:$T,'Pressupost - Pressupuesto'!$A$1,'Detall - Detalle'!$AA:$AA,'Pressupost - Pressupuesto'!$A9,'Detall - Detalle'!$Z:$Z,I$4))","v":0},{"$f":"+IF(OR($A$1=\"TOTES LES ACTIVITATS\",$A$1=\"\"),SUMIFS('Detall - Detalle'!$V:$V,'Detall - Detalle'!$AA:$AA,'Pressupost - Pressupuesto'!$A9,'Detall - Detalle'!$Z:$Z,J$4),SUMIFS('Detall - Detalle'!$V:$V,'Detall - Detalle'!$T:$T,'Pressupost - Pressupuesto'!$A$1,'Detall - Detalle'!$AA:$AA,'Pressupost - Pressupuesto'!$A9,'Detall - Detalle'!$Z:$Z,J$4))","v":0},{"$f":"+IF(OR($A$1=\"TOTES LES ACTIVITATS\",$A$1=\"\"),SUMIFS('Detall - Detalle'!$V:$V,'Detall - Detalle'!$AA:$AA,'Pressupost - Pressupuesto'!$A9,'Detall - Detalle'!$Z:$Z,K$4),SUMIFS('Detall - Detalle'!$V:$V,'Detall - Detalle'!$T:$T,'Pressupost - Pressupuesto'!$A$1,'Detall - Detalle'!$AA:$AA,'Pressupost - Pressupuesto'!$A9,'Detall - Detalle'!$Z:$Z,K$4))","v":0},{"$f":"+IF(OR($A$1=\"TOTES LES ACTIVITATS\",$A$1=\"\"),SUMIFS('Detall - Detalle'!$V:$V,'Detall - Detalle'!$AA:$AA,'Pressupost - Pressupuesto'!$A9,'Detall - Detalle'!$Z:$Z,L$4),SUMIFS('Detall - Detalle'!$V:$V,'Detall - Detalle'!$T:$T,'Pressupost - Pressupuesto'!$A$1,'Detall - Detalle'!$AA:$AA,'Pressupost - Pressupuesto'!$A9,'Detall - Detalle'!$Z:$Z,L$4))","v":0},{"$f":"+IF(OR($A$1=\"TOTES LES ACTIVITATS\",$A$1=\"\"),SUMIFS('Detall - Detalle'!$V:$V,'Detall - Detalle'!$AA:$AA,'Pressupost - Pressupuesto'!$A9,'Detall - Detalle'!$Z:$Z,M$4),SUMIFS('Detall - Detalle'!$V:$V,'Detall - Detalle'!$T:$T,'Pressupost - Pressupuesto'!$A$1,'Detall - Detalle'!$AA:$AA,'Pressupost - Pressupuesto'!$A9,'Detall - Detalle'!$Z:$Z,M$4))","v":0},{"$f":"+IF(OR($A$1=\"TOTES LES ACTIVITATS\",$A$1=\"\"),SUMIFS('Detall - Detalle'!$V:$V,'Detall - Detalle'!$AA:$AA,'Pressupost - Pressupuesto'!$A9,'Detall - Detalle'!$Z:$Z,N$4),SUMIFS('Detall - Detalle'!$V:$V,'Detall - Detalle'!$T:$T,'Pressupost - Pressupuesto'!$A$1,'Detall - Detalle'!$AA:$AA,'Pressupost - Pressupuesto'!$A9,'Detall - Detalle'!$Z:$Z,N$4))","v":0},{"$f":"+SUMIFS('Detall - Detalle'!$V:$V,'Detall - Detalle'!$T:$T,O$4,'Detall - Detalle'!$AA:$AA,'Pressupost - Pressupuesto'!$A9)","v":0},{"$f":"+SUMIFS('Detall - Detalle'!$V:$V,'Detall - Detalle'!$T:$T,P$4,'Detall - Detalle'!$AA:$AA,'Pressupost - Pressupuesto'!$A9)","v":0},{"$f":"+SUMIFS('Detall - Detalle'!$V:$V,'Detall - Detalle'!$T:$T,Q$4,'Detall - Detalle'!$AA:$AA,'Pressupost - Pressupuesto'!$A9)","v":0},{"$f":"+SUMIFS('Detall - Detalle'!$V:$V,'Detall - Detalle'!$T:$T,R$4,'Detall - Detalle'!$AA:$AA,'Pressupost - Pressupuesto'!$A9)","v":0},{"$f":"+SUMIFS('Detall - Detalle'!$V:$V,'Detall - Detalle'!$T:$T,S$4,'Detall - Detalle'!$AA:$AA,'Pressupost - Pressupuesto'!$A9)","v":0},{"$f":"+SUMIFS('Detall - Detalle'!$V:$V,'Detall - Detalle'!$T:$T,T$4,'Detall - Detalle'!$AA:$AA,'Pressupost - Pressupuesto'!$A9)","v":0},{"$f":"+SUMIFS('Detall - Detalle'!$V:$V,'Detall - Detalle'!$T:$T,U$4,'Detall - Detalle'!$AA:$AA,'Pressupost - Pressupuesto'!$A9)","v":0},{"$f":"+SUMIFS('Detall - Detalle'!$V:$V,'Detall - Detalle'!$T:$T,V$4,'Detall - Detalle'!$AA:$AA,'Pressupost - Pressupuesto'!$A9)","v":0},{"$f":"+SUMIFS('Detall - Detalle'!$V:$V,'Detall - Detalle'!$T:$T,W$4,'Detall - Detalle'!$AA:$AA,'Pressupost - Pressupuesto'!$A9)","v":0},{"$f":"+SUMIFS('Detall - Detalle'!$V:$V,'Detall - Detalle'!$T:$T,X$4,'Detall - Detalle'!$AA:$AA,'Pressupost - Pressupuesto'!$A9)","v":0},{"$f":"+SUMIFS('Detall - Detalle'!$V:$V,'Detall - Detalle'!$T:$T,Y$4,'Detall - Detalle'!$AA:$AA,'Pressupost - Pressupuesto'!$A9)","v":0},{"$f":"+SUMIFS('Detall - Detalle'!$V:$V,'Detall - Detalle'!$T:$T,Z$4,'Detall - Detalle'!$AA:$AA,'Pressupost - Pressupuesto'!$A9)","v":0},{"$f":"+SUMIFS('Detall - Detalle'!$V:$V,'Detall - Detalle'!$T:$T,AA$4,'Detall - Detalle'!$AA:$AA,'Pressupost - Pressupuesto'!$A9)","v":0},{"$f":"+SUMIFS('Detall - Detalle'!$V:$V,'Detall - Detalle'!$T:$T,AB$4,'Detall - Detalle'!$AA:$AA,'Pressupost - Pressupuesto'!$A9)","v":0},{"$f":"+SUMIFS('Detall - Detalle'!$V:$V,'Detall - Detalle'!$T:$T,AC$4,'Detall - Detalle'!$AA:$AA,'Pressupost - Pressupuesto'!$A9)","v":0},{"$f":"+SUMIFS('Detall - Detalle'!$V:$V,'Detall - Detalle'!$T:$T,AD$4,'Detall - Detalle'!$AA:$AA,'Pressupost - Pressupuesto'!$A9)","v":0},{"$f":"+SUMIFS('Detall - Detalle'!$V:$V,'Detall - Detalle'!$T:$T,AE$4,'Detall - Detalle'!$AA:$AA,'Pressupost - Pressupuesto'!$A9)","v":0},{"$f":"+SUMIFS('Detall - Detalle'!$V:$V,'Detall - Detalle'!$T:$T,AF$4,'Detall - Detalle'!$AA:$AA,'Pressupost - Pressupuesto'!$A9)","v":0},{"$f":"+SUMIFS('Detall - Detalle'!$V:$V,'Detall - Detalle'!$T:$T,AG$4,'Detall - Detalle'!$AA:$AA,'Pressupost - Pressupuesto'!$A9)","v":0},{"$f":"+SUMIFS('Detall - Detalle'!$V:$V,'Detall - Detalle'!$T:$T,AH$4,'Detall - Detalle'!$AA:$AA,'Pressupost - Pressupuesto'!$A9)","v":0}]
["a2 Lloguers / Alquileres",0,{"$f":"+IF(OR($A$1=\"TOTES LES ACTIVITATS\",$A$1=\"\"),SUMIF('Detall - Detalle'!$AA:$AA,$A10,'Detall - Detalle'!$W:$W),SUMIFS('Detall - Detalle'!$W:$W,'Detall - Detalle'!$T:$T,'Pressupost - Pressupuesto'!$A$1,'Detall - Detalle'!$AA:$AA,'Pressupost - Pressupuesto'!$A10))","v":0},{"$f":"+IF(OR($A$1=\"TOTES LES ACTIVITATS\",$A$1=\"\"),SUMIF('Detall - Detalle'!$AA:$AA,$A10,'Detall - Detalle'!$X:$X),SUMIFS('Detall - Detalle'!$X:$X,'Detall - Detalle'!$T:$T,'Pressupost - Pressupuesto'!$A$1,'Detall - Detalle'!$AA:$AA,'Pressupost - Pressupuesto'!$A10))","v":0},{"$f":"+IF(OR($A$1=\"TOTES LES ACTIVITATS\",$A$1=\"\"),SUMIFS('Detall - Detalle'!$Y:$Y,'Detall - Detalle'!$AA:$AA,'Pressupost - Pressupuesto'!$A10,'Detall - Detalle'!$Z:$Z,E$4),SUMIFS('Detall - Detalle'!$Y:$Y,'Detall - Detalle'!$T:$T,'Pressupost - Pressupuesto'!$A$1,'Detall - Detalle'!$AA:$AA,'Pressupost - Pressupuesto'!$A10,'Detall - Detalle'!$Z:$Z,E$4))","v":0},{"$f":"+IF(OR($A$1=\"TOTES LES ACTIVITATS\",$A$1=\"\"),SUMIFS('Detall - Detalle'!$Y:$Y,'Detall - Detalle'!$AA:$AA,'Pressupost - Pressupuesto'!$A10,'Detall - Detalle'!$Z:$Z,F$4),SUMIFS('Detall - Detalle'!$Y:$Y,'Detall - Detalle'!$T:$T,'Pressupost - Pressupuesto'!$A$1,'Detall - Detalle'!$AA:$AA,'Pressupost - Pressupuesto'!$A10,'Detall - Detalle'!$Z:$Z,F$4))","v":0},{"$f":"+IF(OR($A$1=\"TOTES LES ACTIVITATS\",$A$1=\"\"),SUMIFS('Detall - Detalle'!$Y:$Y,'Detall - Detalle'!$AA:$AA,'Pressupost - Pressupuesto'!$A10,'Detall - Detalle'!$Z:$Z,G$4),SUMIFS('Detall - Detalle'!$Y:$Y,'Detall - Detalle'!$T:$T,'Pressupost - Pressupuesto'!$A$1,'Detall - Detalle'!$AA:$AA,'Pressupost - Pressupuesto'!$A10,'Detall - Detalle'!$Z:$Z,G$4))","v":0},{"$f":"+IF(OR($A$1=\"TOTES LES ACTIVITATS\",$A$1=\"\"),SUMIFS('Detall - Detalle'!$Y:$Y,'Detall - Detalle'!$AA:$AA,'Pressupost - Pressupuesto'!$A10,'Detall - Detalle'!$Z:$Z,H$4),SUMIFS('Detall - Detalle'!$Y:$Y,'Detall - Detalle'!$T:$T,'Pressupost - Pressupuesto'!$A$1,'Detall - Detalle'!$AA:$AA,'Pressupost - Pressupuesto'!$A10,'Detall - Detalle'!$Z:$Z,H$4))","v":0},{"$f":"+IF(OR($A$1=\"TOTES LES ACTIVITATS\",$A$1=\"\"),SUMIFS('Detall - Detalle'!$Y:$Y,'Detall - Detalle'!$AA:$AA,'Pressupost - Pressupuesto'!$A10,'Detall - Detalle'!$Z:$Z,I$4),SUMIFS('Detall - Detalle'!$Y:$Y,'Detall - Detalle'!$T:$T,'Pressupost - Pressupuesto'!$A$1,'Detall - Detalle'!$AA:$AA,'Pressupost - Pressupuesto'!$A10,'Detall - Detalle'!$Z:$Z,I$4))","v":0},{"$f":"+IF(OR($A$1=\"TOTES LES ACTIVITATS\",$A$1=\"\"),SUMIFS('Detall - Detalle'!$V:$V,'Detall - Detalle'!$AA:$AA,'Pressupost - Pressupuesto'!$A10,'Detall - Detalle'!$Z:$Z,J$4),SUMIFS('Detall - Detalle'!$V:$V,'Detall - Detalle'!$T:$T,'Pressupost - Pressupuesto'!$A$1,'Detall - Detalle'!$AA:$AA,'Pressupost - Pressupuesto'!$A10,'Detall - Detalle'!$Z:$Z,J$4))","v":0},{"$f":"+IF(OR($A$1=\"TOTES LES ACTIVITATS\",$A$1=\"\"),SUMIFS('Detall - Detalle'!$V:$V,'Detall - Detalle'!$AA:$AA,'Pressupost - Pressupuesto'!$A10,'Detall - Detalle'!$Z:$Z,K$4),SUMIFS('Detall - Detalle'!$V:$V,'Detall - Detalle'!$T:$T,'Pressupost - Pressupuesto'!$A$1,'Detall - Detalle'!$AA:$AA,'Pressupost - Pressupuesto'!$A10,'Detall - Detalle'!$Z:$Z,K$4))","v":0},{"$f":"+IF(OR($A$1=\"TOTES LES ACTIVITATS\",$A$1=\"\"),SUMIFS('Detall - Detalle'!$V:$V,'Detall - Detalle'!$AA:$AA,'Pressupost - Pressupuesto'!$A10,'Detall - Detalle'!$Z:$Z,L$4),SUMIFS('Detall - Detalle'!$V:$V,'Detall - Detalle'!$T:$T,'Pressupost - Pressupuesto'!$A$1,'Detall - Detalle'!$AA:$AA,'Pressupost - Pressupuesto'!$A10,'Detall - Detalle'!$Z:$Z,L$4))","v":0},{"$f":"+IF(OR($A$1=\"TOTES LES ACTIVITATS\",$A$1=\"\"),SUMIFS('Detall - Detalle'!$V:$V,'Detall - Detalle'!$AA:$AA,'Pressupost - Pressupuesto'!$A10,'Detall - Detalle'!$Z:$Z,M$4),SUMIFS('Detall - Detalle'!$V:$V,'Detall - Detalle'!$T:$T,'Pressupost - Pressupuesto'!$A$1,'Detall - Detalle'!$AA:$AA,'Pressupost - Pressupuesto'!$A10,'Detall - Detalle'!$Z:$Z,M$4))","v":0},{"$f":"+IF(OR($A$1=\"TOTES LES ACTIVITATS\",$A$1=\"\"),SUMIFS('Detall - Detalle'!$V:$V,'Detall - Detalle'!$AA:$AA,'Pressupost - Pressupuesto'!$A10,'Detall - Detalle'!$Z:$Z,N$4),SUMIFS('Detall - Detalle'!$V:$V,'Detall - Detalle'!$T:$T,'Pressupost - Pressupuesto'!$A$1,'Detall - Detalle'!$AA:$AA,'Pressupost - Pressupuesto'!$A10,'Detall - Detalle'!$Z:$Z,N$4))","v":0},{"$f":"+SUMIFS('Detall - Detalle'!$V:$V,'Detall - Detalle'!$T:$T,O$4,'Detall - Detalle'!$AA:$AA,'Pressupost - Pressupuesto'!$A10)","v":0},{"$f":"+SUMIFS('Detall - Detalle'!$V:$V,'Detall - Detalle'!$T:$T,P$4,'Detall - Detalle'!$AA:$AA,'Pressupost - Pressupuesto'!$A10)","v":0},{"$f":"+SUMIFS('Detall - Detalle'!$V:$V,'Detall - Detalle'!$T:$T,Q$4,'Detall - Detalle'!$AA:$AA,'Pressupost - Pressupuesto'!$A10)","v":0},{"$f":"+SUMIFS('Detall - Detalle'!$V:$V,'Detall - Detalle'!$T:$T,R$4,'Detall - Detalle'!$AA:$AA,'Pressupost - Pressupuesto'!$A10)","v":0},{"$f":"+SUMIFS('Detall - Detalle'!$V:$V,'Detall - Detalle'!$T:$T,S$4,'Detall - Detalle'!$AA:$AA,'Pressupost - Pressupuesto'!$A10)","v":0},{"$f":"+SUMIFS('Detall - Detalle'!$V:$V,'Detall - Detalle'!$T:$T,T$4,'Detall - Detalle'!$AA:$AA,'Pressupost - Pressupuesto'!$A10)","v":0},{"$f":"+SUMIFS('Detall - Detalle'!$V:$V,'Detall - Detalle'!$T:$T,U$4,'Detall - Detalle'!$AA:$AA,'Pressupost - Pressupuesto'!$A10)","v":0},{"$f":"+SUMIFS('Detall - Detalle'!$V:$V,'Detall - Detalle'!$T:$T,V$4,'Detall - Detalle'!$AA:$AA,'Pressupost - Pressupuesto'!$A10)","v":0},{"$f":"+SUMIFS('Detall - Detalle'!$V:$V,'Detall - Detalle'!$T:$T,W$4,'Detall - Detalle'!$AA:$AA,'Pressupost - Pressupuesto'!$A10)","v":0},{"$f":"+SUMIFS('Detall - Detalle'!$V:$V,'Detall - Detalle'!$T:$T,X$4,'Detall - Detalle'!$AA:$AA,'Pressupost - Pressupuesto'!$A10)","v":0},{"$f":"+SUMIFS('Detall - Detalle'!$V:$V,'Detall - Detalle'!$T:$T,Y$4,'Detall - Detalle'!$AA:$AA,'Pressupost - Pressupuesto'!$A10)","v":0},{"$f":"+SUMIFS('Detall - Detalle'!$V:$V,'Detall - Detalle'!$T:$T,Z$4,'Detall - Detalle'!$AA:$AA,'Pressupost - Pressupuesto'!$A10)","v":0},{"$f":"+SUMIFS('Detall - Detalle'!$V:$V,'Detall - Detalle'!$T:$T,AA$4,'Detall - Detalle'!$AA:$AA,'Pressupost - Pressupuesto'!$A10)","v":0},{"$f":"+SUMIFS('Detall - Detalle'!$V:$V,'Detall - Detalle'!$T:$T,AB$4,'Detall - Detalle'!$AA:$AA,'Pressupost - Pressupuesto'!$A10)","v":0},{"$f":"+SUMIFS('Detall - Detalle'!$V:$V,'Detall - Detalle'!$T:$T,AC$4,'Detall - Detalle'!$AA:$AA,'Pressupost - Pressupuesto'!$A10)","v":0},{"$f":"+SUMIFS('Detall - Detalle'!$V:$V,'Detall - Detalle'!$T:$T,AD$4,'Detall - Detalle'!$AA:$AA,'Pressupost - Pressupuesto'!$A10)","v":0},{"$f":"+SUMIFS('Detall - Detalle'!$V:$V,'Detall - Detalle'!$T:$T,AE$4,'Detall - Detalle'!$AA:$AA,'Pressupost - Pressupuesto'!$A10)","v":0},{"$f":"+SUMIFS('Detall - Detalle'!$V:$V,'Detall - Detalle'!$T:$T,AF$4,'Detall - Detalle'!$AA:$AA,'Pressupost - Pressupuesto'!$A10)","v":0},{"$f":"+SUMIFS('Detall - Detalle'!$V:$V,'Detall - Detalle'!$T:$T,AG$4,'Detall - Detalle'!$AA:$AA,'Pressupost - Pressupuesto'!$A10)","v":0},{"$f":"+SUMIFS('Detall - Detalle'!$V:$V,'Detall - Detalle'!$T:$T,AH$4,'Detall - Detalle'!$AA:$AA,'Pressupost - Pressupuesto'!$A10)","v":0}]
["a3 Manteniment, conservació i reparació / Mantenimiento, conservación y reparación",0,{"$f":"+IF(OR($A$1=\"TOTES LES ACTIVITATS\",$A$1=\"\"),SUMIF('Detall - Detalle'!$AA:$AA,$A11,'Detall - Detalle'!$W:$W),SUMIFS('Detall - Detalle'!$W:$W,'Detall - Detalle'!$T:$T,'Pressupost - Pressupuesto'!$A$1,'Detall - Detalle'!$AA:$AA,'Pressupost - Pressupuesto'!$A11))","v":0},{"$f":"+IF(OR($A$1=\"TOTES LES ACTIVITATS\",$A$1=\"\"),SUMIF('Detall - Detalle'!$AA:$AA,$A11,'Detall - Detalle'!$X:$X),SUMIFS('Detall - Detalle'!$X:$X,'Detall - Detalle'!$T:$T,'Pressupost - Pressupuesto'!$A$1,'Detall - Detalle'!$AA:$AA,'Pressupost - Pressupuesto'!$A11))","v":0},{"$f":"+IF(OR($A$1=\"TOTES LES ACTIVITATS\",$A$1=\"\"),SUMIFS('Detall - Detalle'!$Y:$Y,'Detall - Detalle'!$AA:$AA,'Pressupost - Pressupuesto'!$A11,'Detall - Detalle'!$Z:$Z,E$4),SUMIFS('Detall - Detalle'!$Y:$Y,'Detall - Detalle'!$T:$T,'Pressupost - Pressupuesto'!$A$1,'Detall - Detalle'!$AA:$AA,'Pressupost - Pressupuesto'!$A11,'Detall - Detalle'!$Z:$Z,E$4))","v":0},{"$f":"+IF(OR($A$1=\"TOTES LES ACTIVITATS\",$A$1=\"\"),SUMIFS('Detall - Detalle'!$Y:$Y,'Detall - Detalle'!$AA:$AA,'Pressupost - Pressupuesto'!$A11,'Detall - Detalle'!$Z:$Z,F$4),SUMIFS('Detall - Detalle'!$Y:$Y,'Detall - Detalle'!$T:$T,'Pressupost - Pressupuesto'!$A$1,'Detall - Detalle'!$AA:$AA,'Pressupost - Pressupuesto'!$A11,'Detall - Detalle'!$Z:$Z,F$4))","v":0},{"$f":"+IF(OR($A$1=\"TOTES LES ACTIVITATS\",$A$1=\"\"),SUMIFS('Detall - Detalle'!$Y:$Y,'Detall - Detalle'!$AA:$AA,'Pressupost - Pressupuesto'!$A11,'Detall - Detalle'!$Z:$Z,G$4),SUMIFS('Detall - Detalle'!$Y:$Y,'Detall - Detalle'!$T:$T,'Pressupost - Pressupuesto'!$A$1,'Detall - Detalle'!$AA:$AA,'Pressupost - Pressupuesto'!$A11,'Detall - Detalle'!$Z:$Z,G$4))","v":0},{"$f":"+IF(OR($A$1=\"TOTES LES ACTIVITATS\",$A$1=\"\"),SUMIFS('Detall - Detalle'!$Y:$Y,'Detall - Detalle'!$AA:$AA,'Pressupost - Pressupuesto'!$A11,'Detall - Detalle'!$Z:$Z,H$4),SUMIFS('Detall - Detalle'!$Y:$Y,'Detall - Detalle'!$T:$T,'Pressupost - Pressupuesto'!$A$1,'Detall - Detalle'!$AA:$AA,'Pressupost - Pressupuesto'!$A11,'Detall - Detalle'!$Z:$Z,H$4))","v":0},{"$f":"+IF(OR($A$1=\"TOTES LES ACTIVITATS\",$A$1=\"\"),SUMIFS('Detall - Detalle'!$Y:$Y,'Detall - Detalle'!$AA:$AA,'Pressupost - Pressupuesto'!$A11,'Detall - Detalle'!$Z:$Z,I$4),SUMIFS('Detall - Detalle'!$Y:$Y,'Detall - Detalle'!$T:$T,'Pressupost - Pressupuesto'!$A$1,'Detall - Detalle'!$AA:$AA,'Pressupost - Pressupuesto'!$A11,'Detall - Detalle'!$Z:$Z,I$4))","v":0},{"$f":"+IF(OR($A$1=\"TOTES LES ACTIVITATS\",$A$1=\"\"),SUMIFS('Detall - Detalle'!$V:$V,'Detall - Detalle'!$AA:$AA,'Pressupost - Pressupuesto'!$A11,'Detall - Detalle'!$Z:$Z,J$4),SUMIFS('Detall - Detalle'!$V:$V,'Detall - Detalle'!$T:$T,'Pressupost - Pressupuesto'!$A$1,'Detall - Detalle'!$AA:$AA,'Pressupost - Pressupuesto'!$A11,'Detall - Detalle'!$Z:$Z,J$4))","v":0},{"$f":"+IF(OR($A$1=\"TOTES LES ACTIVITATS\",$A$1=\"\"),SUMIFS('Detall - Detalle'!$V:$V,'Detall - Detalle'!$AA:$AA,'Pressupost - Pressupuesto'!$A11,'Detall - Detalle'!$Z:$Z,K$4),SUMIFS('Detall - Detalle'!$V:$V,'Detall - Detalle'!$T:$T,'Pressupost - Pressupuesto'!$A$1,'Detall - Detalle'!$AA:$AA,'Pressupost - Pressupuesto'!$A11,'Detall - Detalle'!$Z:$Z,K$4))","v":0},{"$f":"+IF(OR($A$1=\"TOTES LES ACTIVITATS\",$A$1=\"\"),SUMIFS('Detall - Detalle'!$V:$V,'Detall - Detalle'!$AA:$AA,'Pressupost - Pressupuesto'!$A11,'Detall - Detalle'!$Z:$Z,L$4),SUMIFS('Detall - Detalle'!$V:$V,'Detall - Detalle'!$T:$T,'Pressupost - Pressupuesto'!$A$1,'Detall - Detalle'!$AA:$AA,'Pressupost - Pressupuesto'!$A11,'Detall - Detalle'!$Z:$Z,L$4))","v":0},{"$f":"+IF(OR($A$1=\"TOTES LES ACTIVITATS\",$A$1=\"\"),SUMIFS('Detall - Detalle'!$V:$V,'Detall - Detalle'!$AA:$AA,'Pressupost - Pressupuesto'!$A11,'Detall - Detalle'!$Z:$Z,M$4),SUMIFS('Detall - Detalle'!$V:$V,'Detall - Detalle'!$T:$T,'Pressupost - Pressupuesto'!$A$1,'Detall - Detalle'!$AA:$AA,'Pressupost - Pressupuesto'!$A11,'Detall - Detalle'!$Z:$Z,M$4))","v":0},{"$f":"+IF(OR($A$1=\"TOTES LES ACTIVITATS\",$A$1=\"\"),SUMIFS('Detall - Detalle'!$V:$V,'Detall - Detalle'!$AA:$AA,'Pressupost - Pressupuesto'!$A11,'Detall - Detalle'!$Z:$Z,N$4),SUMIFS('Detall - Detalle'!$V:$V,'Detall - Detalle'!$T:$T,'Pressupost - Pressupuesto'!$A$1,'Detall - Detalle'!$AA:$AA,'Pressupost - Pressupuesto'!$A11,'Detall - Detalle'!$Z:$Z,N$4))","v":0},{"$f":"+SUMIFS('Detall - Detalle'!$V:$V,'Detall - Detalle'!$T:$T,O$4,'Detall - Detalle'!$AA:$AA,'Pressupost - Pressupuesto'!$A11)","v":0},{"$f":"+SUMIFS('Detall - Detalle'!$V:$V,'Detall - Detalle'!$T:$T,P$4,'Detall - Detalle'!$AA:$AA,'Pressupost - Pressupuesto'!$A11)","v":0},{"$f":"+SUMIFS('Detall - Detalle'!$V:$V,'Detall - Detalle'!$T:$T,Q$4,'Detall - Detalle'!$AA:$AA,'Pressupost - Pressupuesto'!$A11)","v":0},{"$f":"+SUMIFS('Detall - Detalle'!$V:$V,'Detall - Detalle'!$T:$T,R$4,'Detall - Detalle'!$AA:$AA,'Pressupost - Pressupuesto'!$A11)","v":0},{"$f":"+SUMIFS('Detall - Detalle'!$V:$V,'Detall - Detalle'!$T:$T,S$4,'Detall - Detalle'!$AA:$AA,'Pressupost - Pressupuesto'!$A11)","v":0},{"$f":"+SUMIFS('Detall - Detalle'!$V:$V,'Detall - Detalle'!$T:$T,T$4,'Detall - Detalle'!$AA:$AA,'Pressupost - Pressupuesto'!$A11)","v":0},{"$f":"+SUMIFS('Detall - Detalle'!$V:$V,'Detall - Detalle'!$T:$T,U$4,'Detall - Detalle'!$AA:$AA,'Pressupost - Pressupuesto'!$A11)","v":0},{"$f":"+SUMIFS('Detall - Detalle'!$V:$V,'Detall - Detalle'!$T:$T,V$4,'Detall - Detalle'!$AA:$AA,'Pressupost - Pressupuesto'!$A11)","v":0},{"$f":"+SUMIFS('Detall - Detalle'!$V:$V,'Detall - Detalle'!$T:$T,W$4,'Detall - Detalle'!$AA:$AA,'Pressupost - Pressupuesto'!$A11)","v":0},{"$f":"+SUMIFS('Detall - Detalle'!$V:$V,'Detall - Detalle'!$T:$T,X$4,'Detall - Detalle'!$AA:$AA,'Pressupost - Pressupuesto'!$A11)","v":0},{"$f":"+SUMIFS('Detall - Detalle'!$V:$V,'Detall - Detalle'!$T:$T,Y$4,'Detall - Detalle'!$AA:$AA,'Pressupost - Pressupuesto'!$A11)","v":0},{"$f":"+SUMIFS('Detall - Detalle'!$V:$V,'Detall - Detalle'!$T:$T,Z$4,'Detall - Detalle'!$AA:$AA,'Pressupost - Pressupuesto'!$A11)","v":0},{"$f":"+SUMIFS('Detall - Detalle'!$V:$V,'Detall - Detalle'!$T:$T,AA$4,'Detall - Detalle'!$AA:$AA,'Pressupost - Pressupuesto'!$A11)","v":0},{"$f":"+SUMIFS('Detall - Detalle'!$V:$V,'Detall - Detalle'!$T:$T,AB$4,'Detall - Detalle'!$AA:$AA,'Pressupost - Pressupuesto'!$A11)","v":0},{"$f":"+SUMIFS('Detall - Detalle'!$V:$V,'Detall - Detalle'!$T:$T,AC$4,'Detall - Detalle'!$AA:$AA,'Pressupost - Pressupuesto'!$A11)","v":0},{"$f":"+SUMIFS('Detall - Detalle'!$V:$V,'Detall - Detalle'!$T:$T,AD$4,'Detall - Detalle'!$AA:$AA,'Pressupost - Pressupuesto'!$A11)","v":0},{"$f":"+SUMIFS('Detall - Detalle'!$V:$V,'Detall - Detalle'!$T:$T,AE$4,'Detall - Detalle'!$AA:$AA,'Pressupost - Pressupuesto'!$A11)","v":0},{"$f":"+SUMIFS('Detall - Detalle'!$V:$V,'Detall - Detalle'!$T:$T,AF$4,'Detall - Detalle'!$AA:$AA,'Pressupost - Pressupuesto'!$A11)","v":0},{"$f":"+SUMIFS('Detall - Detalle'!$V:$V,'Detall - Detalle'!$T:$T,AG$4,'Detall - Detalle'!$AA:$AA,'Pressupost - Pressupuesto'!$A11)","v":0},{"$f":"+SUMIFS('Detall - Detalle'!$V:$V,'Detall - Detalle'!$T:$T,AH$4,'Detall - Detalle'!$AA:$AA,'Pressupost - Pressupuesto'!$A11)","v":0}]
["a4 Material ordinari / Material ordinario",0,{"$f":"+IF(OR($A$1=\"TOTES LES ACTIVITATS\",$A$1=\"\"),SUMIF('Detall - Detalle'!$AA:$AA,$A12,'Detall - Detalle'!$W:$W),SUMIFS('Detall - Detalle'!$W:$W,'Detall - Detalle'!$T:$T,'Pressupost - Pressupuesto'!$A$1,'Detall - Detalle'!$AA:$AA,'Pressupost - Pressupuesto'!$A12))","v":0},{"$f":"+IF(OR($A$1=\"TOTES LES ACTIVITATS\",$A$1=\"\"),SUMIF('Detall - Detalle'!$AA:$AA,$A12,'Detall - Detalle'!$X:$X),SUMIFS('Detall - Detalle'!$X:$X,'Detall - Detalle'!$T:$T,'Pressupost - Pressupuesto'!$A$1,'Detall - Detalle'!$AA:$AA,'Pressupost - Pressupuesto'!$A12))","v":0},{"$f":"+IF(OR($A$1=\"TOTES LES ACTIVITATS\",$A$1=\"\"),SUMIFS('Detall - Detalle'!$Y:$Y,'Detall - Detalle'!$AA:$AA,'Pressupost - Pressupuesto'!$A12,'Detall - Detalle'!$Z:$Z,E$4),SUMIFS('Detall - Detalle'!$Y:$Y,'Detall - Detalle'!$T:$T,'Pressupost - Pressupuesto'!$A$1,'Detall - Detalle'!$AA:$AA,'Pressupost - Pressupuesto'!$A12,'Detall - Detalle'!$Z:$Z,E$4))","v":0},{"$f":"+IF(OR($A$1=\"TOTES LES ACTIVITATS\",$A$1=\"\"),SUMIFS('Detall - Detalle'!$Y:$Y,'Detall - Detalle'!$AA:$AA,'Pressupost - Pressupuesto'!$A12,'Detall - Detalle'!$Z:$Z,F$4),SUMIFS('Detall - Detalle'!$Y:$Y,'Detall - Detalle'!$T:$T,'Pressupost - Pressupuesto'!$A$1,'Detall - Detalle'!$AA:$AA,'Pressupost - Pressupuesto'!$A12,'Detall - Detalle'!$Z:$Z,F$4))","v":0},{"$f":"+IF(OR($A$1=\"TOTES LES ACTIVITATS\",$A$1=\"\"),SUMIFS('Detall - Detalle'!$Y:$Y,'Detall - Detalle'!$AA:$AA,'Pressupost - Pressupuesto'!$A12,'Detall - Detalle'!$Z:$Z,G$4),SUMIFS('Detall - Detalle'!$Y:$Y,'Detall - Detalle'!$T:$T,'Pressupost - Pressupuesto'!$A$1,'Detall - Detalle'!$AA:$AA,'Pressupost - Pressupuesto'!$A12,'Detall - Detalle'!$Z:$Z,G$4))","v":0},{"$f":"+IF(OR($A$1=\"TOTES LES ACTIVITATS\",$A$1=\"\"),SUMIFS('Detall - Detalle'!$Y:$Y,'Detall - Detalle'!$AA:$AA,'Pressupost - Pressupuesto'!$A12,'Detall - Detalle'!$Z:$Z,H$4),SUMIFS('Detall - Detalle'!$Y:$Y,'Detall - Detalle'!$T:$T,'Pressupost - Pressupuesto'!$A$1,'Detall - Detalle'!$AA:$AA,'Pressupost - Pressupuesto'!$A12,'Detall - Detalle'!$Z:$Z,H$4))","v":0},{"$f":"+IF(OR($A$1=\"TOTES LES ACTIVITATS\",$A$1=\"\"),SUMIFS('Detall - Detalle'!$Y:$Y,'Detall - Detalle'!$AA:$AA,'Pressupost - Pressupuesto'!$A12,'Detall - Detalle'!$Z:$Z,I$4),SUMIFS('Detall - Detalle'!$Y:$Y,'Detall - Detalle'!$T:$T,'Pressupost - Pressupuesto'!$A$1,'Detall - Detalle'!$AA:$AA,'Pressupost - Pressupuesto'!$A12,'Detall - Detalle'!$Z:$Z,I$4))","v":0},{"$f":"+IF(OR($A$1=\"TOTES LES ACTIVITATS\",$A$1=\"\"),SUMIFS('Detall - Detalle'!$V:$V,'Detall - Detalle'!$AA:$AA,'Pressupost - Pressupuesto'!$A12,'Detall - Detalle'!$Z:$Z,J$4),SUMIFS('Detall - Detalle'!$V:$V,'Detall - Detalle'!$T:$T,'Pressupost - Pressupuesto'!$A$1,'Detall - Detalle'!$AA:$AA,'Pressupost - Pressupuesto'!$A12,'Detall - Detalle'!$Z:$Z,J$4))","v":0},{"$f":"+IF(OR($A$1=\"TOTES LES ACTIVITATS\",$A$1=\"\"),SUMIFS('Detall - Detalle'!$V:$V,'Detall - Detalle'!$AA:$AA,'Pressupost - Pressupuesto'!$A12,'Detall - Detalle'!$Z:$Z,K$4),SUMIFS('Detall - Detalle'!$V:$V,'Detall - Detalle'!$T:$T,'Pressupost - Pressupuesto'!$A$1,'Detall - Detalle'!$AA:$AA,'Pressupost - Pressupuesto'!$A12,'Detall - Detalle'!$Z:$Z,K$4))","v":0},{"$f":"+IF(OR($A$1=\"TOTES LES ACTIVITATS\",$A$1=\"\"),SUMIFS('Detall - Detalle'!$V:$V,'Detall - Detalle'!$AA:$AA,'Pressupost - Pressupuesto'!$A12,'Detall - Detalle'!$Z:$Z,L$4),SUMIFS('Detall - Detalle'!$V:$V,'Detall - Detalle'!$T:$T,'Pressupost - Pressupuesto'!$A$1,'Detall - Detalle'!$AA:$AA,'Pressupost - Pressupuesto'!$A12,'Detall - Detalle'!$Z:$Z,L$4))","v":0},{"$f":"+IF(OR($A$1=\"TOTES LES ACTIVITATS\",$A$1=\"\"),SUMIFS('Detall - Detalle'!$V:$V,'Detall - Detalle'!$AA:$AA,'Pressupost - Pressupuesto'!$A12,'Detall - Detalle'!$Z:$Z,M$4),SUMIFS('Detall - Detalle'!$V:$V,'Detall - Detalle'!$T:$T,'Pressupost - Pressupuesto'!$A$1,'Detall - Detalle'!$AA:$AA,'Pressupost - Pressupuesto'!$A12,'Detall - Detalle'!$Z:$Z,M$4))","v":0},{"$f":"+IF(OR($A$1=\"TOTES LES ACTIVITATS\",$A$1=\"\"),SUMIFS('Detall - Detalle'!$V:$V,'Detall - Detalle'!$AA:$AA,'Pressupost - Pressupuesto'!$A12,'Detall - Detalle'!$Z:$Z,N$4),SUMIFS('Detall - Detalle'!$V:$V,'Detall - Detalle'!$T:$T,'Pressupost - Pressupuesto'!$A$1,'Detall - Detalle'!$AA:$AA,'Pressupost - Pressupuesto'!$A12,'Detall - Detalle'!$Z:$Z,N$4))","v":0},{"$f":"+SUMIFS('Detall - Detalle'!$V:$V,'Detall - Detalle'!$T:$T,O$4,'Detall - Detalle'!$AA:$AA,'Pressupost - Pressupuesto'!$A12)","v":0},{"$f":"+SUMIFS('Detall - Detalle'!$V:$V,'Detall - Detalle'!$T:$T,P$4,'Detall - Detalle'!$AA:$AA,'Pressupost - Pressupuesto'!$A12)","v":0},{"$f":"+SUMIFS('Detall - Detalle'!$V:$V,'Detall - Detalle'!$T:$T,Q$4,'Detall - Detalle'!$AA:$AA,'Pressupost - Pressupuesto'!$A12)","v":0},{"$f":"+SUMIFS('Detall - Detalle'!$V:$V,'Detall - Detalle'!$T:$T,R$4,'Detall - Detalle'!$AA:$AA,'Pressupost - Pressupuesto'!$A12)","v":0},{"$f":"+SUMIFS('Detall - Detalle'!$V:$V,'Detall - Detalle'!$T:$T,S$4,'Detall - Detalle'!$AA:$AA,'Pressupost - Pressupuesto'!$A12)","v":0},{"$f":"+SUMIFS('Detall - Detalle'!$V:$V,'Detall - Detalle'!$T:$T,T$4,'Detall - Detalle'!$AA:$AA,'Pressupost - Pressupuesto'!$A12)","v":0},{"$f":"+SUMIFS('Detall - Detalle'!$V:$V,'Detall - Detalle'!$T:$T,U$4,'Detall - Detalle'!$AA:$AA,'Pressupost - Pressupuesto'!$A12)","v":0},{"$f":"+SUMIFS('Detall - Detalle'!$V:$V,'Detall - Detalle'!$T:$T,V$4,'Detall - Detalle'!$AA:$AA,'Pressupost - Pressupuesto'!$A12)","v":0},{"$f":"+SUMIFS('Detall - Detalle'!$V:$V,'Detall - Detalle'!$T:$T,W$4,'Detall - Detalle'!$AA:$AA,'Pressupost - Pressupuesto'!$A12)","v":0},{"$f":"+SUMIFS('Detall - Detalle'!$V:$V,'Detall - Detalle'!$T:$T,X$4,'Detall - Detalle'!$AA:$AA,'Pressupost - Pressupuesto'!$A12)","v":0},{"$f":"+SUMIFS('Detall - Detalle'!$V:$V,'Detall - Detalle'!$T:$T,Y$4,'Detall - Detalle'!$AA:$AA,'Pressupost - Pressupuesto'!$A12)","v":0},{"$f":"+SUMIFS('Detall - Detalle'!$V:$V,'Detall - Detalle'!$T:$T,Z$4,'Detall - Detalle'!$AA:$AA,'Pressupost - Pressupuesto'!$A12)","v":0},{"$f":"+SUMIFS('Detall - Detalle'!$V:$V,'Detall - Detalle'!$T:$T,AA$4,'Detall - Detalle'!$AA:$AA,'Pressupost - Pressupuesto'!$A12)","v":0},{"$f":"+SUMIFS('Detall - Detalle'!$V:$V,'Detall - Detalle'!$T:$T,AB$4,'Detall - Detalle'!$AA:$AA,'Pressupost - Pressupuesto'!$A12)","v":0},{"$f":"+SUMIFS('Detall - Detalle'!$V:$V,'Detall - Detalle'!$T:$T,AC$4,'Detall - Detalle'!$AA:$AA,'Pressupost - Pressupuesto'!$A12)","v":0},{"$f":"+SUMIFS('Detall - Detalle'!$V:$V,'Detall - Detalle'!$T:$T,AD$4,'Detall - Detalle'!$AA:$AA,'Pressupost - Pressupuesto'!$A12)","v":0},{"$f":"+SUMIFS('Detall - Detalle'!$V:$V,'Detall - Detalle'!$T:$T,AE$4,'Detall - Detalle'!$AA:$AA,'Pressupost - Pressupuesto'!$A12)","v":0},{"$f":"+SUMIFS('Detall - Detalle'!$V:$V,'Detall - Detalle'!$T:$T,AF$4,'Detall - Detalle'!$AA:$AA,'Pressupost - Pressupuesto'!$A12)","v":0},{"$f":"+SUMIFS('Detall - Detalle'!$V:$V,'Detall - Detalle'!$T:$T,AG$4,'Detall - Detalle'!$AA:$AA,'Pressupost - Pressupuesto'!$A12)","v":0},{"$f":"+SUMIFS('Detall - Detalle'!$V:$V,'Detall - Detalle'!$T:$T,AH$4,'Detall - Detalle'!$AA:$AA,'Pressupost - Pressupuesto'!$A12)","v":0}]
["a5 Subministraments / Suministros",0,{"$f":"+IF(OR($A$1=\"TOTES LES ACTIVITATS\",$A$1=\"\"),SUMIF('Detall - Detalle'!$AA:$AA,$A13,'Detall - Detalle'!$W:$W),SUMIFS('Detall - Detalle'!$W:$W,'Detall - Detalle'!$T:$T,'Pressupost - Pressupuesto'!$A$1,'Detall - Detalle'!$AA:$AA,'Pressupost - Pressupuesto'!$A13))","v":0},{"$f":"+IF(OR($A$1=\"TOTES LES ACTIVITATS\",$A$1=\"\"),SUMIF('Detall - Detalle'!$AA:$AA,$A13,'Detall - Detalle'!$X:$X),SUMIFS('Detall - Detalle'!$X:$X,'Detall - Detalle'!$T:$T,'Pressupost - Pressupuesto'!$A$1,'Detall - Detalle'!$AA:$AA,'Pressupost - Pressupuesto'!$A13))","v":0},{"$f":"+IF(OR($A$1=\"TOTES LES ACTIVITATS\",$A$1=\"\"),SUMIFS('Detall - Detalle'!$Y:$Y,'Detall - Detalle'!$AA:$AA,'Pressupost - Pressupuesto'!$A13,'Detall - Detalle'!$Z:$Z,E$4),SUMIFS('Detall - Detalle'!$Y:$Y,'Detall - Detalle'!$T:$T,'Pressupost - Pressupuesto'!$A$1,'Detall - Detalle'!$AA:$AA,'Pressupost - Pressupuesto'!$A13,'Detall - Detalle'!$Z:$Z,E$4))","v":0},{"$f":"+IF(OR($A$1=\"TOTES LES ACTIVITATS\",$A$1=\"\"),SUMIFS('Detall - Detalle'!$Y:$Y,'Detall - Detalle'!$AA:$AA,'Pressupost - Pressupuesto'!$A13,'Detall - Detalle'!$Z:$Z,F$4),SUMIFS('Detall - Detalle'!$Y:$Y,'Detall - Detalle'!$T:$T,'Pressupost - Pressupuesto'!$A$1,'Detall - Detalle'!$AA:$AA,'Pressupost - Pressupuesto'!$A13,'Detall - Detalle'!$Z:$Z,F$4))","v":0},{"$f":"+IF(OR($A$1=\"TOTES LES ACTIVITATS\",$A$1=\"\"),SUMIFS('Detall - Detalle'!$Y:$Y,'Detall - Detalle'!$AA:$AA,'Pressupost - Pressupuesto'!$A13,'Detall - Detalle'!$Z:$Z,G$4),SUMIFS('Detall - Detalle'!$Y:$Y,'Detall - Detalle'!$T:$T,'Pressupost - Pressupuesto'!$A$1,'Detall - Detalle'!$AA:$AA,'Pressupost - Pressupuesto'!$A13,'Detall - Detalle'!$Z:$Z,G$4))","v":0},{"$f":"+IF(OR($A$1=\"TOTES LES ACTIVITATS\",$A$1=\"\"),SUMIFS('Detall - Detalle'!$Y:$Y,'Detall - Detalle'!$AA:$AA,'Pressupost - Pressupuesto'!$A13,'Detall - Detalle'!$Z:$Z,H$4),SUMIFS('Detall - Detalle'!$Y:$Y,'Detall - Detalle'!$T:$T,'Pressupost - Pressupuesto'!$A$1,'Detall - Detalle'!$AA:$AA,'Pressupost - Pressupuesto'!$A13,'Detall - Detalle'!$Z:$Z,H$4))","v":0},{"$f":"+IF(OR($A$1=\"TOTES LES ACTIVITATS\",$A$1=\"\"),SUMIFS('Detall - Detalle'!$Y:$Y,'Detall - Detalle'!$AA:$AA,'Pressupost - Pressupuesto'!$A13,'Detall - Detalle'!$Z:$Z,I$4),SUMIFS('Detall - Detalle'!$Y:$Y,'Detall - Detalle'!$T:$T,'Pressupost - Pressupuesto'!$A$1,'Detall - Detalle'!$AA:$AA,'Pressupost - Pressupuesto'!$A13,'Detall - Detalle'!$Z:$Z,I$4))","v":0},{"$f":"+IF(OR($A$1=\"TOTES LES ACTIVITATS\",$A$1=\"\"),SUMIFS('Detall - Detalle'!$V:$V,'Detall - Detalle'!$AA:$AA,'Pressupost - Pressupuesto'!$A13,'Detall - Detalle'!$Z:$Z,J$4),SUMIFS('Detall - Detalle'!$V:$V,'Detall - Detalle'!$T:$T,'Pressupost - Pressupuesto'!$A$1,'Detall - Detalle'!$AA:$AA,'Pressupost - Pressupuesto'!$A13,'Detall - Detalle'!$Z:$Z,J$4))","v":0},{"$f":"+IF(OR($A$1=\"TOTES LES ACTIVITATS\",$A$1=\"\"),SUMIFS('Detall - Detalle'!$V:$V,'Detall - Detalle'!$AA:$AA,'Pressupost - Pressupuesto'!$A13,'Detall - Detalle'!$Z:$Z,K$4),SUMIFS('Detall - Detalle'!$V:$V,'Detall - Detalle'!$T:$T,'Pressupost - Pressupuesto'!$A$1,'Detall - Detalle'!$AA:$AA,'Pressupost - Pressupuesto'!$A13,'Detall - Detalle'!$Z:$Z,K$4))","v":0},{"$f":"+IF(OR($A$1=\"TOTES LES ACTIVITATS\",$A$1=\"\"),SUMIFS('Detall - Detalle'!$V:$V,'Detall - Detalle'!$AA:$AA,'Pressupost - Pressupuesto'!$A13,'Detall - Detalle'!$Z:$Z,L$4),SUMIFS('Detall - Detalle'!$V:$V,'Detall - Detalle'!$T:$T,'Pressupost - Pressupuesto'!$A$1,'Detall - Detalle'!$AA:$AA,'Pressupost - Pressupuesto'!$A13,'Detall - Detalle'!$Z:$Z,L$4))","v":0},{"$f":"+IF(OR($A$1=\"TOTES LES ACTIVITATS\",$A$1=\"\"),SUMIFS('Detall - Detalle'!$V:$V,'Detall - Detalle'!$AA:$AA,'Pressupost - Pressupuesto'!$A13,'Detall - Detalle'!$Z:$Z,M$4),SUMIFS('Detall - Detalle'!$V:$V,'Detall - Detalle'!$T:$T,'Pressupost - Pressupuesto'!$A$1,'Detall - Detalle'!$AA:$AA,'Pressupost - Pressupuesto'!$A13,'Detall - Detalle'!$Z:$Z,M$4))","v":0},{"$f":"+IF(OR($A$1=\"TOTES LES ACTIVITATS\",$A$1=\"\"),SUMIFS('Detall - Detalle'!$V:$V,'Detall - Detalle'!$AA:$AA,'Pressupost - Pressupuesto'!$A13,'Detall - Detalle'!$Z:$Z,N$4),SUMIFS('Detall - Detalle'!$V:$V,'Detall - Detalle'!$T:$T,'Pressupost - Pressupuesto'!$A$1,'Detall - Detalle'!$AA:$AA,'Pressupost - Pressupuesto'!$A13,'Detall - Detalle'!$Z:$Z,N$4))","v":0},{"$f":"+SUMIFS('Detall - Detalle'!$V:$V,'Detall - Detalle'!$T:$T,O$4,'Detall - Detalle'!$AA:$AA,'Pressupost - Pressupuesto'!$A13)","v":0},{"$f":"+SUMIFS('Detall - Detalle'!$V:$V,'Detall - Detalle'!$T:$T,P$4,'Detall - Detalle'!$AA:$AA,'Pressupost - Pressupuesto'!$A13)","v":0},{"$f":"+SUMIFS('Detall - Detalle'!$V:$V,'Detall - Detalle'!$T:$T,Q$4,'Detall - Detalle'!$AA:$AA,'Pressupost - Pressupuesto'!$A13)","v":0},{"$f":"+SUMIFS('Detall - Detalle'!$V:$V,'Detall - Detalle'!$T:$T,R$4,'Detall - Detalle'!$AA:$AA,'Pressupost - Pressupuesto'!$A13)","v":0},{"$f":"+SUMIFS('Detall - Detalle'!$V:$V,'Detall - Detalle'!$T:$T,S$4,'Detall - Detalle'!$AA:$AA,'Pressupost - Pressupuesto'!$A13)","v":0},{"$f":"+SUMIFS('Detall - Detalle'!$V:$V,'Detall - Detalle'!$T:$T,T$4,'Detall - Detalle'!$AA:$AA,'Pressupost - Pressupuesto'!$A13)","v":0},{"$f":"+SUMIFS('Detall - Detalle'!$V:$V,'Detall - Detalle'!$T:$T,U$4,'Detall - Detalle'!$AA:$AA,'Pressupost - Pressupuesto'!$A13)","v":0},{"$f":"+SUMIFS('Detall - Detalle'!$V:$V,'Detall - Detalle'!$T:$T,V$4,'Detall - Detalle'!$AA:$AA,'Pressupost - Pressupuesto'!$A13)","v":0},{"$f":"+SUMIFS('Detall - Detalle'!$V:$V,'Detall - Detalle'!$T:$T,W$4,'Detall - Detalle'!$AA:$AA,'Pressupost - Pressupuesto'!$A13)","v":0},{"$f":"+SUMIFS('Detall - Detalle'!$V:$V,'Detall - Detalle'!$T:$T,X$4,'Detall - Detalle'!$AA:$AA,'Pressupost - Pressupuesto'!$A13)","v":0},{"$f":"+SUMIFS('Detall - Detalle'!$V:$V,'Detall - Detalle'!$T:$T,Y$4,'Detall - Detalle'!$AA:$AA,'Pressupost - Pressupuesto'!$A13)","v":0},{"$f":"+SUMIFS('Detall - Detalle'!$V:$V,'Detall - Detalle'!$T:$T,Z$4,'Detall - Detalle'!$AA:$AA,'Pressupost - Pressupuesto'!$A13)","v":0},{"$f":"+SUMIFS('Detall - Detalle'!$V:$V,'Detall - Detalle'!$T:$T,AA$4,'Detall - Detalle'!$AA:$AA,'Pressupost - Pressupuesto'!$A13)","v":0},{"$f":"+SUMIFS('Detall - Detalle'!$V:$V,'Detall - Detalle'!$T:$T,AB$4,'Detall - Detalle'!$AA:$AA,'Pressupost - Pressupuesto'!$A13)","v":0},{"$f":"+SUMIFS('Detall - Detalle'!$V:$V,'Detall - Detalle'!$T:$T,AC$4,'Detall - Detalle'!$AA:$AA,'Pressupost - Pressupuesto'!$A13)","v":0},{"$f":"+SUMIFS('Detall - Detalle'!$V:$V,'Detall - Detalle'!$T:$T,AD$4,'Detall - Detalle'!$AA:$AA,'Pressupost - Pressupuesto'!$A13)","v":0},{"$f":"+SUMIFS('Detall - Detalle'!$V:$V,'Detall - Detalle'!$T:$T,AE$4,'Detall - Detalle'!$AA:$AA,'Pressupost - Pressupuesto'!$A13)","v":0},{"$f":"+SUMIFS('Detall - Detalle'!$V:$V,'Detall - Detalle'!$T:$T,AF$4,'Detall - Detalle'!$AA:$AA,'Pressupost - Pressupuesto'!$A13)","v":0},{"$f":"+SUMIFS('Detall - Detalle'!$V:$V,'Detall - Detalle'!$T:$T,AG$4,'Detall - Detalle'!$AA:$AA,'Pressupost - Pressupuesto'!$A13)","v":0},{"$f":"+SUMIFS('Detall - Detalle'!$V:$V,'Detall - Detalle'!$T:$T,AH$4,'Detall - Detalle'!$AA:$AA,'Pressupost - Pressupuesto'!$A13)","v":0}]
["a6 Comunicacions, despeses postals i missatgeria / Comunicaciones, gastos postales y mensajería",0,{"$f":"+IF(OR($A$1=\"TOTES LES ACTIVITATS\",$A$1=\"\"),SUMIF('Detall - Detalle'!$AA:$AA,$A14,'Detall - Detalle'!$W:$W),SUMIFS('Detall - Detalle'!$W:$W,'Detall - Detalle'!$T:$T,'Pressupost - Pressupuesto'!$A$1,'Detall - Detalle'!$AA:$AA,'Pressupost - Pressupuesto'!$A14))","v":0},{"$f":"+IF(OR($A$1=\"TOTES LES ACTIVITATS\",$A$1=\"\"),SUMIF('Detall - Detalle'!$AA:$AA,$A14,'Detall - Detalle'!$X:$X),SUMIFS('Detall - Detalle'!$X:$X,'Detall - Detalle'!$T:$T,'Pressupost - Pressupuesto'!$A$1,'Detall - Detalle'!$AA:$AA,'Pressupost - Pressupuesto'!$A14))","v":0},{"$f":"+IF(OR($A$1=\"TOTES LES ACTIVITATS\",$A$1=\"\"),SUMIFS('Detall - Detalle'!$Y:$Y,'Detall - Detalle'!$AA:$AA,'Pressupost - Pressupuesto'!$A14,'Detall - Detalle'!$Z:$Z,E$4),SUMIFS('Detall - Detalle'!$Y:$Y,'Detall - Detalle'!$T:$T,'Pressupost - Pressupuesto'!$A$1,'Detall - Detalle'!$AA:$AA,'Pressupost - Pressupuesto'!$A14,'Detall - Detalle'!$Z:$Z,E$4))","v":0},{"$f":"+IF(OR($A$1=\"TOTES LES ACTIVITATS\",$A$1=\"\"),SUMIFS('Detall - Detalle'!$Y:$Y,'Detall - Detalle'!$AA:$AA,'Pressupost - Pressupuesto'!$A14,'Detall - Detalle'!$Z:$Z,F$4),SUMIFS('Detall - Detalle'!$Y:$Y,'Detall - Detalle'!$T:$T,'Pressupost - Pressupuesto'!$A$1,'Detall - Detalle'!$AA:$AA,'Pressupost - Pressupuesto'!$A14,'Detall - Detalle'!$Z:$Z,F$4))","v":0},{"$f":"+IF(OR($A$1=\"TOTES LES ACTIVITATS\",$A$1=\"\"),SUMIFS('Detall - Detalle'!$Y:$Y,'Detall - Detalle'!$AA:$AA,'Pressupost - Pressupuesto'!$A14,'Detall - Detalle'!$Z:$Z,G$4),SUMIFS('Detall - Detalle'!$Y:$Y,'Detall - Detalle'!$T:$T,'Pressupost - Pressupuesto'!$A$1,'Detall - Detalle'!$AA:$AA,'Pressupost - Pressupuesto'!$A14,'Detall - Detalle'!$Z:$Z,G$4))","v":0},{"$f":"+IF(OR($A$1=\"TOTES LES ACTIVITATS\",$A$1=\"\"),SUMIFS('Detall - Detalle'!$Y:$Y,'Detall - Detalle'!$AA:$AA,'Pressupost - Pressupuesto'!$A14,'Detall - Detalle'!$Z:$Z,H$4),SUMIFS('Detall - Detalle'!$Y:$Y,'Detall - Detalle'!$T:$T,'Pressupost - Pressupuesto'!$A$1,'Detall - Detalle'!$AA:$AA,'Pressupost - Pressupuesto'!$A14,'Detall - Detalle'!$Z:$Z,H$4))","v":0},{"$f":"+IF(OR($A$1=\"TOTES LES ACTIVITATS\",$A$1=\"\"),SUMIFS('Detall - Detalle'!$Y:$Y,'Detall - Detalle'!$AA:$AA,'Pressupost - Pressupuesto'!$A14,'Detall - Detalle'!$Z:$Z,I$4),SUMIFS('Detall - Detalle'!$Y:$Y,'Detall - Detalle'!$T:$T,'Pressupost - Pressupuesto'!$A$1,'Detall - Detalle'!$AA:$AA,'Pressupost - Pressupuesto'!$A14,'Detall - Detalle'!$Z:$Z,I$4))","v":0},{"$f":"+IF(OR($A$1=\"TOTES LES ACTIVITATS\",$A$1=\"\"),SUMIFS('Detall - Detalle'!$V:$V,'Detall - Detalle'!$AA:$AA,'Pressupost - Pressupuesto'!$A14,'Detall - Detalle'!$Z:$Z,J$4),SUMIFS('Detall - Detalle'!$V:$V,'Detall - Detalle'!$T:$T,'Pressupost - Pressupuesto'!$A$1,'Detall - Detalle'!$AA:$AA,'Pressupost - Pressupuesto'!$A14,'Detall - Detalle'!$Z:$Z,J$4))","v":0},{"$f":"+IF(OR($A$1=\"TOTES LES ACTIVITATS\",$A$1=\"\"),SUMIFS('Detall - Detalle'!$V:$V,'Detall - Detalle'!$AA:$AA,'Pressupost - Pressupuesto'!$A14,'Detall - Detalle'!$Z:$Z,K$4),SUMIFS('Detall - Detalle'!$V:$V,'Detall - Detalle'!$T:$T,'Pressupost - Pressupuesto'!$A$1,'Detall - Detalle'!$AA:$AA,'Pressupost - Pressupuesto'!$A14,'Detall - Detalle'!$Z:$Z,K$4))","v":0},{"$f":"+IF(OR($A$1=\"TOTES LES ACTIVITATS\",$A$1=\"\"),SUMIFS('Detall - Detalle'!$V:$V,'Detall - Detalle'!$AA:$AA,'Pressupost - Pressupuesto'!$A14,'Detall - Detalle'!$Z:$Z,L$4),SUMIFS('Detall - Detalle'!$V:$V,'Detall - Detalle'!$T:$T,'Pressupost - Pressupuesto'!$A$1,'Detall - Detalle'!$AA:$AA,'Pressupost - Pressupuesto'!$A14,'Detall - Detalle'!$Z:$Z,L$4))","v":0},{"$f":"+IF(OR($A$1=\"TOTES LES ACTIVITATS\",$A$1=\"\"),SUMIFS('Detall - Detalle'!$V:$V,'Detall - Detalle'!$AA:$AA,'Pressupost - Pressupuesto'!$A14,'Detall - Detalle'!$Z:$Z,M$4),SUMIFS('Detall - Detalle'!$V:$V,'Detall - Detalle'!$T:$T,'Pressupost - Pressupuesto'!$A$1,'Detall - Detalle'!$AA:$AA,'Pressupost - Pressupuesto'!$A14,'Detall - Detalle'!$Z:$Z,M$4))","v":0},{"$f":"+IF(OR($A$1=\"TOTES LES ACTIVITATS\",$A$1=\"\"),SUMIFS('Detall - Detalle'!$V:$V,'Detall - Detalle'!$AA:$AA,'Pressupost - Pressupuesto'!$A14,'Detall - Detalle'!$Z:$Z,N$4),SUMIFS('Detall - Detalle'!$V:$V,'Detall - Detalle'!$T:$T,'Pressupost - Pressupuesto'!$A$1,'Detall - Detalle'!$AA:$AA,'Pressupost - Pressupuesto'!$A14,'Detall - Detalle'!$Z:$Z,N$4))","v":0},{"$f":"+SUMIFS('Detall - Detalle'!$V:$V,'Detall - Detalle'!$T:$T,O$4,'Detall - Detalle'!$AA:$AA,'Pressupost - Pressupuesto'!$A14)","v":0},{"$f":"+SUMIFS('Detall - Detalle'!$V:$V,'Detall - Detalle'!$T:$T,P$4,'Detall - Detalle'!$AA:$AA,'Pressupost - Pressupuesto'!$A14)","v":0},{"$f":"+SUMIFS('Detall - Detalle'!$V:$V,'Detall - Detalle'!$T:$T,Q$4,'Detall - Detalle'!$AA:$AA,'Pressupost - Pressupuesto'!$A14)","v":0},{"$f":"+SUMIFS('Detall - Detalle'!$V:$V,'Detall - Detalle'!$T:$T,R$4,'Detall - Detalle'!$AA:$AA,'Pressupost - Pressupuesto'!$A14)","v":0},{"$f":"+SUMIFS('Detall - Detalle'!$V:$V,'Detall - Detalle'!$T:$T,S$4,'Detall - Detalle'!$AA:$AA,'Pressupost - Pressupuesto'!$A14)","v":0},{"$f":"+SUMIFS('Detall - Detalle'!$V:$V,'Detall - Detalle'!$T:$T,T$4,'Detall - Detalle'!$AA:$AA,'Pressupost - Pressupuesto'!$A14)","v":0},{"$f":"+SUMIFS('Detall - Detalle'!$V:$V,'Detall - Detalle'!$T:$T,U$4,'Detall - Detalle'!$AA:$AA,'Pressupost - Pressupuesto'!$A14)","v":0},{"$f":"+SUMIFS('Detall - Detalle'!$V:$V,'Detall - Detalle'!$T:$T,V$4,'Detall - Detalle'!$AA:$AA,'Pressupost - Pressupuesto'!$A14)","v":0},{"$f":"+SUMIFS('Detall - Detalle'!$V:$V,'Detall - Detalle'!$T:$T,W$4,'Detall - Detalle'!$AA:$AA,'Pressupost - Pressupuesto'!$A14)","v":0},{"$f":"+SUMIFS('Detall - Detalle'!$V:$V,'Detall - Detalle'!$T:$T,X$4,'Detall - Detalle'!$AA:$AA,'Pressupost - Pressupuesto'!$A14)","v":0},{"$f":"+SUMIFS('Detall - Detalle'!$V:$V,'Detall - Detalle'!$T:$T,Y$4,'Detall - Detalle'!$AA:$AA,'Pressupost - Pressupuesto'!$A14)","v":0},{"$f":"+SUMIFS('Detall - Detalle'!$V:$V,'Detall - Detalle'!$T:$T,Z$4,'Detall - Detalle'!$AA:$AA,'Pressupost - Pressupuesto'!$A14)","v":0},{"$f":"+SUMIFS('Detall - Detalle'!$V:$V,'Detall - Detalle'!$T:$T,AA$4,'Detall - Detalle'!$AA:$AA,'Pressupost - Pressupuesto'!$A14)","v":0},{"$f":"+SUMIFS('Detall - Detalle'!$V:$V,'Detall - Detalle'!$T:$T,AB$4,'Detall - Detalle'!$AA:$AA,'Pressupost - Pressupuesto'!$A14)","v":0},{"$f":"+SUMIFS('Detall - Detalle'!$V:$V,'Detall - Detalle'!$T:$T,AC$4,'Detall - Detalle'!$AA:$AA,'Pressupost - Pressupuesto'!$A14)","v":0},{"$f":"+SUMIFS('Detall - Detalle'!$V:$V,'Detall - Detalle'!$T:$T,AD$4,'Detall - Detalle'!$AA:$AA,'Pressupost - Pressupuesto'!$A14)","v":0},{"$f":"+SUMIFS('Detall - Detalle'!$V:$V,'Detall - Detalle'!$T:$T,AE$4,'Detall - Detalle'!$AA:$AA,'Pressupost - Pressupuesto'!$A14)","v":0},{"$f":"+SUMIFS('Detall - Detalle'!$V:$V,'Detall - Detalle'!$T:$T,AF$4,'Detall - Detalle'!$AA:$AA,'Pressupost - Pressupuesto'!$A14)","v":0},{"$f":"+SUMIFS('Detall - Detalle'!$V:$V,'Detall - Detalle'!$T:$T,AG$4,'Detall - Detalle'!$AA:$AA,'Pressupost - Pressupuesto'!$A14)","v":0},{"$f":"+SUMIFS('Detall - Detalle'!$V:$V,'Detall - Detalle'!$T:$T,AH$4,'Detall - Detalle'!$AA:$AA,'Pressupost - Pressupuesto'!$A14)","v":0}]
["a7 Reunions, conferències i formacions / Reuniones, conferencias y formaciones",0,{"$f":"+IF(OR($A$1=\"TOTES LES ACTIVITATS\",$A$1=\"\"),SUMIF('Detall - Detalle'!$AA:$AA,$A15,'Detall - Detalle'!$W:$W),SUMIFS('Detall - Detalle'!$W:$W,'Detall - Detalle'!$T:$T,'Pressupost - Pressupuesto'!$A$1,'Detall - Detalle'!$AA:$AA,'Pressupost - Pressupuesto'!$A15))","v":0},{"$f":"+IF(OR($A$1=\"TOTES LES ACTIVITATS\",$A$1=\"\"),SUMIF('Detall - Detalle'!$AA:$AA,$A15,'Detall - Detalle'!$X:$X),SUMIFS('Detall - Detalle'!$X:$X,'Detall - Detalle'!$T:$T,'Pressupost - Pressupuesto'!$A$1,'Detall - Detalle'!$AA:$AA,'Pressupost - Pressupuesto'!$A15))","v":0},{"$f":"+IF(OR($A$1=\"TOTES LES ACTIVITATS\",$A$1=\"\"),SUMIFS('Detall - Detalle'!$Y:$Y,'Detall - Detalle'!$AA:$AA,'Pressupost - Pressupuesto'!$A15,'Detall - Detalle'!$Z:$Z,E$4),SUMIFS('Detall - Detalle'!$Y:$Y,'Detall - Detalle'!$T:$T,'Pressupost - Pressupuesto'!$A$1,'Detall - Detalle'!$AA:$AA,'Pressupost - Pressupuesto'!$A15,'Detall - Detalle'!$Z:$Z,E$4))","v":0},{"$f":"+IF(OR($A$1=\"TOTES LES ACTIVITATS\",$A$1=\"\"),SUMIFS('Detall - Detalle'!$Y:$Y,'Detall - Detalle'!$AA:$AA,'Pressupost - Pressupuesto'!$A15,'Detall - Detalle'!$Z:$Z,F$4),SUMIFS('Detall - Detalle'!$Y:$Y,'Detall - Detalle'!$T:$T,'Pressupost - Pressupuesto'!$A$1,'Detall - Detalle'!$AA:$AA,'Pressupost - Pressupuesto'!$A15,'Detall - Detalle'!$Z:$Z,F$4))","v":0},{"$f":"+IF(OR($A$1=\"TOTES LES ACTIVITATS\",$A$1=\"\"),SUMIFS('Detall - Detalle'!$Y:$Y,'Detall - Detalle'!$AA:$AA,'Pressupost - Pressupuesto'!$A15,'Detall - Detalle'!$Z:$Z,G$4),SUMIFS('Detall - Detalle'!$Y:$Y,'Detall - Detalle'!$T:$T,'Pressupost - Pressupuesto'!$A$1,'Detall - Detalle'!$AA:$AA,'Pressupost - Pressupuesto'!$A15,'Detall - Detalle'!$Z:$Z,G$4))","v":0},{"$f":"+IF(OR($A$1=\"TOTES LES ACTIVITATS\",$A$1=\"\"),SUMIFS('Detall - Detalle'!$Y:$Y,'Detall - Detalle'!$AA:$AA,'Pressupost - Pressupuesto'!$A15,'Detall - Detalle'!$Z:$Z,H$4),SUMIFS('Detall - Detalle'!$Y:$Y,'Detall - Detalle'!$T:$T,'Pressupost - Pressupuesto'!$A$1,'Detall - Detalle'!$AA:$AA,'Pressupost - Pressupuesto'!$A15,'Detall - Detalle'!$Z:$Z,H$4))","v":0},{"$f":"+IF(OR($A$1=\"TOTES LES ACTIVITATS\",$A$1=\"\"),SUMIFS('Detall - Detalle'!$Y:$Y,'Detall - Detalle'!$AA:$AA,'Pressupost - Pressupuesto'!$A15,'Detall - Detalle'!$Z:$Z,I$4),SUMIFS('Detall - Detalle'!$Y:$Y,'Detall - Detalle'!$T:$T,'Pressupost - Pressupuesto'!$A$1,'Detall - Detalle'!$AA:$AA,'Pressupost - Pressupuesto'!$A15,'Detall - Detalle'!$Z:$Z,I$4))","v":0},{"$f":"+IF(OR($A$1=\"TOTES LES ACTIVITATS\",$A$1=\"\"),SUMIFS('Detall - Detalle'!$V:$V,'Detall - Detalle'!$AA:$AA,'Pressupost - Pressupuesto'!$A15,'Detall - Detalle'!$Z:$Z,J$4),SUMIFS('Detall - Detalle'!$V:$V,'Detall - Detalle'!$T:$T,'Pressupost - Pressupuesto'!$A$1,'Detall - Detalle'!$AA:$AA,'Pressupost - Pressupuesto'!$A15,'Detall - Detalle'!$Z:$Z,J$4))","v":0},{"$f":"+IF(OR($A$1=\"TOTES LES ACTIVITATS\",$A$1=\"\"),SUMIFS('Detall - Detalle'!$V:$V,'Detall - Detalle'!$AA:$AA,'Pressupost - Pressupuesto'!$A15,'Detall - Detalle'!$Z:$Z,K$4),SUMIFS('Detall - Detalle'!$V:$V,'Detall - Detalle'!$T:$T,'Pressupost - Pressupuesto'!$A$1,'Detall - Detalle'!$AA:$AA,'Pressupost - Pressupuesto'!$A15,'Detall - Detalle'!$Z:$Z,K$4))","v":0},{"$f":"+IF(OR($A$1=\"TOTES LES ACTIVITATS\",$A$1=\"\"),SUMIFS('Detall - Detalle'!$V:$V,'Detall - Detalle'!$AA:$AA,'Pressupost - Pressupuesto'!$A15,'Detall - Detalle'!$Z:$Z,L$4),SUMIFS('Detall - Detalle'!$V:$V,'Detall - Detalle'!$T:$T,'Pressupost - Pressupuesto'!$A$1,'Detall - Detalle'!$AA:$AA,'Pressupost - Pressupuesto'!$A15,'Detall - Detalle'!$Z:$Z,L$4))","v":0},{"$f":"+IF(OR($A$1=\"TOTES LES ACTIVITATS\",$A$1=\"\"),SUMIFS('Detall - Detalle'!$V:$V,'Detall - Detalle'!$AA:$AA,'Pressupost - Pressupuesto'!$A15,'Detall - Detalle'!$Z:$Z,M$4),SUMIFS('Detall - Detalle'!$V:$V,'Detall - Detalle'!$T:$T,'Pressupost - Pressupuesto'!$A$1,'Detall - Detalle'!$AA:$AA,'Pressupost - Pressupuesto'!$A15,'Detall - Detalle'!$Z:$Z,M$4))","v":0},{"$f":"+IF(OR($A$1=\"TOTES LES ACTIVITATS\",$A$1=\"\"),SUMIFS('Detall - Detalle'!$V:$V,'Detall - Detalle'!$AA:$AA,'Pressupost - Pressupuesto'!$A15,'Detall - Detalle'!$Z:$Z,N$4),SUMIFS('Detall - Detalle'!$V:$V,'Detall - Detalle'!$T:$T,'Pressupost - Pressupuesto'!$A$1,'Detall - Detalle'!$AA:$AA,'Pressupost - Pressupuesto'!$A15,'Detall - Detalle'!$Z:$Z,N$4))","v":0},{"$f":"+SUMIFS('Detall - Detalle'!$V:$V,'Detall - Detalle'!$T:$T,O$4,'Detall - Detalle'!$AA:$AA,'Pressupost - Pressupuesto'!$A15)","v":0},{"$f":"+SUMIFS('Detall - Detalle'!$V:$V,'Detall - Detalle'!$T:$T,P$4,'Detall - Detalle'!$AA:$AA,'Pressupost - Pressupuesto'!$A15)","v":0},{"$f":"+SUMIFS('Detall - Detalle'!$V:$V,'Detall - Detalle'!$T:$T,Q$4,'Detall - Detalle'!$AA:$AA,'Pressupost - Pressupuesto'!$A15)","v":0},{"$f":"+SUMIFS('Detall - Detalle'!$V:$V,'Detall - Detalle'!$T:$T,R$4,'Detall - Detalle'!$AA:$AA,'Pressupost - Pressupuesto'!$A15)","v":0},{"$f":"+SUMIFS('Detall - Detalle'!$V:$V,'Detall - Detalle'!$T:$T,S$4,'Detall - Detalle'!$AA:$AA,'Pressupost - Pressupuesto'!$A15)","v":0},{"$f":"+SUMIFS('Detall - Detalle'!$V:$V,'Detall - Detalle'!$T:$T,T$4,'Detall - Detalle'!$AA:$AA,'Pressupost - Pressupuesto'!$A15)","v":0},{"$f":"+SUMIFS('Detall - Detalle'!$V:$V,'Detall - Detalle'!$T:$T,U$4,'Detall - Detalle'!$AA:$AA,'Pressupost - Pressupuesto'!$A15)","v":0},{"$f":"+SUMIFS('Detall - Detalle'!$V:$V,'Detall - Detalle'!$T:$T,V$4,'Detall - Detalle'!$AA:$AA,'Pressupost - Pressupuesto'!$A15)","v":0},{"$f":"+SUMIFS('Detall - Detalle'!$V:$V,'Detall - Detalle'!$T:$T,W$4,'Detall - Detalle'!$AA:$AA,'Pressupost - Pressupuesto'!$A15)","v":0},{"$f":"+SUMIFS('Detall - Detalle'!$V:$V,'Detall - Detalle'!$T:$T,X$4,'Detall - Detalle'!$AA:$AA,'Pressupost - Pressupuesto'!$A15)","v":0},{"$f":"+SUMIFS('Detall - Detalle'!$V:$V,'Detall - Detalle'!$T:$T,Y$4,'Detall - Detalle'!$AA:$AA,'Pressupost - Pressupuesto'!$A15)","v":0},{"$f":"+SUMIFS('Detall - Detalle'!$V:$V,'Detall - Detalle'!$T:$T,Z$4,'Detall - Detalle'!$AA:$AA,'Pressupost - Pressupuesto'!$A15)","v":0},{"$f":"+SUMIFS('Detall - Detalle'!$V:$V,'Detall - Detalle'!$T:$T,AA$4,'Detall - Detalle'!$AA:$AA,'Pressupost - Pressupuesto'!$A15)","v":0},{"$f":"+SUMIFS('Detall - Detalle'!$V:$V,'Detall - Detalle'!$T:$T,AB$4,'Detall - Detalle'!$AA:$AA,'Pressupost - Pressupuesto'!$A15)","v":0},{"$f":"+SUMIFS('Detall - Detalle'!$V:$V,'Detall - Detalle'!$T:$T,AC$4,'Detall - Detalle'!$AA:$AA,'Pressupost - Pressupuesto'!$A15)","v":0},{"$f":"+SUMIFS('Detall - Detalle'!$V:$V,'Detall - Detalle'!$T:$T,AD$4,'Detall - Detalle'!$AA:$AA,'Pressupost - Pressupuesto'!$A15)","v":0},{"$f":"+SUMIFS('Detall - Detalle'!$V:$V,'Detall - Detalle'!$T:$T,AE$4,'Detall - Detalle'!$AA:$AA,'Pressupost - Pressupuesto'!$A15)","v":0},{"$f":"+SUMIFS('Detall - Detalle'!$V:$V,'Detall - Detalle'!$T:$T,AF$4,'Detall - Detalle'!$AA:$AA,'Pressupost - Pressupuesto'!$A15)","v":0},{"$f":"+SUMIFS('Detall - Detalle'!$V:$V,'Detall - Detalle'!$T:$T,AG$4,'Detall - Detalle'!$AA:$AA,'Pressupost - Pressupuesto'!$A15)","v":0},{"$f":"+SUMIFS('Detall - Detalle'!$V:$V,'Detall - Detalle'!$T:$T,AH$4,'Detall - Detalle'!$AA:$AA,'Pressupost - Pressupuesto'!$A15)","v":0}]
["a8 Publicitat i difusió / Publicidad y difusión",0,{"$f":"+IF(OR($A$1=\"TOTES LES ACTIVITATS\",$A$1=\"\"),SUMIF('Detall - Detalle'!$AA:$AA,$A16,'Detall - Detalle'!$W:$W),SUMIFS('Detall - Detalle'!$W:$W,'Detall - Detalle'!$T:$T,'Pressupost - Pressupuesto'!$A$1,'Detall - Detalle'!$AA:$AA,'Pressupost - Pressupuesto'!$A16))","v":0},{"$f":"+IF(OR($A$1=\"TOTES LES ACTIVITATS\",$A$1=\"\"),SUMIF('Detall - Detalle'!$AA:$AA,$A16,'Detall - Detalle'!$X:$X),SUMIFS('Detall - Detalle'!$X:$X,'Detall - Detalle'!$T:$T,'Pressupost - Pressupuesto'!$A$1,'Detall - Detalle'!$AA:$AA,'Pressupost - Pressupuesto'!$A16))","v":0},{"$f":"+IF(OR($A$1=\"TOTES LES ACTIVITATS\",$A$1=\"\"),SUMIFS('Detall - Detalle'!$Y:$Y,'Detall - Detalle'!$AA:$AA,'Pressupost - Pressupuesto'!$A16,'Detall - Detalle'!$Z:$Z,E$4),SUMIFS('Detall - Detalle'!$Y:$Y,'Detall - Detalle'!$T:$T,'Pressupost - Pressupuesto'!$A$1,'Detall - Detalle'!$AA:$AA,'Pressupost - Pressupuesto'!$A16,'Detall - Detalle'!$Z:$Z,E$4))","v":0},{"$f":"+IF(OR($A$1=\"TOTES LES ACTIVITATS\",$A$1=\"\"),SUMIFS('Detall - Detalle'!$Y:$Y,'Detall - Detalle'!$AA:$AA,'Pressupost - Pressupuesto'!$A16,'Detall - Detalle'!$Z:$Z,F$4),SUMIFS('Detall - Detalle'!$Y:$Y,'Detall - Detalle'!$T:$T,'Pressupost - Pressupuesto'!$A$1,'Detall - Detalle'!$AA:$AA,'Pressupost - Pressupuesto'!$A16,'Detall - Detalle'!$Z:$Z,F$4))","v":0},{"$f":"+IF(OR($A$1=\"TOTES LES ACTIVITATS\",$A$1=\"\"),SUMIFS('Detall - Detalle'!$Y:$Y,'Detall - Detalle'!$AA:$AA,'Pressupost - Pressupuesto'!$A16,'Detall - Detalle'!$Z:$Z,G$4),SUMIFS('Detall - Detalle'!$Y:$Y,'Detall - Detalle'!$T:$T,'Pressupost - Pressupuesto'!$A$1,'Detall - Detalle'!$AA:$AA,'Pressupost - Pressupuesto'!$A16,'Detall - Detalle'!$Z:$Z,G$4))","v":0},{"$f":"+IF(OR($A$1=\"TOTES LES ACTIVITATS\",$A$1=\"\"),SUMIFS('Detall - Detalle'!$Y:$Y,'Detall - Detalle'!$AA:$AA,'Pressupost - Pressupuesto'!$A16,'Detall - Detalle'!$Z:$Z,H$4),SUMIFS('Detall - Detalle'!$Y:$Y,'Detall - Detalle'!$T:$T,'Pressupost - Pressupuesto'!$A$1,'Detall - Detalle'!$AA:$AA,'Pressupost - Pressupuesto'!$A16,'Detall - Detalle'!$Z:$Z,H$4))","v":0},{"$f":"+IF(OR($A$1=\"TOTES LES ACTIVITATS\",$A$1=\"\"),SUMIFS('Detall - Detalle'!$Y:$Y,'Detall - Detalle'!$AA:$AA,'Pressupost - Pressupuesto'!$A16,'Detall - Detalle'!$Z:$Z,I$4),SUMIFS('Detall - Detalle'!$Y:$Y,'Detall - Detalle'!$T:$T,'Pressupost - Pressupuesto'!$A$1,'Detall - Detalle'!$AA:$AA,'Pressupost - Pressupuesto'!$A16,'Detall - Detalle'!$Z:$Z,I$4))","v":0},{"$f":"+IF(OR($A$1=\"TOTES LES ACTIVITATS\",$A$1=\"\"),SUMIFS('Detall - Detalle'!$V:$V,'Detall - Detalle'!$AA:$AA,'Pressupost - Pressupuesto'!$A16,'Detall - Detalle'!$Z:$Z,J$4),SUMIFS('Detall - Detalle'!$V:$V,'Detall - Detalle'!$T:$T,'Pressupost - Pressupuesto'!$A$1,'Detall - Detalle'!$AA:$AA,'Pressupost - Pressupuesto'!$A16,'Detall - Detalle'!$Z:$Z,J$4))","v":0},{"$f":"+IF(OR($A$1=\"TOTES LES ACTIVITATS\",$A$1=\"\"),SUMIFS('Detall - Detalle'!$V:$V,'Detall - Detalle'!$AA:$AA,'Pressupost - Pressupuesto'!$A16,'Detall - Detalle'!$Z:$Z,K$4),SUMIFS('Detall - Detalle'!$V:$V,'Detall - Detalle'!$T:$T,'Pressupost - Pressupuesto'!$A$1,'Detall - Detalle'!$AA:$AA,'Pressupost - Pressupuesto'!$A16,'Detall - Detalle'!$Z:$Z,K$4))","v":0},{"$f":"+IF(OR($A$1=\"TOTES LES ACTIVITATS\",$A$1=\"\"),SUMIFS('Detall - Detalle'!$V:$V,'Detall - Detalle'!$AA:$AA,'Pressupost - Pressupuesto'!$A16,'Detall - Detalle'!$Z:$Z,L$4),SUMIFS('Detall - Detalle'!$V:$V,'Detall - Detalle'!$T:$T,'Pressupost - Pressupuesto'!$A$1,'Detall - Detalle'!$AA:$AA,'Pressupost - Pressupuesto'!$A16,'Detall - Detalle'!$Z:$Z,L$4))","v":0},{"$f":"+IF(OR($A$1=\"TOTES LES ACTIVITATS\",$A$1=\"\"),SUMIFS('Detall - Detalle'!$V:$V,'Detall - Detalle'!$AA:$AA,'Pressupost - Pressupuesto'!$A16,'Detall - Detalle'!$Z:$Z,M$4),SUMIFS('Detall - Detalle'!$V:$V,'Detall - Detalle'!$T:$T,'Pressupost - Pressupuesto'!$A$1,'Detall - Detalle'!$AA:$AA,'Pressupost - Pressupuesto'!$A16,'Detall - Detalle'!$Z:$Z,M$4))","v":0},{"$f":"+IF(OR($A$1=\"TOTES LES ACTIVITATS\",$A$1=\"\"),SUMIFS('Detall - Detalle'!$V:$V,'Detall - Detalle'!$AA:$AA,'Pressupost - Pressupuesto'!$A16,'Detall - Detalle'!$Z:$Z,N$4),SUMIFS('Detall - Detalle'!$V:$V,'Detall - Detalle'!$T:$T,'Pressupost - Pressupuesto'!$A$1,'Detall - Detalle'!$AA:$AA,'Pressupost - Pressupuesto'!$A16,'Detall - Detalle'!$Z:$Z,N$4))","v":0},{"$f":"+SUMIFS('Detall - Detalle'!$V:$V,'Detall - Detalle'!$T:$T,O$4,'Detall - Detalle'!$AA:$AA,'Pressupost - Pressupuesto'!$A16)","v":0},{"$f":"+SUMIFS('Detall - Detalle'!$V:$V,'Detall - Detalle'!$T:$T,P$4,'Detall - Detalle'!$AA:$AA,'Pressupost - Pressupuesto'!$A16)","v":0},{"$f":"+SUMIFS('Detall - Detalle'!$V:$V,'Detall - Detalle'!$T:$T,Q$4,'Detall - Detalle'!$AA:$AA,'Pressupost - Pressupuesto'!$A16)","v":0},{"$f":"+SUMIFS('Detall - Detalle'!$V:$V,'Detall - Detalle'!$T:$T,R$4,'Detall - Detalle'!$AA:$AA,'Pressupost - Pressupuesto'!$A16)","v":0},{"$f":"+SUMIFS('Detall - Detalle'!$V:$V,'Detall - Detalle'!$T:$T,S$4,'Detall - Detalle'!$AA:$AA,'Pressupost - Pressupuesto'!$A16)","v":0},{"$f":"+SUMIFS('Detall - Detalle'!$V:$V,'Detall - Detalle'!$T:$T,T$4,'Detall - Detalle'!$AA:$AA,'Pressupost - Pressupuesto'!$A16)","v":0},{"$f":"+SUMIFS('Detall - Detalle'!$V:$V,'Detall - Detalle'!$T:$T,U$4,'Detall - Detalle'!$AA:$AA,'Pressupost - Pressupuesto'!$A16)","v":0},{"$f":"+SUMIFS('Detall - Detalle'!$V:$V,'Detall - Detalle'!$T:$T,V$4,'Detall - Detalle'!$AA:$AA,'Pressupost - Pressupuesto'!$A16)","v":0},{"$f":"+SUMIFS('Detall - Detalle'!$V:$V,'Detall - Detalle'!$T:$T,W$4,'Detall - Detalle'!$AA:$AA,'Pressupost - Pressupuesto'!$A16)","v":0},{"$f":"+SUMIFS('Detall - Detalle'!$V:$V,'Detall - Detalle'!$T:$T,X$4,'Detall - Detalle'!$AA:$AA,'Pressupost - Pressupuesto'!$A16)","v":0},{"$f":"+SUMIFS('Detall - Detalle'!$V:$V,'Detall - Detalle'!$T:$T,Y$4,'Detall - Detalle'!$AA:$AA,'Pressupost - Pressupuesto'!$A16)","v":0},{"$f":"+SUMIFS('Detall - Detalle'!$V:$V,'Detall - Detalle'!$T:$T,Z$4,'Detall - Detalle'!$AA:$AA,'Pressupost - Pressupuesto'!$A16)","v":0},{"$f":"+SUMIFS('Detall - Detalle'!$V:$V,'Detall - Detalle'!$T:$T,AA$4,'Detall - Detalle'!$AA:$AA,'Pressupost - Pressupuesto'!$A16)","v":0},{"$f":"+SUMIFS('Detall - Detalle'!$V:$V,'Detall - Detalle'!$T:$T,AB$4,'Detall - Detalle'!$AA:$AA,'Pressupost - Pressupuesto'!$A16)","v":0},{"$f":"+SUMIFS('Detall - Detalle'!$V:$V,'Detall - Detalle'!$T:$T,AC$4,'Detall - Detalle'!$AA:$AA,'Pressupost - Pressupuesto'!$A16)","v":0},{"$f":"+SUMIFS('Detall - Detalle'!$V:$V,'Detall - Detalle'!$T:$T,AD$4,'Detall - Detalle'!$AA:$AA,'Pressupost - Pressupuesto'!$A16)","v":0},{"$f":"+SUMIFS('Detall - Detalle'!$V:$V,'Detall - Detalle'!$T:$T,AE$4,'Detall - Detalle'!$AA:$AA,'Pressupost - Pressupuesto'!$A16)","v":0},{"$f":"+SUMIFS('Detall - Detalle'!$V:$V,'Detall - Detalle'!$T:$T,AF$4,'Detall - Detalle'!$AA:$AA,'Pressupost - Pressupuesto'!$A16)","v":0},{"$f":"+SUMIFS('Detall - Detalle'!$V:$V,'Detall - Detalle'!$T:$T,AG$4,'Detall - Detalle'!$AA:$AA,'Pressupost - Pressupuesto'!$A16)","v":0},{"$f":"+SUMIFS('Detall - Detalle'!$V:$V,'Detall - Detalle'!$T:$T,AH$4,'Detall - Detalle'!$AA:$AA,'Pressupost - Pressupuesto'!$A16)","v":0}]
["a9 Publicacions / Publicaciones",0,{"$f":"+IF(OR($A$1=\"TOTES LES ACTIVITATS\",$A$1=\"\"),SUMIF('Detall - Detalle'!$AA:$AA,$A17,'Detall - Detalle'!$W:$W),SUMIFS('Detall - Detalle'!$W:$W,'Detall - Detalle'!$T:$T,'Pressupost - Pressupuesto'!$A$1,'Detall - Detalle'!$AA:$AA,'Pressupost - Pressupuesto'!$A17))","v":0},{"$f":"+IF(OR($A$1=\"TOTES LES ACTIVITATS\",$A$1=\"\"),SUMIF('Detall - Detalle'!$AA:$AA,$A17,'Detall - Detalle'!$X:$X),SUMIFS('Detall - Detalle'!$X:$X,'Detall - Detalle'!$T:$T,'Pressupost - Pressupuesto'!$A$1,'Detall - Detalle'!$AA:$AA,'Pressupost - Pressupuesto'!$A17))","v":0},{"$f":"+IF(OR($A$1=\"TOTES LES ACTIVITATS\",$A$1=\"\"),SUMIFS('Detall - Detalle'!$Y:$Y,'Detall - Detalle'!$AA:$AA,'Pressupost - Pressupuesto'!$A17,'Detall - Detalle'!$Z:$Z,E$4),SUMIFS('Detall - Detalle'!$Y:$Y,'Detall - Detalle'!$T:$T,'Pressupost - Pressupuesto'!$A$1,'Detall - Detalle'!$AA:$AA,'Pressupost - Pressupuesto'!$A17,'Detall - Detalle'!$Z:$Z,E$4))","v":0},{"$f":"+IF(OR($A$1=\"TOTES LES ACTIVITATS\",$A$1=\"\"),SUMIFS('Detall - Detalle'!$Y:$Y,'Detall - Detalle'!$AA:$AA,'Pressupost - Pressupuesto'!$A17,'Detall - Detalle'!$Z:$Z,F$4),SUMIFS('Detall - Detalle'!$Y:$Y,'Detall - Detalle'!$T:$T,'Pressupost - Pressupuesto'!$A$1,'Detall - Detalle'!$AA:$AA,'Pressupost - Pressupuesto'!$A17,'Detall - Detalle'!$Z:$Z,F$4))","v":0},{"$f":"+IF(OR($A$1=\"TOTES LES ACTIVITATS\",$A$1=\"\"),SUMIFS('Detall - Detalle'!$Y:$Y,'Detall - Detalle'!$AA:$AA,'Pressupost - Pressupuesto'!$A17,'Detall - Detalle'!$Z:$Z,G$4),SUMIFS('Detall - Detalle'!$Y:$Y,'Detall - Detalle'!$T:$T,'Pressupost - Pressupuesto'!$A$1,'Detall - Detalle'!$AA:$AA,'Pressupost - Pressupuesto'!$A17,'Detall - Detalle'!$Z:$Z,G$4))","v":0},{"$f":"+IF(OR($A$1=\"TOTES LES ACTIVITATS\",$A$1=\"\"),SUMIFS('Detall - Detalle'!$Y:$Y,'Detall - Detalle'!$AA:$AA,'Pressupost - Pressupuesto'!$A17,'Detall - Detalle'!$Z:$Z,H$4),SUMIFS('Detall - Detalle'!$Y:$Y,'Detall - Detalle'!$T:$T,'Pressupost - Pressupuesto'!$A$1,'Detall - Detalle'!$AA:$AA,'Pressupost - Pressupuesto'!$A17,'Detall - Detalle'!$Z:$Z,H$4))","v":0},{"$f":"+IF(OR($A$1=\"TOTES LES ACTIVITATS\",$A$1=\"\"),SUMIFS('Detall - Detalle'!$Y:$Y,'Detall - Detalle'!$AA:$AA,'Pressupost - Pressupuesto'!$A17,'Detall - Detalle'!$Z:$Z,I$4),SUMIFS('Detall - Detalle'!$Y:$Y,'Detall - Detalle'!$T:$T,'Pressupost - Pressupuesto'!$A$1,'Detall - Detalle'!$AA:$AA,'Pressupost - Pressupuesto'!$A17,'Detall - Detalle'!$Z:$Z,I$4))","v":0},{"$f":"+IF(OR($A$1=\"TOTES LES ACTIVITATS\",$A$1=\"\"),SUMIFS('Detall - Detalle'!$V:$V,'Detall - Detalle'!$AA:$AA,'Pressupost - Pressupuesto'!$A17,'Detall - Detalle'!$Z:$Z,J$4),SUMIFS('Detall - Detalle'!$V:$V,'Detall - Detalle'!$T:$T,'Pressupost - Pressupuesto'!$A$1,'Detall - Detalle'!$AA:$AA,'Pressupost - Pressupuesto'!$A17,'Detall - Detalle'!$Z:$Z,J$4))","v":0},{"$f":"+IF(OR($A$1=\"TOTES LES ACTIVITATS\",$A$1=\"\"),SUMIFS('Detall - Detalle'!$V:$V,'Detall - Detalle'!$AA:$AA,'Pressupost - Pressupuesto'!$A17,'Detall - Detalle'!$Z:$Z,K$4),SUMIFS('Detall - Detalle'!$V:$V,'Detall - Detalle'!$T:$T,'Pressupost - Pressupuesto'!$A$1,'Detall - Detalle'!$AA:$AA,'Pressupost - Pressupuesto'!$A17,'Detall - Detalle'!$Z:$Z,K$4))","v":0},{"$f":"+IF(OR($A$1=\"TOTES LES ACTIVITATS\",$A$1=\"\"),SUMIFS('Detall - Detalle'!$V:$V,'Detall - Detalle'!$AA:$AA,'Pressupost - Pressupuesto'!$A17,'Detall - Detalle'!$Z:$Z,L$4),SUMIFS('Detall - Detalle'!$V:$V,'Detall - Detalle'!$T:$T,'Pressupost - Pressupuesto'!$A$1,'Detall - Detalle'!$AA:$AA,'Pressupost - Pressupuesto'!$A17,'Detall - Detalle'!$Z:$Z,L$4))","v":0},{"$f":"+IF(OR($A$1=\"TOTES LES ACTIVITATS\",$A$1=\"\"),SUMIFS('Detall - Detalle'!$V:$V,'Detall - Detalle'!$AA:$AA,'Pressupost - Pressupuesto'!$A17,'Detall - Detalle'!$Z:$Z,M$4),SUMIFS('Detall - Detalle'!$V:$V,'Detall - Detalle'!$T:$T,'Pressupost - Pressupuesto'!$A$1,'Detall - Detalle'!$AA:$AA,'Pressupost - Pressupuesto'!$A17,'Detall - Detalle'!$Z:$Z,M$4))","v":0},{"$f":"+IF(OR($A$1=\"TOTES LES ACTIVITATS\",$A$1=\"\"),SUMIFS('Detall - Detalle'!$V:$V,'Detall - Detalle'!$AA:$AA,'Pressupost - Pressupuesto'!$A17,'Detall - Detalle'!$Z:$Z,N$4),SUMIFS('Detall - Detalle'!$V:$V,'Detall - Detalle'!$T:$T,'Pressupost - Pressupuesto'!$A$1,'Detall - Detalle'!$AA:$AA,'Pressupost - Pressupuesto'!$A17,'Detall - Detalle'!$Z:$Z,N$4))","v":0},{"$f":"+SUMIFS('Detall - Detalle'!$V:$V,'Detall - Detalle'!$T:$T,O$4,'Detall - Detalle'!$AA:$AA,'Pressupost - Pressupuesto'!$A17)","v":0},{"$f":"+SUMIFS('Detall - Detalle'!$V:$V,'Detall - Detalle'!$T:$T,P$4,'Detall - Detalle'!$AA:$AA,'Pressupost - Pressupuesto'!$A17)","v":0},{"$f":"+SUMIFS('Detall - Detalle'!$V:$V,'Detall - Detalle'!$T:$T,Q$4,'Detall - Detalle'!$AA:$AA,'Pressupost - Pressupuesto'!$A17)","v":0},{"$f":"+SUMIFS('Detall - Detalle'!$V:$V,'Detall - Detalle'!$T:$T,R$4,'Detall - Detalle'!$AA:$AA,'Pressupost - Pressupuesto'!$A17)","v":0},{"$f":"+SUMIFS('Detall - Detalle'!$V:$V,'Detall - Detalle'!$T:$T,S$4,'Detall - Detalle'!$AA:$AA,'Pressupost - Pressupuesto'!$A17)","v":0},{"$f":"+SUMIFS('Detall - Detalle'!$V:$V,'Detall - Detalle'!$T:$T,T$4,'Detall - Detalle'!$AA:$AA,'Pressupost - Pressupuesto'!$A17)","v":0},{"$f":"+SUMIFS('Detall - Detalle'!$V:$V,'Detall - Detalle'!$T:$T,U$4,'Detall - Detalle'!$AA:$AA,'Pressupost - Pressupuesto'!$A17)","v":0},{"$f":"+SUMIFS('Detall - Detalle'!$V:$V,'Detall - Detalle'!$T:$T,V$4,'Detall - Detalle'!$AA:$AA,'Pressupost - Pressupuesto'!$A17)","v":0},{"$f":"+SUMIFS('Detall - Detalle'!$V:$V,'Detall - Detalle'!$T:$T,W$4,'Detall - Detalle'!$AA:$AA,'Pressupost - Pressupuesto'!$A17)","v":0},{"$f":"+SUMIFS('Detall - Detalle'!$V:$V,'Detall - Detalle'!$T:$T,X$4,'Detall - Detalle'!$AA:$AA,'Pressupost - Pressupuesto'!$A17)","v":0},{"$f":"+SUMIFS('Detall - Detalle'!$V:$V,'Detall - Detalle'!$T:$T,Y$4,'Detall - Detalle'!$AA:$AA,'Pressupost - Pressupuesto'!$A17)","v":0},{"$f":"+SUMIFS('Detall - Detalle'!$V:$V,'Detall - Detalle'!$T:$T,Z$4,'Detall - Detalle'!$AA:$AA,'Pressupost - Pressupuesto'!$A17)","v":0},{"$f":"+SUMIFS('Detall - Detalle'!$V:$V,'Detall - Detalle'!$T:$T,AA$4,'Detall - Detalle'!$AA:$AA,'Pressupost - Pressupuesto'!$A17)","v":0},{"$f":"+SUMIFS('Detall - Detalle'!$V:$V,'Detall - Detalle'!$T:$T,AB$4,'Detall - Detalle'!$AA:$AA,'Pressupost - Pressupuesto'!$A17)","v":0},{"$f":"+SUMIFS('Detall - Detalle'!$V:$V,'Detall - Detalle'!$T:$T,AC$4,'Detall - Detalle'!$AA:$AA,'Pressupost - Pressupuesto'!$A17)","v":0},{"$f":"+SUMIFS('Detall - Detalle'!$V:$V,'Detall - Detalle'!$T:$T,AD$4,'Detall - Detalle'!$AA:$AA,'Pressupost - Pressupuesto'!$A17)","v":0},{"$f":"+SUMIFS('Detall - Detalle'!$V:$V,'Detall - Detalle'!$T:$T,AE$4,'Detall - Detalle'!$AA:$AA,'Pressupost - Pressupuesto'!$A17)","v":0},{"$f":"+SUMIFS('Detall - Detalle'!$V:$V,'Detall - Detalle'!$T:$T,AF$4,'Detall - Detalle'!$AA:$AA,'Pressupost - Pressupuesto'!$A17)","v":0},{"$f":"+SUMIFS('Detall - Detalle'!$V:$V,'Detall - Detalle'!$T:$T,AG$4,'Detall - Detalle'!$AA:$AA,'Pressupost - Pressupuesto'!$A17)","v":0},{"$f":"+SUMIFS('Detall - Detalle'!$V:$V,'Detall - Detalle'!$T:$T,AH$4,'Detall - Detalle'!$AA:$AA,'Pressupost - Pressupuesto'!$A17)","v":0}]
["a10 Treballs tècnics i professionals / Trabajos técnicos y profesionales",0,{"$f":"+IF(OR($A$1=\"TOTES LES ACTIVITATS\",$A$1=\"\"),SUMIF('Detall - Detalle'!$AA:$AA,$A18,'Detall - Detalle'!$W:$W),SUMIFS('Detall - Detalle'!$W:$W,'Detall - Detalle'!$T:$T,'Pressupost - Pressupuesto'!$A$1,'Detall - Detalle'!$AA:$AA,'Pressupost - Pressupuesto'!$A18))","v":0},{"$f":"+IF(OR($A$1=\"TOTES LES ACTIVITATS\",$A$1=\"\"),SUMIF('Detall - Detalle'!$AA:$AA,$A18,'Detall - Detalle'!$X:$X),SUMIFS('Detall - Detalle'!$X:$X,'Detall - Detalle'!$T:$T,'Pressupost - Pressupuesto'!$A$1,'Detall - Detalle'!$AA:$AA,'Pressupost - Pressupuesto'!$A18))","v":0},{"$f":"+IF(OR($A$1=\"TOTES LES ACTIVITATS\",$A$1=\"\"),SUMIFS('Detall - Detalle'!$Y:$Y,'Detall - Detalle'!$AA:$AA,'Pressupost - Pressupuesto'!$A18,'Detall - Detalle'!$Z:$Z,E$4),SUMIFS('Detall - Detalle'!$Y:$Y,'Detall - Detalle'!$T:$T,'Pressupost - Pressupuesto'!$A$1,'Detall - Detalle'!$AA:$AA,'Pressupost - Pressupuesto'!$A18,'Detall - Detalle'!$Z:$Z,E$4))","v":0},{"$f":"+IF(OR($A$1=\"TOTES LES ACTIVITATS\",$A$1=\"\"),SUMIFS('Detall - Detalle'!$Y:$Y,'Detall - Detalle'!$AA:$AA,'Pressupost - Pressupuesto'!$A18,'Detall - Detalle'!$Z:$Z,F$4),SUMIFS('Detall - Detalle'!$Y:$Y,'Detall - Detalle'!$T:$T,'Pressupost - Pressupuesto'!$A$1,'Detall - Detalle'!$AA:$AA,'Pressupost - Pressupuesto'!$A18,'Detall - Detalle'!$Z:$Z,F$4))","v":0},{"$f":"+IF(OR($A$1=\"TOTES LES ACTIVITATS\",$A$1=\"\"),SUMIFS('Detall - Detalle'!$Y:$Y,'Detall - Detalle'!$AA:$AA,'Pressupost - Pressupuesto'!$A18,'Detall - Detalle'!$Z:$Z,G$4),SUMIFS('Detall - Detalle'!$Y:$Y,'Detall - Detalle'!$T:$T,'Pressupost - Pressupuesto'!$A$1,'Detall - Detalle'!$AA:$AA,'Pressupost - Pressupuesto'!$A18,'Detall - Detalle'!$Z:$Z,G$4))","v":0},{"$f":"+IF(OR($A$1=\"TOTES LES ACTIVITATS\",$A$1=\"\"),SUMIFS('Detall - Detalle'!$Y:$Y,'Detall - Detalle'!$AA:$AA,'Pressupost - Pressupuesto'!$A18,'Detall - Detalle'!$Z:$Z,H$4),SUMIFS('Detall - Detalle'!$Y:$Y,'Detall - Detalle'!$T:$T,'Pressupost - Pressupuesto'!$A$1,'Detall - Detalle'!$AA:$AA,'Pressupost - Pressupuesto'!$A18,'Detall - Detalle'!$Z:$Z,H$4))","v":0},{"$f":"+IF(OR($A$1=\"TOTES LES ACTIVITATS\",$A$1=\"\"),SUMIFS('Detall - Detalle'!$Y:$Y,'Detall - Detalle'!$AA:$AA,'Pressupost - Pressupuesto'!$A18,'Detall - Detalle'!$Z:$Z,I$4),SUMIFS('Detall - Detalle'!$Y:$Y,'Detall - Detalle'!$T:$T,'Pressupost - Pressupuesto'!$A$1,'Detall - Detalle'!$AA:$AA,'Pressupost - Pressupuesto'!$A18,'Detall - Detalle'!$Z:$Z,I$4))","v":0},{"$f":"+IF(OR($A$1=\"TOTES LES ACTIVITATS\",$A$1=\"\"),SUMIFS('Detall - Detalle'!$V:$V,'Detall - Detalle'!$AA:$AA,'Pressupost - Pressupuesto'!$A18,'Detall - Detalle'!$Z:$Z,J$4),SUMIFS('Detall - Detalle'!$V:$V,'Detall - Detalle'!$T:$T,'Pressupost - Pressupuesto'!$A$1,'Detall - Detalle'!$AA:$AA,'Pressupost - Pressupuesto'!$A18,'Detall - Detalle'!$Z:$Z,J$4))","v":0},{"$f":"+IF(OR($A$1=\"TOTES LES ACTIVITATS\",$A$1=\"\"),SUMIFS('Detall - Detalle'!$V:$V,'Detall - Detalle'!$AA:$AA,'Pressupost - Pressupuesto'!$A18,'Detall - Detalle'!$Z:$Z,K$4),SUMIFS('Detall - Detalle'!$V:$V,'Detall - Detalle'!$T:$T,'Pressupost - Pressupuesto'!$A$1,'Detall - Detalle'!$AA:$AA,'Pressupost - Pressupuesto'!$A18,'Detall - Detalle'!$Z:$Z,K$4))","v":0},{"$f":"+IF(OR($A$1=\"TOTES LES ACTIVITATS\",$A$1=\"\"),SUMIFS('Detall - Detalle'!$V:$V,'Detall - Detalle'!$AA:$AA,'Pressupost - Pressupuesto'!$A18,'Detall - Detalle'!$Z:$Z,L$4),SUMIFS('Detall - Detalle'!$V:$V,'Detall - Detalle'!$T:$T,'Pressupost - Pressupuesto'!$A$1,'Detall - Detalle'!$AA:$AA,'Pressupost - Pressupuesto'!$A18,'Detall - Detalle'!$Z:$Z,L$4))","v":0},{"$f":"+IF(OR($A$1=\"TOTES LES ACTIVITATS\",$A$1=\"\"),SUMIFS('Detall - Detalle'!$V:$V,'Detall - Detalle'!$AA:$AA,'Pressupost - Pressupuesto'!$A18,'Detall - Detalle'!$Z:$Z,M$4),SUMIFS('Detall - Detalle'!$V:$V,'Detall - Detalle'!$T:$T,'Pressupost - Pressupuesto'!$A$1,'Detall - Detalle'!$AA:$AA,'Pressupost - Pressupuesto'!$A18,'Detall - Detalle'!$Z:$Z,M$4))","v":0},{"$f":"+IF(OR($A$1=\"TOTES LES ACTIVITATS\",$A$1=\"\"),SUMIFS('Detall - Detalle'!$V:$V,'Detall - Detalle'!$AA:$AA,'Pressupost - Pressupuesto'!$A18,'Detall - Detalle'!$Z:$Z,N$4),SUMIFS('Detall - Detalle'!$V:$V,'Detall - Detalle'!$T:$T,'Pressupost - Pressupuesto'!$A$1,'Detall - Detalle'!$AA:$AA,'Pressupost - Pressupuesto'!$A18,'Detall - Detalle'!$Z:$Z,N$4))","v":0},{"$f":"+SUMIFS('Detall - Detalle'!$V:$V,'Detall - Detalle'!$T:$T,O$4,'Detall - Detalle'!$AA:$AA,'Pressupost - Pressupuesto'!$A18)","v":0},{"$f":"+SUMIFS('Detall - Detalle'!$V:$V,'Detall - Detalle'!$T:$T,P$4,'Detall - Detalle'!$AA:$AA,'Pressupost - Pressupuesto'!$A18)","v":0},{"$f":"+SUMIFS('Detall - Detalle'!$V:$V,'Detall - Detalle'!$T:$T,Q$4,'Detall - Detalle'!$AA:$AA,'Pressupost - Pressupuesto'!$A18)","v":0},{"$f":"+SUMIFS('Detall - Detalle'!$V:$V,'Detall - Detalle'!$T:$T,R$4,'Detall - Detalle'!$AA:$AA,'Pressupost - Pressupuesto'!$A18)","v":0},{"$f":"+SUMIFS('Detall - Detalle'!$V:$V,'Detall - Detalle'!$T:$T,S$4,'Detall - Detalle'!$AA:$AA,'Pressupost - Pressupuesto'!$A18)","v":0},{"$f":"+SUMIFS('Detall - Detalle'!$V:$V,'Detall - Detalle'!$T:$T,T$4,'Detall - Detalle'!$AA:$AA,'Pressupost - Pressupuesto'!$A18)","v":0},{"$f":"+SUMIFS('Detall - Detalle'!$V:$V,'Detall - Detalle'!$T:$T,U$4,'Detall - Detalle'!$AA:$AA,'Pressupost - Pressupuesto'!$A18)","v":0},{"$f":"+SUMIFS('Detall - Detalle'!$V:$V,'Detall - Detalle'!$T:$T,V$4,'Detall - Detalle'!$AA:$AA,'Pressupost - Pressupuesto'!$A18)","v":0},{"$f":"+SUMIFS('Detall - Detalle'!$V:$V,'Detall - Detalle'!$T:$T,W$4,'Detall - Detalle'!$AA:$AA,'Pressupost - Pressupuesto'!$A18)","v":0},{"$f":"+SUMIFS('Detall - Detalle'!$V:$V,'Detall - Detalle'!$T:$T,X$4,'Detall - Detalle'!$AA:$AA,'Pressupost - Pressupuesto'!$A18)","v":0},{"$f":"+SUMIFS('Detall - Detalle'!$V:$V,'Detall - Detalle'!$T:$T,Y$4,'Detall - Detalle'!$AA:$AA,'Pressupost - Pressupuesto'!$A18)","v":0},{"$f":"+SUMIFS('Detall - Detalle'!$V:$V,'Detall - Detalle'!$T:$T,Z$4,'Detall - Detalle'!$AA:$AA,'Pressupost - Pressupuesto'!$A18)","v":0},{"$f":"+SUMIFS('Detall - Detalle'!$V:$V,'Detall - Detalle'!$T:$T,AA$4,'Detall - Detalle'!$AA:$AA,'Pressupost - Pressupuesto'!$A18)","v":0},{"$f":"+SUMIFS('Detall - Detalle'!$V:$V,'Detall - Detalle'!$T:$T,AB$4,'Detall - Detalle'!$AA:$AA,'Pressupost - Pressupuesto'!$A18)","v":0},{"$f":"+SUMIFS('Detall - Detalle'!$V:$V,'Detall - Detalle'!$T:$T,AC$4,'Detall - Detalle'!$AA:$AA,'Pressupost - Pressupuesto'!$A18)","v":0},{"$f":"+SUMIFS('Detall - Detalle'!$V:$V,'Detall - Detalle'!$T:$T,AD$4,'Detall - Detalle'!$AA:$AA,'Pressupost - Pressupuesto'!$A18)","v":0},{"$f":"+SUMIFS('Detall - Detalle'!$V:$V,'Detall - Detalle'!$T:$T,AE$4,'Detall - Detalle'!$AA:$AA,'Pressupost - Pressupuesto'!$A18)","v":0},{"$f":"+SUMIFS('Detall - Detalle'!$V:$V,'Detall - Detalle'!$T:$T,AF$4,'Detall - Detalle'!$AA:$AA,'Pressupost - Pressupuesto'!$A18)","v":0},{"$f":"+SUMIFS('Detall - Detalle'!$V:$V,'Detall - Detalle'!$T:$T,AG$4,'Detall - Detalle'!$AA:$AA,'Pressupost - Pressupuesto'!$A18)","v":0},{"$f":"+SUMIFS('Detall - Detalle'!$V:$V,'Detall - Detalle'!$T:$T,AH$4,'Detall - Detalle'!$AA:$AA,'Pressupost - Pressupuesto'!$A18)","v":0}]
["a11 Identificació i formulació / Identificación y formulación",0,{"$f":"+IF(OR($A$1=\"TOTES LES ACTIVITATS\",$A$1=\"\"),SUMIF('Detall - Detalle'!$AA:$AA,$A19,'Detall - Detalle'!$W:$W),SUMIFS('Detall - Detalle'!$W:$W,'Detall - Detalle'!$T:$T,'Pressupost - Pressupuesto'!$A$1,'Detall - Detalle'!$AA:$AA,'Pressupost - Pressupuesto'!$A19))","v":0},{"$f":"+IF(OR($A$1=\"TOTES LES ACTIVITATS\",$A$1=\"\"),SUMIF('Detall - Detalle'!$AA:$AA,$A19,'Detall - Detalle'!$X:$X),SUMIFS('Detall - Detalle'!$X:$X,'Detall - Detalle'!$T:$T,'Pressupost - Pressupuesto'!$A$1,'Detall - Detalle'!$AA:$AA,'Pressupost - Pressupuesto'!$A19))","v":0},{"$f":"+IF(OR($A$1=\"TOTES LES ACTIVITATS\",$A$1=\"\"),SUMIFS('Detall - Detalle'!$Y:$Y,'Detall - Detalle'!$AA:$AA,'Pressupost - Pressupuesto'!$A19,'Detall - Detalle'!$Z:$Z,E$4),SUMIFS('Detall - Detalle'!$Y:$Y,'Detall - Detalle'!$T:$T,'Pressupost - Pressupuesto'!$A$1,'Detall - Detalle'!$AA:$AA,'Pressupost - Pressupuesto'!$A19,'Detall - Detalle'!$Z:$Z,E$4))","v":0},{"$f":"+IF(OR($A$1=\"TOTES LES ACTIVITATS\",$A$1=\"\"),SUMIFS('Detall - Detalle'!$Y:$Y,'Detall - Detalle'!$AA:$AA,'Pressupost - Pressupuesto'!$A19,'Detall - Detalle'!$Z:$Z,F$4),SUMIFS('Detall - Detalle'!$Y:$Y,'Detall - Detalle'!$T:$T,'Pressupost - Pressupuesto'!$A$1,'Detall - Detalle'!$AA:$AA,'Pressupost - Pressupuesto'!$A19,'Detall - Detalle'!$Z:$Z,F$4))","v":0},{"$f":"+IF(OR($A$1=\"TOTES LES ACTIVITATS\",$A$1=\"\"),SUMIFS('Detall - Detalle'!$Y:$Y,'Detall - Detalle'!$AA:$AA,'Pressupost - Pressupuesto'!$A19,'Detall - Detalle'!$Z:$Z,G$4),SUMIFS('Detall - Detalle'!$Y:$Y,'Detall - Detalle'!$T:$T,'Pressupost - Pressupuesto'!$A$1,'Detall - Detalle'!$AA:$AA,'Pressupost - Pressupuesto'!$A19,'Detall - Detalle'!$Z:$Z,G$4))","v":0},{"$f":"+IF(OR($A$1=\"TOTES LES ACTIVITATS\",$A$1=\"\"),SUMIFS('Detall - Detalle'!$Y:$Y,'Detall - Detalle'!$AA:$AA,'Pressupost - Pressupuesto'!$A19,'Detall - Detalle'!$Z:$Z,H$4),SUMIFS('Detall - Detalle'!$Y:$Y,'Detall - Detalle'!$T:$T,'Pressupost - Pressupuesto'!$A$1,'Detall - Detalle'!$AA:$AA,'Pressupost - Pressupuesto'!$A19,'Detall - Detalle'!$Z:$Z,H$4))","v":0},{"$f":"+IF(OR($A$1=\"TOTES LES ACTIVITATS\",$A$1=\"\"),SUMIFS('Detall - Detalle'!$Y:$Y,'Detall - Detalle'!$AA:$AA,'Pressupost - Pressupuesto'!$A19,'Detall - Detalle'!$Z:$Z,I$4),SUMIFS('Detall - Detalle'!$Y:$Y,'Detall - Detalle'!$T:$T,'Pressupost - Pressupuesto'!$A$1,'Detall - Detalle'!$AA:$AA,'Pressupost - Pressupuesto'!$A19,'Detall - Detalle'!$Z:$Z,I$4))","v":0},{"$f":"+IF(OR($A$1=\"TOTES LES ACTIVITATS\",$A$1=\"\"),SUMIFS('Detall - Detalle'!$V:$V,'Detall - Detalle'!$AA:$AA,'Pressupost - Pressupuesto'!$A19,'Detall - Detalle'!$Z:$Z,J$4),SUMIFS('Detall - Detalle'!$V:$V,'Detall - Detalle'!$T:$T,'Pressupost - Pressupuesto'!$A$1,'Detall - Detalle'!$AA:$AA,'Pressupost - Pressupuesto'!$A19,'Detall - Detalle'!$Z:$Z,J$4))","v":0},{"$f":"+IF(OR($A$1=\"TOTES LES ACTIVITATS\",$A$1=\"\"),SUMIFS('Detall - Detalle'!$V:$V,'Detall - Detalle'!$AA:$AA,'Pressupost - Pressupuesto'!$A19,'Detall - Detalle'!$Z:$Z,K$4),SUMIFS('Detall - Detalle'!$V:$V,'Detall - Detalle'!$T:$T,'Pressupost - Pressupuesto'!$A$1,'Detall - Detalle'!$AA:$AA,'Pressupost - Pressupuesto'!$A19,'Detall - Detalle'!$Z:$Z,K$4))","v":0},{"$f":"+IF(OR($A$1=\"TOTES LES ACTIVITATS\",$A$1=\"\"),SUMIFS('Detall - Detalle'!$V:$V,'Detall - Detalle'!$AA:$AA,'Pressupost - Pressupuesto'!$A19,'Detall - Detalle'!$Z:$Z,L$4),SUMIFS('Detall - Detalle'!$V:$V,'Detall - Detalle'!$T:$T,'Pressupost - Pressupuesto'!$A$1,'Detall - Detalle'!$AA:$AA,'Pressupost - Pressupuesto'!$A19,'Detall - Detalle'!$Z:$Z,L$4))","v":0},{"$f":"+IF(OR($A$1=\"TOTES LES ACTIVITATS\",$A$1=\"\"),SUMIFS('Detall - Detalle'!$V:$V,'Detall - Detalle'!$AA:$AA,'Pressupost - Pressupuesto'!$A19,'Detall - Detalle'!$Z:$Z,M$4),SUMIFS('Detall - Detalle'!$V:$V,'Detall - Detalle'!$T:$T,'Pressupost - Pressupuesto'!$A$1,'Detall - Detalle'!$AA:$AA,'Pressupost - Pressupuesto'!$A19,'Detall - Detalle'!$Z:$Z,M$4))","v":0},{"$f":"+IF(OR($A$1=\"TOTES LES ACTIVITATS\",$A$1=\"\"),SUMIFS('Detall - Detalle'!$V:$V,'Detall - Detalle'!$AA:$AA,'Pressupost - Pressupuesto'!$A19,'Detall - Detalle'!$Z:$Z,N$4),SUMIFS('Detall - Detalle'!$V:$V,'Detall - Detalle'!$T:$T,'Pressupost - Pressupuesto'!$A$1,'Detall - Detalle'!$AA:$AA,'Pressupost - Pressupuesto'!$A19,'Detall - Detalle'!$Z:$Z,N$4))","v":0},{"$f":"+SUMIFS('Detall - Detalle'!$V:$V,'Detall - Detalle'!$T:$T,O$4,'Detall - Detalle'!$AA:$AA,'Pressupost - Pressupuesto'!$A19)","v":0},{"$f":"+SUMIFS('Detall - Detalle'!$V:$V,'Detall - Detalle'!$T:$T,P$4,'Detall - Detalle'!$AA:$AA,'Pressupost - Pressupuesto'!$A19)","v":0},{"$f":"+SUMIFS('Detall - Detalle'!$V:$V,'Detall - Detalle'!$T:$T,Q$4,'Detall - Detalle'!$AA:$AA,'Pressupost - Pressupuesto'!$A19)","v":0},{"$f":"+SUMIFS('Detall - Detalle'!$V:$V,'Detall - Detalle'!$T:$T,R$4,'Detall - Detalle'!$AA:$AA,'Pressupost - Pressupuesto'!$A19)","v":0},{"$f":"+SUMIFS('Detall - Detalle'!$V:$V,'Detall - Detalle'!$T:$T,S$4,'Detall - Detalle'!$AA:$AA,'Pressupost - Pressupuesto'!$A19)","v":0},{"$f":"+SUMIFS('Detall - Detalle'!$V:$V,'Detall - Detalle'!$T:$T,T$4,'Detall - Detalle'!$AA:$AA,'Pressupost - Pressupuesto'!$A19)","v":0},{"$f":"+SUMIFS('Detall - Detalle'!$V:$V,'Detall - Detalle'!$T:$T,U$4,'Detall - Detalle'!$AA:$AA,'Pressupost - Pressupuesto'!$A19)","v":0},{"$f":"+SUMIFS('Detall - Detalle'!$V:$V,'Detall - Detalle'!$T:$T,V$4,'Detall - Detalle'!$AA:$AA,'Pressupost - Pressupuesto'!$A19)","v":0},{"$f":"+SUMIFS('Detall - Detalle'!$V:$V,'Detall - Detalle'!$T:$T,W$4,'Detall - Detalle'!$AA:$AA,'Pressupost - Pressupuesto'!$A19)","v":0},{"$f":"+SUMIFS('Detall - Detalle'!$V:$V,'Detall - Detalle'!$T:$T,X$4,'Detall - Detalle'!$AA:$AA,'Pressupost - Pressupuesto'!$A19)","v":0},{"$f":"+SUMIFS('Detall - Detalle'!$V:$V,'Detall - Detalle'!$T:$T,Y$4,'Detall - Detalle'!$AA:$AA,'Pressupost - Pressupuesto'!$A19)","v":0},{"$f":"+SUMIFS('Detall - Detalle'!$V:$V,'Detall - Detalle'!$T:$T,Z$4,'Detall - Detalle'!$AA:$AA,'Pressupost - Pressupuesto'!$A19)","v":0},{"$f":"+SUMIFS('Detall - Detalle'!$V:$V,'Detall - Detalle'!$T:$T,AA$4,'Detall - Detalle'!$AA:$AA,'Pressupost - Pressupuesto'!$A19)","v":0},{"$f":"+SUMIFS('Detall - Detalle'!$V:$V,'Detall - Detalle'!$T:$T,AB$4,'Detall - Detalle'!$AA:$AA,'Pressupost - Pressupuesto'!$A19)","v":0},{"$f":"+SUMIFS('Detall - Detalle'!$V:$V,'Detall - Detalle'!$T:$T,AC$4,'Detall - Detalle'!$AA:$AA,'Pressupost - Pressupuesto'!$A19)","v":0},{"$f":"+SUMIFS('Detall - Detalle'!$V:$V,'Detall - Detalle'!$T:$T,AD$4,'Detall - Detalle'!$AA:$AA,'Pressupost - Pressupuesto'!$A19)","v":0},{"$f":"+SUMIFS('Detall - Detalle'!$V:$V,'Detall - Detalle'!$T:$T,AE$4,'Detall - Detalle'!$AA:$AA,'Pressupost - Pressupuesto'!$A19)","v":0},{"$f":"+SUMIFS('Detall - Detalle'!$V:$V,'Detall - Detalle'!$T:$T,AF$4,'Detall - Detalle'!$AA:$AA,'Pressupost - Pressupuesto'!$A19)","v":0},{"$f":"+SUMIFS('Detall - Detalle'!$V:$V,'Detall - Detalle'!$T:$T,AG$4,'Detall - Detalle'!$AA:$AA,'Pressupost - Pressupuesto'!$A19)","v":0},{"$f":"+SUMIFS('Detall - Detalle'!$V:$V,'Detall - Detalle'!$T:$T,AH$4,'Detall - Detalle'!$AA:$AA,'Pressupost - Pressupuesto'!$A19)","v":0}]
["a12 Avaluació / Evaluación",0,{"$f":"+IF(OR($A$1=\"TOTES LES ACTIVITATS\",$A$1=\"\"),SUMIF('Detall - Detalle'!$AA:$AA,$A20,'Detall - Detalle'!$W:$W),SUMIFS('Detall - Detalle'!$W:$W,'Detall - Detalle'!$T:$T,'Pressupost - Pressupuesto'!$A$1,'Detall - Detalle'!$AA:$AA,'Pressupost - Pressupuesto'!$A20))","v":0},{"$f":"+IF(OR($A$1=\"TOTES LES ACTIVITATS\",$A$1=\"\"),SUMIF('Detall - Detalle'!$AA:$AA,$A20,'Detall - Detalle'!$X:$X),SUMIFS('Detall - Detalle'!$X:$X,'Detall - Detalle'!$T:$T,'Pressupost - Pressupuesto'!$A$1,'Detall - Detalle'!$AA:$AA,'Pressupost - Pressupuesto'!$A20))","v":0},{"$f":"+IF(OR($A$1=\"TOTES LES ACTIVITATS\",$A$1=\"\"),SUMIFS('Detall - Detalle'!$Y:$Y,'Detall - Detalle'!$AA:$AA,'Pressupost - Pressupuesto'!$A20,'Detall - Detalle'!$Z:$Z,E$4),SUMIFS('Detall - Detalle'!$Y:$Y,'Detall - Detalle'!$T:$T,'Pressupost - Pressupuesto'!$A$1,'Detall - Detalle'!$AA:$AA,'Pressupost - Pressupuesto'!$A20,'Detall - Detalle'!$Z:$Z,E$4))","v":0},{"$f":"+IF(OR($A$1=\"TOTES LES ACTIVITATS\",$A$1=\"\"),SUMIFS('Detall - Detalle'!$Y:$Y,'Detall - Detalle'!$AA:$AA,'Pressupost - Pressupuesto'!$A20,'Detall - Detalle'!$Z:$Z,F$4),SUMIFS('Detall - Detalle'!$Y:$Y,'Detall - Detalle'!$T:$T,'Pressupost - Pressupuesto'!$A$1,'Detall - Detalle'!$AA:$AA,'Pressupost - Pressupuesto'!$A20,'Detall - Detalle'!$Z:$Z,F$4))","v":0},{"$f":"+IF(OR($A$1=\"TOTES LES ACTIVITATS\",$A$1=\"\"),SUMIFS('Detall - Detalle'!$Y:$Y,'Detall - Detalle'!$AA:$AA,'Pressupost - Pressupuesto'!$A20,'Detall - Detalle'!$Z:$Z,G$4),SUMIFS('Detall - Detalle'!$Y:$Y,'Detall - Detalle'!$T:$T,'Pressupost - Pressupuesto'!$A$1,'Detall - Detalle'!$AA:$AA,'Pressupost - Pressupuesto'!$A20,'Detall - Detalle'!$Z:$Z,G$4))","v":0},{"$f":"+IF(OR($A$1=\"TOTES LES ACTIVITATS\",$A$1=\"\"),SUMIFS('Detall - Detalle'!$Y:$Y,'Detall - Detalle'!$AA:$AA,'Pressupost - Pressupuesto'!$A20,'Detall - Detalle'!$Z:$Z,H$4),SUMIFS('Detall - Detalle'!$Y:$Y,'Detall - Detalle'!$T:$T,'Pressupost - Pressupuesto'!$A$1,'Detall - Detalle'!$AA:$AA,'Pressupost - Pressupuesto'!$A20,'Detall - Detalle'!$Z:$Z,H$4))","v":0},{"$f":"+IF(OR($A$1=\"TOTES LES ACTIVITATS\",$A$1=\"\"),SUMIFS('Detall - Detalle'!$Y:$Y,'Detall - Detalle'!$AA:$AA,'Pressupost - Pressupuesto'!$A20,'Detall - Detalle'!$Z:$Z,I$4),SUMIFS('Detall - Detalle'!$Y:$Y,'Detall - Detalle'!$T:$T,'Pressupost - Pressupuesto'!$A$1,'Detall - Detalle'!$AA:$AA,'Pressupost - Pressupuesto'!$A20,'Detall - Detalle'!$Z:$Z,I$4))","v":0},{"$f":"+IF(OR($A$1=\"TOTES LES ACTIVITATS\",$A$1=\"\"),SUMIFS('Detall - Detalle'!$V:$V,'Detall - Detalle'!$AA:$AA,'Pressupost - Pressupuesto'!$A20,'Detall - Detalle'!$Z:$Z,J$4),SUMIFS('Detall - Detalle'!$V:$V,'Detall - Detalle'!$T:$T,'Pressupost - Pressupuesto'!$A$1,'Detall - Detalle'!$AA:$AA,'Pressupost - Pressupuesto'!$A20,'Detall - Detalle'!$Z:$Z,J$4))","v":0},{"$f":"+IF(OR($A$1=\"TOTES LES ACTIVITATS\",$A$1=\"\"),SUMIFS('Detall - Detalle'!$V:$V,'Detall - Detalle'!$AA:$AA,'Pressupost - Pressupuesto'!$A20,'Detall - Detalle'!$Z:$Z,K$4),SUMIFS('Detall - Detalle'!$V:$V,'Detall - Detalle'!$T:$T,'Pressupost - Pressupuesto'!$A$1,'Detall - Detalle'!$AA:$AA,'Pressupost - Pressupuesto'!$A20,'Detall - Detalle'!$Z:$Z,K$4))","v":0},{"$f":"+IF(OR($A$1=\"TOTES LES ACTIVITATS\",$A$1=\"\"),SUMIFS('Detall - Detalle'!$V:$V,'Detall - Detalle'!$AA:$AA,'Pressupost - Pressupuesto'!$A20,'Detall - Detalle'!$Z:$Z,L$4),SUMIFS('Detall - Detalle'!$V:$V,'Detall - Detalle'!$T:$T,'Pressupost - Pressupuesto'!$A$1,'Detall - Detalle'!$AA:$AA,'Pressupost - Pressupuesto'!$A20,'Detall - Detalle'!$Z:$Z,L$4))","v":0},{"$f":"+IF(OR($A$1=\"TOTES LES ACTIVITATS\",$A$1=\"\"),SUMIFS('Detall - Detalle'!$V:$V,'Detall - Detalle'!$AA:$AA,'Pressupost - Pressupuesto'!$A20,'Detall - Detalle'!$Z:$Z,M$4),SUMIFS('Detall - Detalle'!$V:$V,'Detall - Detalle'!$T:$T,'Pressupost - Pressupuesto'!$A$1,'Detall - Detalle'!$AA:$AA,'Pressupost - Pressupuesto'!$A20,'Detall - Detalle'!$Z:$Z,M$4))","v":0},{"$f":"+IF(OR($A$1=\"TOTES LES ACTIVITATS\",$A$1=\"\"),SUMIFS('Detall - Detalle'!$V:$V,'Detall - Detalle'!$AA:$AA,'Pressupost - Pressupuesto'!$A20,'Detall - Detalle'!$Z:$Z,N$4),SUMIFS('Detall - Detalle'!$V:$V,'Detall - Detalle'!$T:$T,'Pressupost - Pressupuesto'!$A$1,'Detall - Detalle'!$AA:$AA,'Pressupost - Pressupuesto'!$A20,'Detall - Detalle'!$Z:$Z,N$4))","v":0},{"$f":"+SUMIFS('Detall - Detalle'!$V:$V,'Detall - Detalle'!$T:$T,O$4,'Detall - Detalle'!$AA:$AA,'Pressupost - Pressupuesto'!$A20)","v":0},{"$f":"+SUMIFS('Detall - Detalle'!$V:$V,'Detall - Detalle'!$T:$T,P$4,'Detall - Detalle'!$AA:$AA,'Pressupost - Pressupuesto'!$A20)","v":0},{"$f":"+SUMIFS('Detall - Detalle'!$V:$V,'Detall - Detalle'!$T:$T,Q$4,'Detall - Detalle'!$AA:$AA,'Pressupost - Pressupuesto'!$A20)","v":0},{"$f":"+SUMIFS('Detall - Detalle'!$V:$V,'Detall - Detalle'!$T:$T,R$4,'Detall - Detalle'!$AA:$AA,'Pressupost - Pressupuesto'!$A20)","v":0},{"$f":"+SUMIFS('Detall - Detalle'!$V:$V,'Detall - Detalle'!$T:$T,S$4,'Detall - Detalle'!$AA:$AA,'Pressupost - Pressupuesto'!$A20)","v":0},{"$f":"+SUMIFS('Detall - Detalle'!$V:$V,'Detall - Detalle'!$T:$T,T$4,'Detall - Detalle'!$AA:$AA,'Pressupost - Pressupuesto'!$A20)","v":0},{"$f":"+SUMIFS('Detall - Detalle'!$V:$V,'Detall - Detalle'!$T:$T,U$4,'Detall - Detalle'!$AA:$AA,'Pressupost - Pressupuesto'!$A20)","v":0},{"$f":"+SUMIFS('Detall - Detalle'!$V:$V,'Detall - Detalle'!$T:$T,V$4,'Detall - Detalle'!$AA:$AA,'Pressupost - Pressupuesto'!$A20)","v":0},{"$f":"+SUMIFS('Detall - Detalle'!$V:$V,'Detall - Detalle'!$T:$T,W$4,'Detall - Detalle'!$AA:$AA,'Pressupost - Pressupuesto'!$A20)","v":0},{"$f":"+SUMIFS('Detall - Detalle'!$V:$V,'Detall - Detalle'!$T:$T,X$4,'Detall - Detalle'!$AA:$AA,'Pressupost - Pressupuesto'!$A20)","v":0},{"$f":"+SUMIFS('Detall - Detalle'!$V:$V,'Detall - Detalle'!$T:$T,Y$4,'Detall - Detalle'!$AA:$AA,'Pressupost - Pressupuesto'!$A20)","v":0},{"$f":"+SUMIFS('Detall - Detalle'!$V:$V,'Detall - Detalle'!$T:$T,Z$4,'Detall - Detalle'!$AA:$AA,'Pressupost - Pressupuesto'!$A20)","v":0},{"$f":"+SUMIFS('Detall - Detalle'!$V:$V,'Detall - Detalle'!$T:$T,AA$4,'Detall - Detalle'!$AA:$AA,'Pressupost - Pressupuesto'!$A20)","v":0},{"$f":"+SUMIFS('Detall - Detalle'!$V:$V,'Detall - Detalle'!$T:$T,AB$4,'Detall - Detalle'!$AA:$AA,'Pressupost - Pressupuesto'!$A20)","v":0},{"$f":"+SUMIFS('Detall - Detalle'!$V:$V,'Detall - Detalle'!$T:$T,AC$4,'Detall - Detalle'!$AA:$AA,'Pressupost - Pressupuesto'!$A20)","v":0},{"$f":"+SUMIFS('Detall - Detalle'!$V:$V,'Detall - Detalle'!$T:$T,AD$4,'Detall - Detalle'!$AA:$AA,'Pressupost - Pressupuesto'!$A20)","v":0},{"$f":"+SUMIFS('Detall - Detalle'!$V:$V,'Detall - Detalle'!$T:$T,AE$4,'Detall - Detalle'!$AA:$AA,'Pressupost - Pressupuesto'!$A20)","v":0},{"$f":"+SUMIFS('Detall - Detalle'!$V:$V,'Detall - Detalle'!$T:$T,AF$4,'Detall - Detalle'!$AA:$AA,'Pressupost - Pressupuesto'!$A20)","v":0},{"$f":"+SUMIFS('Detall - Detalle'!$V:$V,'Detall - Detalle'!$T:$T,AG$4,'Detall - Detalle'!$AA:$AA,'Pressupost - Pressupuesto'!$A20)","v":0},{"$f":"+SUMIFS('Detall - Detalle'!$V:$V,'Detall - Detalle'!$T:$T,AH$4,'Detall - Detalle'!$AA:$AA,'Pressupost - Pressupuesto'!$A20)","v":0}]
["a13 Dietes, locomoció, trasllats i allotjaments / Dietas, locomoción, traslados y alojamientos",0,{"$f":"+IF(OR($A$1=\"TOTES LES ACTIVITATS\",$A$1=\"\"),SUMIF('Detall - Detalle'!$AA:$AA,$A21,'Detall - Detalle'!$W:$W),SUMIFS('Detall - Detalle'!$W:$W,'Detall - Detalle'!$T:$T,'Pressupost - Pressupuesto'!$A$1,'Detall - Detalle'!$AA:$AA,'Pressupost - Pressupuesto'!$A21))","v":0},{"$f":"+IF(OR($A$1=\"TOTES LES ACTIVITATS\",$A$1=\"\"),SUMIF('Detall - Detalle'!$AA:$AA,$A21,'Detall - Detalle'!$X:$X),SUMIFS('Detall - Detalle'!$X:$X,'Detall - Detalle'!$T:$T,'Pressupost - Pressupuesto'!$A$1,'Detall - Detalle'!$AA:$AA,'Pressupost - Pressupuesto'!$A21))","v":0},{"$f":"+IF(OR($A$1=\"TOTES LES ACTIVITATS\",$A$1=\"\"),SUMIFS('Detall - Detalle'!$Y:$Y,'Detall - Detalle'!$AA:$AA,'Pressupost - Pressupuesto'!$A21,'Detall - Detalle'!$Z:$Z,E$4),SUMIFS('Detall - Detalle'!$Y:$Y,'Detall - Detalle'!$T:$T,'Pressupost - Pressupuesto'!$A$1,'Detall - Detalle'!$AA:$AA,'Pressupost - Pressupuesto'!$A21,'Detall - Detalle'!$Z:$Z,E$4))","v":0},{"$f":"+IF(OR($A$1=\"TOTES LES ACTIVITATS\",$A$1=\"\"),SUMIFS('Detall - Detalle'!$Y:$Y,'Detall - Detalle'!$AA:$AA,'Pressupost - Pressupuesto'!$A21,'Detall - Detalle'!$Z:$Z,F$4),SUMIFS('Detall - Detalle'!$Y:$Y,'Detall - Detalle'!$T:$T,'Pressupost - Pressupuesto'!$A$1,'Detall - Detalle'!$AA:$AA,'Pressupost - Pressupuesto'!$A21,'Detall - Detalle'!$Z:$Z,F$4))","v":0},{"$f":"+IF(OR($A$1=\"TOTES LES ACTIVITATS\",$A$1=\"\"),SUMIFS('Detall - Detalle'!$Y:$Y,'Detall - Detalle'!$AA:$AA,'Pressupost - Pressupuesto'!$A21,'Detall - Detalle'!$Z:$Z,G$4),SUMIFS('Detall - Detalle'!$Y:$Y,'Detall - Detalle'!$T:$T,'Pressupost - Pressupuesto'!$A$1,'Detall - Detalle'!$AA:$AA,'Pressupost - Pressupuesto'!$A21,'Detall - Detalle'!$Z:$Z,G$4))","v":0},{"$f":"+IF(OR($A$1=\"TOTES LES ACTIVITATS\",$A$1=\"\"),SUMIFS('Detall - Detalle'!$Y:$Y,'Detall - Detalle'!$AA:$AA,'Pressupost - Pressupuesto'!$A21,'Detall - Detalle'!$Z:$Z,H$4),SUMIFS('Detall - Detalle'!$Y:$Y,'Detall - Detalle'!$T:$T,'Pressupost - Pressupuesto'!$A$1,'Detall - Detalle'!$AA:$AA,'Pressupost - Pressupuesto'!$A21,'Detall - Detalle'!$Z:$Z,H$4))","v":0},{"$f":"+IF(OR($A$1=\"TOTES LES ACTIVITATS\",$A$1=\"\"),SUMIFS('Detall - Detalle'!$Y:$Y,'Detall - Detalle'!$AA:$AA,'Pressupost - Pressupuesto'!$A21,'Detall - Detalle'!$Z:$Z,I$4),SUMIFS('Detall - Detalle'!$Y:$Y,'Detall - Detalle'!$T:$T,'Pressupost - Pressupuesto'!$A$1,'Detall - Detalle'!$AA:$AA,'Pressupost - Pressupuesto'!$A21,'Detall - Detalle'!$Z:$Z,I$4))","v":0},{"$f":"+IF(OR($A$1=\"TOTES LES ACTIVITATS\",$A$1=\"\"),SUMIFS('Detall - Detalle'!$V:$V,'Detall - Detalle'!$AA:$AA,'Pressupost - Pressupuesto'!$A21,'Detall - Detalle'!$Z:$Z,J$4),SUMIFS('Detall - Detalle'!$V:$V,'Detall - Detalle'!$T:$T,'Pressupost - Pressupuesto'!$A$1,'Detall - Detalle'!$AA:$AA,'Pressupost - Pressupuesto'!$A21,'Detall - Detalle'!$Z:$Z,J$4))","v":0},{"$f":"+IF(OR($A$1=\"TOTES LES ACTIVITATS\",$A$1=\"\"),SUMIFS('Detall - Detalle'!$V:$V,'Detall - Detalle'!$AA:$AA,'Pressupost - Pressupuesto'!$A21,'Detall - Detalle'!$Z:$Z,K$4),SUMIFS('Detall - Detalle'!$V:$V,'Detall - Detalle'!$T:$T,'Pressupost - Pressupuesto'!$A$1,'Detall - Detalle'!$AA:$AA,'Pressupost - Pressupuesto'!$A21,'Detall - Detalle'!$Z:$Z,K$4))","v":0},{"$f":"+IF(OR($A$1=\"TOTES LES ACTIVITATS\",$A$1=\"\"),SUMIFS('Detall - Detalle'!$V:$V,'Detall - Detalle'!$AA:$AA,'Pressupost - Pressupuesto'!$A21,'Detall - Detalle'!$Z:$Z,L$4),SUMIFS('Detall - Detalle'!$V:$V,'Detall - Detalle'!$T:$T,'Pressupost - Pressupuesto'!$A$1,'Detall - Detalle'!$AA:$AA,'Pressupost - Pressupuesto'!$A21,'Detall - Detalle'!$Z:$Z,L$4))","v":0},{"$f":"+IF(OR($A$1=\"TOTES LES ACTIVITATS\",$A$1=\"\"),SUMIFS('Detall - Detalle'!$V:$V,'Detall - Detalle'!$AA:$AA,'Pressupost - Pressupuesto'!$A21,'Detall - Detalle'!$Z:$Z,M$4),SUMIFS('Detall - Detalle'!$V:$V,'Detall - Detalle'!$T:$T,'Pressupost - Pressupuesto'!$A$1,'Detall - Detalle'!$AA:$AA,'Pressupost - Pressupuesto'!$A21,'Detall - Detalle'!$Z:$Z,M$4))","v":0},{"$f":"+IF(OR($A$1=\"TOTES LES ACTIVITATS\",$A$1=\"\"),SUMIFS('Detall - Detalle'!$V:$V,'Detall - Detalle'!$AA:$AA,'Pressupost - Pressupuesto'!$A21,'Detall - Detalle'!$Z:$Z,N$4),SUMIFS('Detall - Detalle'!$V:$V,'Detall - Detalle'!$T:$T,'Pressupost - Pressupuesto'!$A$1,'Detall - Detalle'!$AA:$AA,'Pressupost - Pressupuesto'!$A21,'Detall - Detalle'!$Z:$Z,N$4))","v":0},{"$f":"+SUMIFS('Detall - Detalle'!$V:$V,'Detall - Detalle'!$T:$T,O$4,'Detall - Detalle'!$AA:$AA,'Pressupost - Pressupuesto'!$A21)","v":0},{"$f":"+SUMIFS('Detall - Detalle'!$V:$V,'Detall - Detalle'!$T:$T,P$4,'Detall - Detalle'!$AA:$AA,'Pressupost - Pressupuesto'!$A21)","v":0},{"$f":"+SUMIFS('Detall - Detalle'!$V:$V,'Detall - Detalle'!$T:$T,Q$4,'Detall - Detalle'!$AA:$AA,'Pressupost - Pressupuesto'!$A21)","v":0},{"$f":"+SUMIFS('Detall - Detalle'!$V:$V,'Detall - Detalle'!$T:$T,R$4,'Detall - Detalle'!$AA:$AA,'Pressupost - Pressupuesto'!$A21)","v":0},{"$f":"+SUMIFS('Detall - Detalle'!$V:$V,'Detall - Detalle'!$T:$T,S$4,'Detall - Detalle'!$AA:$AA,'Pressupost - Pressupuesto'!$A21)","v":0},{"$f":"+SUMIFS('Detall - Detalle'!$V:$V,'Detall - Detalle'!$T:$T,T$4,'Detall - Detalle'!$AA:$AA,'Pressupost - Pressupuesto'!$A21)","v":0},{"$f":"+SUMIFS('Detall - Detalle'!$V:$V,'Detall - Detalle'!$T:$T,U$4,'Detall - Detalle'!$AA:$AA,'Pressupost - Pressupuesto'!$A21)","v":0},{"$f":"+SUMIFS('Detall - Detalle'!$V:$V,'Detall - Detalle'!$T:$T,V$4,'Detall - Detalle'!$AA:$AA,'Pressupost - Pressupuesto'!$A21)","v":0},{"$f":"+SUMIFS('Detall - Detalle'!$V:$V,'Detall - Detalle'!$T:$T,W$4,'Detall - Detalle'!$AA:$AA,'Pressupost - Pressupuesto'!$A21)","v":0},{"$f":"+SUMIFS('Detall - Detalle'!$V:$V,'Detall - Detalle'!$T:$T,X$4,'Detall - Detalle'!$AA:$AA,'Pressupost - Pressupuesto'!$A21)","v":0},{"$f":"+SUMIFS('Detall - Detalle'!$V:$V,'Detall - Detalle'!$T:$T,Y$4,'Detall - Detalle'!$AA:$AA,'Pressupost - Pressupuesto'!$A21)","v":0},{"$f":"+SUMIFS('Detall - Detalle'!$V:$V,'Detall - Detalle'!$T:$T,Z$4,'Detall - Detalle'!$AA:$AA,'Pressupost - Pressupuesto'!$A21)","v":0},{"$f":"+SUMIFS('Detall - Detalle'!$V:$V,'Detall - Detalle'!$T:$T,AA$4,'Detall - Detalle'!$AA:$AA,'Pressupost - Pressupuesto'!$A21)","v":0},{"$f":"+SUMIFS('Detall - Detalle'!$V:$V,'Detall - Detalle'!$T:$T,AB$4,'Detall - Detalle'!$AA:$AA,'Pressupost - Pressupuesto'!$A21)","v":0},{"$f":"+SUMIFS('Detall - Detalle'!$V:$V,'Detall - Detalle'!$T:$T,AC$4,'Detall - Detalle'!$AA:$AA,'Pressupost - Pressupuesto'!$A21)","v":0},{"$f":"+SUMIFS('Detall - Detalle'!$V:$V,'Detall - Detalle'!$T:$T,AD$4,'Detall - Detalle'!$AA:$AA,'Pressupost - Pressupuesto'!$A21)","v":0},{"$f":"+SUMIFS('Detall - Detalle'!$V:$V,'Detall - Detalle'!$T:$T,AE$4,'Detall - Detalle'!$AA:$AA,'Pressupost - Pressupuesto'!$A21)","v":0},{"$f":"+SUMIFS('Detall - Detalle'!$V:$V,'Detall - Detalle'!$T:$T,AF$4,'Detall - Detalle'!$AA:$AA,'Pressupost - Pressupuesto'!$A21)","v":0},{"$f":"+SUMIFS('Detall - Detalle'!$V:$V,'Detall - Detalle'!$T:$T,AG$4,'Detall - Detalle'!$AA:$AA,'Pressupost - Pressupuesto'!$A21)","v":0},{"$f":"+SUMIFS('Detall - Detalle'!$V:$V,'Detall - Detalle'!$T:$T,AH$4,'Detall - Detalle'!$AA:$AA,'Pressupost - Pressupuesto'!$A21)","v":0}]
["a14 Informe auditor / Informe de auditor",0,{"$f":"+IF(OR($A$1=\"TOTES LES ACTIVITATS\",$A$1=\"\"),SUMIF('Detall - Detalle'!$AA:$AA,$A22,'Detall - Detalle'!$W:$W),SUMIFS('Detall - Detalle'!$W:$W,'Detall - Detalle'!$T:$T,'Pressupost - Pressupuesto'!$A$1,'Detall - Detalle'!$AA:$AA,'Pressupost - Pressupuesto'!$A22))","v":0},{"$f":"+IF(OR($A$1=\"TOTES LES ACTIVITATS\",$A$1=\"\"),SUMIF('Detall - Detalle'!$AA:$AA,$A22,'Detall - Detalle'!$X:$X),SUMIFS('Detall - Detalle'!$X:$X,'Detall - Detalle'!$T:$T,'Pressupost - Pressupuesto'!$A$1,'Detall - Detalle'!$AA:$AA,'Pressupost - Pressupuesto'!$A22))","v":0},{"$f":"+IF(OR($A$1=\"TOTES LES ACTIVITATS\",$A$1=\"\"),SUMIFS('Detall - Detalle'!$Y:$Y,'Detall - Detalle'!$AA:$AA,'Pressupost - Pressupuesto'!$A22,'Detall - Detalle'!$Z:$Z,E$4),SUMIFS('Detall - Detalle'!$Y:$Y,'Detall - Detalle'!$T:$T,'Pressupost - Pressupuesto'!$A$1,'Detall - Detalle'!$AA:$AA,'Pressupost - Pressupuesto'!$A22,'Detall - Detalle'!$Z:$Z,E$4))","v":0},{"$f":"+IF(OR($A$1=\"TOTES LES ACTIVITATS\",$A$1=\"\"),SUMIFS('Detall - Detalle'!$Y:$Y,'Detall - Detalle'!$AA:$AA,'Pressupost - Pressupuesto'!$A22,'Detall - Detalle'!$Z:$Z,F$4),SUMIFS('Detall - Detalle'!$Y:$Y,'Detall - Detalle'!$T:$T,'Pressupost - Pressupuesto'!$A$1,'Detall - Detalle'!$AA:$AA,'Pressupost - Pressupuesto'!$A22,'Detall - Detalle'!$Z:$Z,F$4))","v":0},{"$f":"+IF(OR($A$1=\"TOTES LES ACTIVITATS\",$A$1=\"\"),SUMIFS('Detall - Detalle'!$Y:$Y,'Detall - Detalle'!$AA:$AA,'Pressupost - Pressupuesto'!$A22,'Detall - Detalle'!$Z:$Z,G$4),SUMIFS('Detall - Detalle'!$Y:$Y,'Detall - Detalle'!$T:$T,'Pressupost - Pressupuesto'!$A$1,'Detall - Detalle'!$AA:$AA,'Pressupost - Pressupuesto'!$A22,'Detall - Detalle'!$Z:$Z,G$4))","v":0},{"$f":"+IF(OR($A$1=\"TOTES LES ACTIVITATS\",$A$1=\"\"),SUMIFS('Detall - Detalle'!$Y:$Y,'Detall - Detalle'!$AA:$AA,'Pressupost - Pressupuesto'!$A22,'Detall - Detalle'!$Z:$Z,H$4),SUMIFS('Detall - Detalle'!$Y:$Y,'Detall - Detalle'!$T:$T,'Pressupost - Pressupuesto'!$A$1,'Detall - Detalle'!$AA:$AA,'Pressupost - Pressupuesto'!$A22,'Detall - Detalle'!$Z:$Z,H$4))","v":0},{"$f":"+IF(OR($A$1=\"TOTES LES ACTIVITATS\",$A$1=\"\"),SUMIFS('Detall - Detalle'!$Y:$Y,'Detall - Detalle'!$AA:$AA,'Pressupost - Pressupuesto'!$A22,'Detall - Detalle'!$Z:$Z,I$4),SUMIFS('Detall - Detalle'!$Y:$Y,'Detall - Detalle'!$T:$T,'Pressupost - Pressupuesto'!$A$1,'Detall - Detalle'!$AA:$AA,'Pressupost - Pressupuesto'!$A22,'Detall - Detalle'!$Z:$Z,I$4))","v":0},{"$f":"+IF(OR($A$1=\"TOTES LES ACTIVITATS\",$A$1=\"\"),SUMIFS('Detall - Detalle'!$V:$V,'Detall - Detalle'!$AA:$AA,'Pressupost - Pressupuesto'!$A22,'Detall - Detalle'!$Z:$Z,J$4),SUMIFS('Detall - Detalle'!$V:$V,'Detall - Detalle'!$T:$T,'Pressupost - Pressupuesto'!$A$1,'Detall - Detalle'!$AA:$AA,'Pressupost - Pressupuesto'!$A22,'Detall - Detalle'!$Z:$Z,J$4))","v":0},{"$f":"+IF(OR($A$1=\"TOTES LES ACTIVITATS\",$A$1=\"\"),SUMIFS('Detall - Detalle'!$V:$V,'Detall - Detalle'!$AA:$AA,'Pressupost - Pressupuesto'!$A22,'Detall - Detalle'!$Z:$Z,K$4),SUMIFS('Detall - Detalle'!$V:$V,'Detall - Detalle'!$T:$T,'Pressupost - Pressupuesto'!$A$1,'Detall - Detalle'!$AA:$AA,'Pressupost - Pressupuesto'!$A22,'Detall - Detalle'!$Z:$Z,K$4))","v":0},{"$f":"+IF(OR($A$1=\"TOTES LES ACTIVITATS\",$A$1=\"\"),SUMIFS('Detall - Detalle'!$V:$V,'Detall - Detalle'!$AA:$AA,'Pressupost - Pressupuesto'!$A22,'Detall - Detalle'!$Z:$Z,L$4),SUMIFS('Detall - Detalle'!$V:$V,'Detall - Detalle'!$T:$T,'Pressupost - Pressupuesto'!$A$1,'Detall - Detalle'!$AA:$AA,'Pressupost - Pressupuesto'!$A22,'Detall - Detalle'!$Z:$Z,L$4))","v":0},{"$f":"+IF(OR($A$1=\"TOTES LES ACTIVITATS\",$A$1=\"\"),SUMIFS('Detall - Detalle'!$V:$V,'Detall - Detalle'!$AA:$AA,'Pressupost - Pressupuesto'!$A22,'Detall - Detalle'!$Z:$Z,M$4),SUMIFS('Detall - Detalle'!$V:$V,'Detall - Detalle'!$T:$T,'Pressupost - Pressupuesto'!$A$1,'Detall - Detalle'!$AA:$AA,'Pressupost - Pressupuesto'!$A22,'Detall - Detalle'!$Z:$Z,M$4))","v":0},{"$f":"+IF(OR($A$1=\"TOTES LES ACTIVITATS\",$A$1=\"\"),SUMIFS('Detall - Detalle'!$V:$V,'Detall - Detalle'!$AA:$AA,'Pressupost - Pressupuesto'!$A22,'Detall - Detalle'!$Z:$Z,N$4),SUMIFS('Detall - Detalle'!$V:$V,'Detall - Detalle'!$T:$T,'Pressupost - Pressupuesto'!$A$1,'Detall - Detalle'!$AA:$AA,'Pressupost - Pressupuesto'!$A22,'Detall - Detalle'!$Z:$Z,N$4))","v":0},{"$f":"+SUMIFS('Detall - Detalle'!$V:$V,'Detall - Detalle'!$T:$T,O$4,'Detall - Detalle'!$AA:$AA,'Pressupost - Pressupuesto'!$A22)","v":0},{"$f":"+SUMIFS('Detall - Detalle'!$V:$V,'Detall - Detalle'!$T:$T,P$4,'Detall - Detalle'!$AA:$AA,'Pressupost - Pressupuesto'!$A22)","v":0},{"$f":"+SUMIFS('Detall - Detalle'!$V:$V,'Detall - Detalle'!$T:$T,Q$4,'Detall - Detalle'!$AA:$AA,'Pressupost - Pressupuesto'!$A22)","v":0},{"$f":"+SUMIFS('Detall - Detalle'!$V:$V,'Detall - Detalle'!$T:$T,R$4,'Detall - Detalle'!$AA:$AA,'Pressupost - Pressupuesto'!$A22)","v":0},{"$f":"+SUMIFS('Detall - Detalle'!$V:$V,'Detall - Detalle'!$T:$T,S$4,'Detall - Detalle'!$AA:$AA,'Pressupost - Pressupuesto'!$A22)","v":0},{"$f":"+SUMIFS('Detall - Detalle'!$V:$V,'Detall - Detalle'!$T:$T,T$4,'Detall - Detalle'!$AA:$AA,'Pressupost - Pressupuesto'!$A22)","v":0},{"$f":"+SUMIFS('Detall - Detalle'!$V:$V,'Detall - Detalle'!$T:$T,U$4,'Detall - Detalle'!$AA:$AA,'Pressupost - Pressupuesto'!$A22)","v":0},{"$f":"+SUMIFS('Detall - Detalle'!$V:$V,'Detall - Detalle'!$T:$T,V$4,'Detall - Detalle'!$AA:$AA,'Pressupost - Pressupuesto'!$A22)","v":0},{"$f":"+SUMIFS('Detall - Detalle'!$V:$V,'Detall - Detalle'!$T:$T,W$4,'Detall - Detalle'!$AA:$AA,'Pressupost - Pressupuesto'!$A22)","v":0},{"$f":"+SUMIFS('Detall - Detalle'!$V:$V,'Detall - Detalle'!$T:$T,X$4,'Detall - Detalle'!$AA:$AA,'Pressupost - Pressupuesto'!$A22)","v":0},{"$f":"+SUMIFS('Detall - Detalle'!$V:$V,'Detall - Detalle'!$T:$T,Y$4,'Detall - Detalle'!$AA:$AA,'Pressupost - Pressupuesto'!$A22)","v":0},{"$f":"+SUMIFS('Detall - Detalle'!$V:$V,'Detall - Detalle'!$T:$T,Z$4,'Detall - Detalle'!$AA:$AA,'Pressupost - Pressupuesto'!$A22)","v":0},{"$f":"+SUMIFS('Detall - Detalle'!$V:$V,'Detall - Detalle'!$T:$T,AA$4,'Detall - Detalle'!$AA:$AA,'Pressupost - Pressupuesto'!$A22)","v":0},{"$f":"+SUMIFS('Detall - Detalle'!$V:$V,'Detall - Detalle'!$T:$T,AB$4,'Detall - Detalle'!$AA:$AA,'Pressupost - Pressupuesto'!$A22)","v":0},{"$f":"+SUMIFS('Detall - Detalle'!$V:$V,'Detall - Detalle'!$T:$T,AC$4,'Detall - Detalle'!$AA:$AA,'Pressupost - Pressupuesto'!$A22)","v":0},{"$f":"+SUMIFS('Detall - Detalle'!$V:$V,'Detall - Detalle'!$T:$T,AD$4,'Detall - Detalle'!$AA:$AA,'Pressupost - Pressupuesto'!$A22)","v":0},{"$f":"+SUMIFS('Detall - Detalle'!$V:$V,'Detall - Detalle'!$T:$T,AE$4,'Detall - Detalle'!$AA:$AA,'Pressupost - Pressupuesto'!$A22)","v":0},{"$f":"+SUMIFS('Detall - Detalle'!$V:$V,'Detall - Detalle'!$T:$T,AF$4,'Detall - Detalle'!$AA:$AA,'Pressupost - Pressupuesto'!$A22)","v":0},{"$f":"+SUMIFS('Detall - Detalle'!$V:$V,'Detall - Detalle'!$T:$T,AG$4,'Detall - Detalle'!$AA:$AA,'Pressupost - Pressupuesto'!$A22)","v":0},{"$f":"+SUMIFS('Detall - Detalle'!$V:$V,'Detall - Detalle'!$T:$T,AH$4,'Detall - Detalle'!$AA:$AA,'Pressupost - Pressupuesto'!$A22)","v":0}]
["a15 Despeses financeres / Gastos financieros",0,{"$f":"+IF(OR($A$1=\"TOTES LES ACTIVITATS\",$A$1=\"\"),SUMIF('Detall - Detalle'!$AA:$AA,$A23,'Detall - Detalle'!$W:$W),SUMIFS('Detall - Detalle'!$W:$W,'Detall - Detalle'!$T:$T,'Pressupost - Pressupuesto'!$A$1,'Detall - Detalle'!$AA:$AA,'Pressupost - Pressupuesto'!$A23))","v":0},{"$f":"+IF(OR($A$1=\"TOTES LES ACTIVITATS\",$A$1=\"\"),SUMIF('Detall - Detalle'!$AA:$AA,$A23,'Detall - Detalle'!$X:$X),SUMIFS('Detall - Detalle'!$X:$X,'Detall - Detalle'!$T:$T,'Pressupost - Pressupuesto'!$A$1,'Detall - Detalle'!$AA:$AA,'Pressupost - Pressupuesto'!$A23))","v":0},{"$f":"+IF(OR($A$1=\"TOTES LES ACTIVITATS\",$A$1=\"\"),SUMIFS('Detall - Detalle'!$Y:$Y,'Detall - Detalle'!$AA:$AA,'Pressupost - Pressupuesto'!$A23,'Detall - Detalle'!$Z:$Z,E$4),SUMIFS('Detall - Detalle'!$Y:$Y,'Detall - Detalle'!$T:$T,'Pressupost - Pressupuesto'!$A$1,'Detall - Detalle'!$AA:$AA,'Pressupost - Pressupuesto'!$A23,'Detall - Detalle'!$Z:$Z,E$4))","v":0},{"$f":"+IF(OR($A$1=\"TOTES LES ACTIVITATS\",$A$1=\"\"),SUMIFS('Detall - Detalle'!$Y:$Y,'Detall - Detalle'!$AA:$AA,'Pressupost - Pressupuesto'!$A23,'Detall - Detalle'!$Z:$Z,F$4),SUMIFS('Detall - Detalle'!$Y:$Y,'Detall - Detalle'!$T:$T,'Pressupost - Pressupuesto'!$A$1,'Detall - Detalle'!$AA:$AA,'Pressupost - Pressupuesto'!$A23,'Detall - Detalle'!$Z:$Z,F$4))","v":0},{"$f":"+IF(OR($A$1=\"TOTES LES ACTIVITATS\",$A$1=\"\"),SUMIFS('Detall - Detalle'!$Y:$Y,'Detall - Detalle'!$AA:$AA,'Pressupost - Pressupuesto'!$A23,'Detall - Detalle'!$Z:$Z,G$4),SUMIFS('Detall - Detalle'!$Y:$Y,'Detall - Detalle'!$T:$T,'Pressupost - Pressupuesto'!$A$1,'Detall - Detalle'!$AA:$AA,'Pressupost - Pressupuesto'!$A23,'Detall - Detalle'!$Z:$Z,G$4))","v":0},{"$f":"+IF(OR($A$1=\"TOTES LES ACTIVITATS\",$A$1=\"\"),SUMIFS('Detall - Detalle'!$Y:$Y,'Detall - Detalle'!$AA:$AA,'Pressupost - Pressupuesto'!$A23,'Detall - Detalle'!$Z:$Z,H$4),SUMIFS('Detall - Detalle'!$Y:$Y,'Detall - Detalle'!$T:$T,'Pressupost - Pressupuesto'!$A$1,'Detall - Detalle'!$AA:$AA,'Pressupost - Pressupuesto'!$A23,'Detall - Detalle'!$Z:$Z,H$4))","v":0},{"$f":"+IF(OR($A$1=\"TOTES LES ACTIVITATS\",$A$1=\"\"),SUMIFS('Detall - Detalle'!$Y:$Y,'Detall - Detalle'!$AA:$AA,'Pressupost - Pressupuesto'!$A23,'Detall - Detalle'!$Z:$Z,I$4),SUMIFS('Detall - Detalle'!$Y:$Y,'Detall - Detalle'!$T:$T,'Pressupost - Pressupuesto'!$A$1,'Detall - Detalle'!$AA:$AA,'Pressupost - Pressupuesto'!$A23,'Detall - Detalle'!$Z:$Z,I$4))","v":0},{"$f":"+IF(OR($A$1=\"TOTES LES ACTIVITATS\",$A$1=\"\"),SUMIFS('Detall - Detalle'!$V:$V,'Detall - Detalle'!$AA:$AA,'Pressupost - Pressupuesto'!$A23,'Detall - Detalle'!$Z:$Z,J$4),SUMIFS('Detall - Detalle'!$V:$V,'Detall - Detalle'!$T:$T,'Pressupost - Pressupuesto'!$A$1,'Detall - Detalle'!$AA:$AA,'Pressupost - Pressupuesto'!$A23,'Detall - Detalle'!$Z:$Z,J$4))","v":0},{"$f":"+IF(OR($A$1=\"TOTES LES ACTIVITATS\",$A$1=\"\"),SUMIFS('Detall - Detalle'!$V:$V,'Detall - Detalle'!$AA:$AA,'Pressupost - Pressupuesto'!$A23,'Detall - Detalle'!$Z:$Z,K$4),SUMIFS('Detall - Detalle'!$V:$V,'Detall - Detalle'!$T:$T,'Pressupost - Pressupuesto'!$A$1,'Detall - Detalle'!$AA:$AA,'Pressupost - Pressupuesto'!$A23,'Detall - Detalle'!$Z:$Z,K$4))","v":0},{"$f":"+IF(OR($A$1=\"TOTES LES ACTIVITATS\",$A$1=\"\"),SUMIFS('Detall - Detalle'!$V:$V,'Detall - Detalle'!$AA:$AA,'Pressupost - Pressupuesto'!$A23,'Detall - Detalle'!$Z:$Z,L$4),SUMIFS('Detall - Detalle'!$V:$V,'Detall - Detalle'!$T:$T,'Pressupost - Pressupuesto'!$A$1,'Detall - Detalle'!$AA:$AA,'Pressupost - Pressupuesto'!$A23,'Detall - Detalle'!$Z:$Z,L$4))","v":0},{"$f":"+IF(OR($A$1=\"TOTES LES ACTIVITATS\",$A$1=\"\"),SUMIFS('Detall - Detalle'!$V:$V,'Detall - Detalle'!$AA:$AA,'Pressupost - Pressupuesto'!$A23,'Detall - Detalle'!$Z:$Z,M$4),SUMIFS('Detall - Detalle'!$V:$V,'Detall - Detalle'!$T:$T,'Pressupost - Pressupuesto'!$A$1,'Detall - Detalle'!$AA:$AA,'Pressupost - Pressupuesto'!$A23,'Detall - Detalle'!$Z:$Z,M$4))","v":0},{"$f":"+IF(OR($A$1=\"TOTES LES ACTIVITATS\",$A$1=\"\"),SUMIFS('Detall - Detalle'!$V:$V,'Detall - Detalle'!$AA:$AA,'Pressupost - Pressupuesto'!$A23,'Detall - Detalle'!$Z:$Z,N$4),SUMIFS('Detall - Detalle'!$V:$V,'Detall - Detalle'!$T:$T,'Pressupost - Pressupuesto'!$A$1,'Detall - Detalle'!$AA:$AA,'Pressupost - Pressupuesto'!$A23,'Detall - Detalle'!$Z:$Z,N$4))","v":0},{"$f":"+SUMIFS('Detall - Detalle'!$V:$V,'Detall - Detalle'!$T:$T,O$4,'Detall - Detalle'!$AA:$AA,'Pressupost - Pressupuesto'!$A23)","v":0},{"$f":"+SUMIFS('Detall - Detalle'!$V:$V,'Detall - Detalle'!$T:$T,P$4,'Detall - Detalle'!$AA:$AA,'Pressupost - Pressupuesto'!$A23)","v":0},{"$f":"+SUMIFS('Detall - Detalle'!$V:$V,'Detall - Detalle'!$T:$T,Q$4,'Detall - Detalle'!$AA:$AA,'Pressupost - Pressupuesto'!$A23)","v":0},{"$f":"+SUMIFS('Detall - Detalle'!$V:$V,'Detall - Detalle'!$T:$T,R$4,'Detall - Detalle'!$AA:$AA,'Pressupost - Pressupuesto'!$A23)","v":0},{"$f":"+SUMIFS('Detall - Detalle'!$V:$V,'Detall - Detalle'!$T:$T,S$4,'Detall - Detalle'!$AA:$AA,'Pressupost - Pressupuesto'!$A23)","v":0},{"$f":"+SUMIFS('Detall - Detalle'!$V:$V,'Detall - Detalle'!$T:$T,T$4,'Detall - Detalle'!$AA:$AA,'Pressupost - Pressupuesto'!$A23)","v":0},{"$f":"+SUMIFS('Detall - Detalle'!$V:$V,'Detall - Detalle'!$T:$T,U$4,'Detall - Detalle'!$AA:$AA,'Pressupost - Pressupuesto'!$A23)","v":0},{"$f":"+SUMIFS('Detall - Detalle'!$V:$V,'Detall - Detalle'!$T:$T,V$4,'Detall - Detalle'!$AA:$AA,'Pressupost - Pressupuesto'!$A23)","v":0},{"$f":"+SUMIFS('Detall - Detalle'!$V:$V,'Detall - Detalle'!$T:$T,W$4,'Detall - Detalle'!$AA:$AA,'Pressupost - Pressupuesto'!$A23)","v":0},{"$f":"+SUMIFS('Detall - Detalle'!$V:$V,'Detall - Detalle'!$T:$T,X$4,'Detall - Detalle'!$AA:$AA,'Pressupost - Pressupuesto'!$A23)","v":0},{"$f":"+SUMIFS('Detall - Detalle'!$V:$V,'Detall - Detalle'!$T:$T,Y$4,'Detall - Detalle'!$AA:$AA,'Pressupost - Pressupuesto'!$A23)","v":0},{"$f":"+SUMIFS('Detall - Detalle'!$V:$V,'Detall - Detalle'!$T:$T,Z$4,'Detall - Detalle'!$AA:$AA,'Pressupost - Pressupuesto'!$A23)","v":0},{"$f":"+SUMIFS('Detall - Detalle'!$V:$V,'Detall - Detalle'!$T:$T,AA$4,'Detall - Detalle'!$AA:$AA,'Pressupost - Pressupuesto'!$A23)","v":0},{"$f":"+SUMIFS('Detall - Detalle'!$V:$V,'Detall - Detalle'!$T:$T,AB$4,'Detall - Detalle'!$AA:$AA,'Pressupost - Pressupuesto'!$A23)","v":0},{"$f":"+SUMIFS('Detall - Detalle'!$V:$V,'Detall - Detalle'!$T:$T,AC$4,'Detall - Detalle'!$AA:$AA,'Pressupost - Pressupuesto'!$A23)","v":0},{"$f":"+SUMIFS('Detall - Detalle'!$V:$V,'Detall - Detalle'!$T:$T,AD$4,'Detall - Detalle'!$AA:$AA,'Pressupost - Pressupuesto'!$A23)","v":0},{"$f":"+SUMIFS('Detall - Detalle'!$V:$V,'Detall - Detalle'!$T:$T,AE$4,'Detall - Detalle'!$AA:$AA,'Pressupost - Pressupuesto'!$A23)","v":0},{"$f":"+SUMIFS('Detall - Detalle'!$V:$V,'Detall - Detalle'!$T:$T,AF$4,'Detall - Detalle'!$AA:$AA,'Pressupost - Pressupuesto'!$A23)","v":0},{"$f":"+SUMIFS('Detall - Detalle'!$V:$V,'Detall - Detalle'!$T:$T,AG$4,'Detall - Detalle'!$AA:$AA,'Pressupost - Pressupuesto'!$A23)","v":0},{"$f":"+SUMIFS('Detall - Detalle'!$V:$V,'Detall - Detalle'!$T:$T,AH$4,'Detall - Detalle'!$AA:$AA,'Pressupost - Pressupuesto'!$A23)","v":0}]
["a16 Despeses de suport legal / Gastos de soporte legal",{"$f":"SUM(C24:I24)","v":0},{"$f":"+IF(OR($A$1=\"TOTES LES ACTIVITATS\",$A$1=\"\"),SUMIF('Detall - Detalle'!$AA:$AA,$A24,'Detall - Detalle'!$W:$W),SUMIFS('Detall - Detalle'!$W:$W,'Detall - Detalle'!$T:$T,'Pressupost - Pressupuesto'!$A$1,'Detall - Detalle'!$AA:$AA,'Pressupost - Pressupuesto'!$A24))","v":0},{"$f":"+IF(OR($A$1=\"TOTES LES ACTIVITATS\",$A$1=\"\"),SUMIF('Detall - Detalle'!$AA:$AA,$A24,'Detall - Detalle'!$X:$X),SUMIFS('Detall - Detalle'!$X:$X,'Detall - Detalle'!$T:$T,'Pressupost - Pressupuesto'!$A$1,'Detall - Detalle'!$AA:$AA,'Pressupost - Pressupuesto'!$A24))","v":0},{"$f":"+IF(OR($A$1=\"TOTES LES ACTIVITATS\",$A$1=\"\"),SUMIFS('Detall - Detalle'!$Y:$Y,'Detall - Detalle'!$AA:$AA,'Pressupost - Pressupuesto'!$A24,'Detall - Detalle'!$Z:$Z,E$4),SUMIFS('Detall - Detalle'!$Y:$Y,'Detall - Detalle'!$T:$T,'Pressupost - Pressupuesto'!$A$1,'Detall - Detalle'!$AA:$AA,'Pressupost - Pressupuesto'!$A24,'Detall - Detalle'!$Z:$Z,E$4))","v":0},{"$f":"+IF(OR($A$1=\"TOTES LES ACTIVITATS\",$A$1=\"\"),SUMIFS('Detall - Detalle'!$Y:$Y,'Detall - Detalle'!$AA:$AA,'Pressupost - Pressupuesto'!$A24,'Detall - Detalle'!$Z:$Z,F$4),SUMIFS('Detall - Detalle'!$Y:$Y,'Detall - Detalle'!$T:$T,'Pressupost - Pressupuesto'!$A$1,'Detall - Detalle'!$AA:$AA,'Pressupost - Pressupuesto'!$A24,'Detall - Detalle'!$Z:$Z,F$4))","v":0},{"$f":"+IF(OR($A$1=\"TOTES LES ACTIVITATS\",$A$1=\"\"),SUMIFS('Detall - Detalle'!$Y:$Y,'Detall - Detalle'!$AA:$AA,'Pressupost - Pressupuesto'!$A24,'Detall - Detalle'!$Z:$Z,G$4),SUMIFS('Detall - Detalle'!$Y:$Y,'Detall - Detalle'!$T:$T,'Pressupost - Pressupuesto'!$A$1,'Detall - Detalle'!$AA:$AA,'Pressupost - Pressupuesto'!$A24,'Detall - Detalle'!$Z:$Z,G$4))","v":0},{"$f":"+IF(OR($A$1=\"TOTES LES ACTIVITATS\",$A$1=\"\"),SUMIFS('Detall - Detalle'!$Y:$Y,'Detall - Detalle'!$AA:$AA,'Pressupost - Pressupuesto'!$A24,'Detall - Detalle'!$Z:$Z,H$4),SUMIFS('Detall - Detalle'!$Y:$Y,'Detall - Detalle'!$T:$T,'Pressupost - Pressupuesto'!$A$1,'Detall - Detalle'!$AA:$AA,'Pressupost - Pressupuesto'!$A24,'Detall - Detalle'!$Z:$Z,H$4))","v":0},{"$f":"+IF(OR($A$1=\"TOTES LES ACTIVITATS\",$A$1=\"\"),SUMIFS('Detall - Detalle'!$Y:$Y,'Detall - Detalle'!$AA:$AA,'Pressupost - Pressupuesto'!$A24,'Detall - Detalle'!$Z:$Z,I$4),SUMIFS('Detall - Detalle'!$Y:$Y,'Detall - Detalle'!$T:$T,'Pressupost - Pressupuesto'!$A$1,'Detall - Detalle'!$AA:$AA,'Pressupost - Pressupuesto'!$A24,'Detall - Detalle'!$Z:$Z,I$4))","v":0},{"$f":"+IF(OR($A$1=\"TOTES LES ACTIVITATS\",$A$1=\"\"),SUMIFS('Detall - Detalle'!$V:$V,'Detall - Detalle'!$AA:$AA,'Pressupost - Pressupuesto'!$A24,'Detall - Detalle'!$Z:$Z,J$4),SUMIFS('Detall - Detalle'!$V:$V,'Detall - Detalle'!$T:$T,'Pressupost - Pressupuesto'!$A$1,'Detall - Detalle'!$AA:$AA,'Pressupost - Pressupuesto'!$A24,'Detall - Detalle'!$Z:$Z,J$4))","v":0},{"$f":"+IF(OR($A$1=\"TOTES LES ACTIVITATS\",$A$1=\"\"),SUMIFS('Detall - Detalle'!$V:$V,'Detall - Detalle'!$AA:$AA,'Pressupost - Pressupuesto'!$A24,'Detall - Detalle'!$Z:$Z,K$4),SUMIFS('Detall - Detalle'!$V:$V,'Detall - Detalle'!$T:$T,'Pressupost - Pressupuesto'!$A$1,'Detall - Detalle'!$AA:$AA,'Pressupost - Pressupuesto'!$A24,'Detall - Detalle'!$Z:$Z,K$4))","v":0},{"$f":"+IF(OR($A$1=\"TOTES LES ACTIVITATS\",$A$1=\"\"),SUMIFS('Detall - Detalle'!$V:$V,'Detall - Detalle'!$AA:$AA,'Pressupost - Pressupuesto'!$A24,'Detall - Detalle'!$Z:$Z,L$4),SUMIFS('Detall - Detalle'!$V:$V,'Detall - Detalle'!$T:$T,'Pressupost - Pressupuesto'!$A$1,'Detall - Detalle'!$AA:$AA,'Pressupost - Pressupuesto'!$A24,'Detall - Detalle'!$Z:$Z,L$4))","v":0},{"$f":"+IF(OR($A$1=\"TOTES LES ACTIVITATS\",$A$1=\"\"),SUMIFS('Detall - Detalle'!$V:$V,'Detall - Detalle'!$AA:$AA,'Pressupost - Pressupuesto'!$A24,'Detall - Detalle'!$Z:$Z,M$4),SUMIFS('Detall - Detalle'!$V:$V,'Detall - Detalle'!$T:$T,'Pressupost - Pressupuesto'!$A$1,'Detall - Detalle'!$AA:$AA,'Pressupost - Pressupuesto'!$A24,'Detall - Detalle'!$Z:$Z,M$4))","v":0},{"$f":"+IF(OR($A$1=\"TOTES LES ACTIVITATS\",$A$1=\"\"),SUMIFS('Detall - Detalle'!$V:$V,'Detall - Detalle'!$AA:$AA,'Pressupost - Pressupuesto'!$A24,'Detall - Detalle'!$Z:$Z,N$4),SUMIFS('Detall - Detalle'!$V:$V,'Detall - Detalle'!$T:$T,'Pressupost - Pressupuesto'!$A$1,'Detall - Detalle'!$AA:$AA,'Pressupost - Pressupuesto'!$A24,'Detall - Detalle'!$Z:$Z,N$4))","v":0},{"$f":"+SUMIFS('Detall - Detalle'!$V:$V,'Detall - Detalle'!$T:$T,O$4,'Detall - Detalle'!$AA:$AA,'Pressupost - Pressupuesto'!$A24)","v":0},{"$f":"+SUMIFS('Detall - Detalle'!$V:$V,'Detall - Detalle'!$T:$T,P$4,'Detall - Detalle'!$AA:$AA,'Pressupost - Pressupuesto'!$A24)","v":0},{"$f":"+SUMIFS('Detall - Detalle'!$V:$V,'Detall - Detalle'!$T:$T,Q$4,'Detall - Detalle'!$AA:$AA,'Pressupost - Pressupuesto'!$A24)","v":0},{"$f":"+SUMIFS('Detall - Detalle'!$V:$V,'Detall - Detalle'!$T:$T,R$4,'Detall - Detalle'!$AA:$AA,'Pressupost - Pressupuesto'!$A24)","v":0},{"$f":"+SUMIFS('Detall - Detalle'!$V:$V,'Detall - Detalle'!$T:$T,S$4,'Detall - Detalle'!$AA:$AA,'Pressupost - Pressupuesto'!$A24)","v":0},{"$f":"+SUMIFS('Detall - Detalle'!$V:$V,'Detall - Detalle'!$T:$T,T$4,'Detall - Detalle'!$AA:$AA,'Pressupost - Pressupuesto'!$A24)","v":0},{"$f":"+SUMIFS('Detall - Detalle'!$V:$V,'Detall - Detalle'!$T:$T,U$4,'Detall - Detalle'!$AA:$AA,'Pressupost - Pressupuesto'!$A24)","v":0},{"$f":"+SUMIFS('Detall - Detalle'!$V:$V,'Detall - Detalle'!$T:$T,V$4,'Detall - Detalle'!$AA:$AA,'Pressupost - Pressupuesto'!$A24)","v":0},{"$f":"+SUMIFS('Detall - Detalle'!$V:$V,'Detall - Detalle'!$T:$T,W$4,'Detall - Detalle'!$AA:$AA,'Pressupost - Pressupuesto'!$A24)","v":0},{"$f":"+SUMIFS('Detall - Detalle'!$V:$V,'Detall - Detalle'!$T:$T,X$4,'Detall - Detalle'!$AA:$AA,'Pressupost - Pressupuesto'!$A24)","v":0},{"$f":"+SUMIFS('Detall - Detalle'!$V:$V,'Detall - Detalle'!$T:$T,Y$4,'Detall - Detalle'!$AA:$AA,'Pressupost - Pressupuesto'!$A24)","v":0},{"$f":"+SUMIFS('Detall - Detalle'!$V:$V,'Detall - Detalle'!$T:$T,Z$4,'Detall - Detalle'!$AA:$AA,'Pressupost - Pressupuesto'!$A24)","v":0},{"$f":"+SUMIFS('Detall - Detalle'!$V:$V,'Detall - Detalle'!$T:$T,AA$4,'Detall - Detalle'!$AA:$AA,'Pressupost - Pressupuesto'!$A24)","v":0},{"$f":"+SUMIFS('Detall - Detalle'!$V:$V,'Detall - Detalle'!$T:$T,AB$4,'Detall - Detalle'!$AA:$AA,'Pressupost - Pressupuesto'!$A24)","v":0},{"$f":"+SUMIFS('Detall - Detalle'!$V:$V,'Detall - Detalle'!$T:$T,AC$4,'Detall - Detalle'!$AA:$AA,'Pressupost - Pressupuesto'!$A24)","v":0},{"$f":"+SUMIFS('Detall - Detalle'!$V:$V,'Detall - Detalle'!$T:$T,AD$4,'Detall - Detalle'!$AA:$AA,'Pressupost - Pressupuesto'!$A24)","v":0},{"$f":"+SUMIFS('Detall - Detalle'!$V:$V,'Detall - Detalle'!$T:$T,AE$4,'Detall - Detalle'!$AA:$AA,'Pressupost - Pressupuesto'!$A24)","v":0},{"$f":"+SUMIFS('Detall - Detalle'!$V:$V,'Detall - Detalle'!$T:$T,AF$4,'Detall - Detalle'!$AA:$AA,'Pressupost - Pressupuesto'!$A24)","v":0},{"$f":"+SUMIFS('Detall - Detalle'!$V:$V,'Detall - Detalle'!$T:$T,AG$4,'Detall - Detalle'!$AA:$AA,'Pressupost - Pressupuesto'!$A24)","v":0},{"$f":"+SUMIFS('Detall - Detalle'!$V:$V,'Detall - Detalle'!$T:$T,AH$4,'Detall - Detalle'!$AA:$AA,'Pressupost - Pressupuesto'!$A24)","v":0}]
["a17 Beques / Becas",{"$f":"SUM(C25:I25)","v":0},{"$f":"+IF(OR($A$1=\"TOTES LES ACTIVITATS\",$A$1=\"\"),SUMIF('Detall - Detalle'!$AA:$AA,$A25,'Detall - Detalle'!$W:$W),SUMIFS('Detall - Detalle'!$W:$W,'Detall - Detalle'!$T:$T,'Pressupost - Pressupuesto'!$A$1,'Detall - Detalle'!$AA:$AA,'Pressupost - Pressupuesto'!$A25))","v":0},{"$f":"+IF(OR($A$1=\"TOTES LES ACTIVITATS\",$A$1=\"\"),SUMIF('Detall - Detalle'!$AA:$AA,$A25,'Detall - Detalle'!$X:$X),SUMIFS('Detall - Detalle'!$X:$X,'Detall - Detalle'!$T:$T,'Pressupost - Pressupuesto'!$A$1,'Detall - Detalle'!$AA:$AA,'Pressupost - Pressupuesto'!$A25))","v":0},{"$f":"+IF(OR($A$1=\"TOTES LES ACTIVITATS\",$A$1=\"\"),SUMIFS('Detall - Detalle'!$Y:$Y,'Detall - Detalle'!$AA:$AA,'Pressupost - Pressupuesto'!$A25,'Detall - Detalle'!$Z:$Z,E$4),SUMIFS('Detall - Detalle'!$Y:$Y,'Detall - Detalle'!$T:$T,'Pressupost - Pressupuesto'!$A$1,'Detall - Detalle'!$AA:$AA,'Pressupost - Pressupuesto'!$A25,'Detall - Detalle'!$Z:$Z,E$4))","v":0},{"$f":"+IF(OR($A$1=\"TOTES LES ACTIVITATS\",$A$1=\"\"),SUMIFS('Detall - Detalle'!$Y:$Y,'Detall - Detalle'!$AA:$AA,'Pressupost - Pressupuesto'!$A25,'Detall - Detalle'!$Z:$Z,F$4),SUMIFS('Detall - Detalle'!$Y:$Y,'Detall - Detalle'!$T:$T,'Pressupost - Pressupuesto'!$A$1,'Detall - Detalle'!$AA:$AA,'Pressupost - Pressupuesto'!$A25,'Detall - Detalle'!$Z:$Z,F$4))","v":0},{"$f":"+IF(OR($A$1=\"TOTES LES ACTIVITATS\",$A$1=\"\"),SUMIFS('Detall - Detalle'!$Y:$Y,'Detall - Detalle'!$AA:$AA,'Pressupost - Pressupuesto'!$A25,'Detall - Detalle'!$Z:$Z,G$4),SUMIFS('Detall - Detalle'!$Y:$Y,'Detall - Detalle'!$T:$T,'Pressupost - Pressupuesto'!$A$1,'Detall - Detalle'!$AA:$AA,'Pressupost - Pressupuesto'!$A25,'Detall - Detalle'!$Z:$Z,G$4))","v":0},{"$f":"+IF(OR($A$1=\"TOTES LES ACTIVITATS\",$A$1=\"\"),SUMIFS('Detall - Detalle'!$Y:$Y,'Detall - Detalle'!$AA:$AA,'Pressupost - Pressupuesto'!$A25,'Detall - Detalle'!$Z:$Z,H$4),SUMIFS('Detall - Detalle'!$Y:$Y,'Detall - Detalle'!$T:$T,'Pressupost - Pressupuesto'!$A$1,'Detall - Detalle'!$AA:$AA,'Pressupost - Pressupuesto'!$A25,'Detall - Detalle'!$Z:$Z,H$4))","v":0},{"$f":"+IF(OR($A$1=\"TOTES LES ACTIVITATS\",$A$1=\"\"),SUMIFS('Detall - Detalle'!$Y:$Y,'Detall - Detalle'!$AA:$AA,'Pressupost - Pressupuesto'!$A25,'Detall - Detalle'!$Z:$Z,I$4),SUMIFS('Detall - Detalle'!$Y:$Y,'Detall - Detalle'!$T:$T,'Pressupost - Pressupuesto'!$A$1,'Detall - Detalle'!$AA:$AA,'Pressupost - Pressupuesto'!$A25,'Detall - Detalle'!$Z:$Z,I$4))","v":0},{"$f":"+IF(OR($A$1=\"TOTES LES ACTIVITATS\",$A$1=\"\"),SUMIFS('Detall - Detalle'!$V:$V,'Detall - Detalle'!$AA:$AA,'Pressupost - Pressupuesto'!$A25,'Detall - Detalle'!$Z:$Z,J$4),SUMIFS('Detall - Detalle'!$V:$V,'Detall - Detalle'!$T:$T,'Pressupost - Pressupuesto'!$A$1,'Detall - Detalle'!$AA:$AA,'Pressupost - Pressupuesto'!$A25,'Detall - Detalle'!$Z:$Z,J$4))","v":0},{"$f":"+IF(OR($A$1=\"TOTES LES ACTIVITATS\",$A$1=\"\"),SUMIFS('Detall - Detalle'!$V:$V,'Detall - Detalle'!$AA:$AA,'Pressupost - Pressupuesto'!$A25,'Detall - Detalle'!$Z:$Z,K$4),SUMIFS('Detall - Detalle'!$V:$V,'Detall - Detalle'!$T:$T,'Pressupost - Pressupuesto'!$A$1,'Detall - Detalle'!$AA:$AA,'Pressupost - Pressupuesto'!$A25,'Detall - Detalle'!$Z:$Z,K$4))","v":0},{"$f":"+IF(OR($A$1=\"TOTES LES ACTIVITATS\",$A$1=\"\"),SUMIFS('Detall - Detalle'!$V:$V,'Detall - Detalle'!$AA:$AA,'Pressupost - Pressupuesto'!$A25,'Detall - Detalle'!$Z:$Z,L$4),SUMIFS('Detall - Detalle'!$V:$V,'Detall - Detalle'!$T:$T,'Pressupost - Pressupuesto'!$A$1,'Detall - Detalle'!$AA:$AA,'Pressupost - Pressupuesto'!$A25,'Detall - Detalle'!$Z:$Z,L$4))","v":0},{"$f":"+IF(OR($A$1=\"TOTES LES ACTIVITATS\",$A$1=\"\"),SUMIFS('Detall - Detalle'!$V:$V,'Detall - Detalle'!$AA:$AA,'Pressupost - Pressupuesto'!$A25,'Detall - Detalle'!$Z:$Z,M$4),SUMIFS('Detall - Detalle'!$V:$V,'Detall - Detalle'!$T:$T,'Pressupost - Pressupuesto'!$A$1,'Detall - Detalle'!$AA:$AA,'Pressupost - Pressupuesto'!$A25,'Detall - Detalle'!$Z:$Z,M$4))","v":0},{"$f":"+IF(OR($A$1=\"TOTES LES ACTIVITATS\",$A$1=\"\"),SUMIFS('Detall - Detalle'!$V:$V,'Detall - Detalle'!$AA:$AA,'Pressupost - Pressupuesto'!$A25,'Detall - Detalle'!$Z:$Z,N$4),SUMIFS('Detall - Detalle'!$V:$V,'Detall - Detalle'!$T:$T,'Pressupost - Pressupuesto'!$A$1,'Detall - Detalle'!$AA:$AA,'Pressupost - Pressupuesto'!$A25,'Detall - Detalle'!$Z:$Z,N$4))","v":0},{"$f":"+SUMIFS('Detall - Detalle'!$V:$V,'Detall - Detalle'!$T:$T,O$4,'Detall - Detalle'!$AA:$AA,'Pressupost - Pressupuesto'!$A25)","v":0},{"$f":"+SUMIFS('Detall - Detalle'!$V:$V,'Detall - Detalle'!$T:$T,P$4,'Detall - Detalle'!$AA:$AA,'Pressupost - Pressupuesto'!$A25)","v":0},{"$f":"+SUMIFS('Detall - Detalle'!$V:$V,'Detall - Detalle'!$T:$T,Q$4,'Detall - Detalle'!$AA:$AA,'Pressupost - Pressupuesto'!$A25)","v":0},{"$f":"+SUMIFS('Detall - Detalle'!$V:$V,'Detall - Detalle'!$T:$T,R$4,'Detall - Detalle'!$AA:$AA,'Pressupost - Pressupuesto'!$A25)","v":0},{"$f":"+SUMIFS('Detall - Detalle'!$V:$V,'Detall - Detalle'!$T:$T,S$4,'Detall - Detalle'!$AA:$AA,'Pressupost - Pressupuesto'!$A25)","v":0},{"$f":"+SUMIFS('Detall - Detalle'!$V:$V,'Detall - Detalle'!$T:$T,T$4,'Detall - Detalle'!$AA:$AA,'Pressupost - Pressupuesto'!$A25)","v":0},{"$f":"+SUMIFS('Detall - Detalle'!$V:$V,'Detall - Detalle'!$T:$T,U$4,'Detall - Detalle'!$AA:$AA,'Pressupost - Pressupuesto'!$A25)","v":0},{"$f":"+SUMIFS('Detall - Detalle'!$V:$V,'Detall - Detalle'!$T:$T,V$4,'Detall - Detalle'!$AA:$AA,'Pressupost - Pressupuesto'!$A25)","v":0},{"$f":"+SUMIFS('Detall - Detalle'!$V:$V,'Detall - Detalle'!$T:$T,W$4,'Detall - Detalle'!$AA:$AA,'Pressupost - Pressupuesto'!$A25)","v":0},{"$f":"+SUMIFS('Detall - Detalle'!$V:$V,'Detall - Detalle'!$T:$T,X$4,'Detall - Detalle'!$AA:$AA,'Pressupost - Pressupuesto'!$A25)","v":0},{"$f":"+SUMIFS('Detall - Detalle'!$V:$V,'Detall - Detalle'!$T:$T,Y$4,'Detall - Detalle'!$AA:$AA,'Pressupost - Pressupuesto'!$A25)","v":0},{"$f":"+SUMIFS('Detall - Detalle'!$V:$V,'Detall - Detalle'!$T:$T,Z$4,'Detall - Detalle'!$AA:$AA,'Pressupost - Pressupuesto'!$A25)","v":0},{"$f":"+SUMIFS('Detall - Detalle'!$V:$V,'Detall - Detalle'!$T:$T,AA$4,'Detall - Detalle'!$AA:$AA,'Pressupost - Pressupuesto'!$A25)","v":0},{"$f":"+SUMIFS('Detall - Detalle'!$V:$V,'Detall - Detalle'!$T:$T,AB$4,'Detall - Detalle'!$AA:$AA,'Pressupost - Pressupuesto'!$A25)","v":0},{"$f":"+SUMIFS('Detall - Detalle'!$V:$V,'Detall - Detalle'!$T:$T,AC$4,'Detall - Detalle'!$AA:$AA,'Pressupost - Pressupuesto'!$A25)","v":0},{"$f":"+SUMIFS('Detall - Detalle'!$V:$V,'Detall - Detalle'!$T:$T,AD$4,'Detall - Detalle'!$AA:$AA,'Pressupost - Pressupuesto'!$A25)","v":0},{"$f":"+SUMIFS('Detall - Detalle'!$V:$V,'Detall - Detalle'!$T:$T,AE$4,'Detall - Detalle'!$AA:$AA,'Pressupost - Pressupuesto'!$A25)","v":0},{"$f":"+SUMIFS('Detall - Detalle'!$V:$V,'Detall - Detalle'!$T:$T,AF$4,'Detall - Detalle'!$AA:$AA,'Pressupost - Pressupuesto'!$A25)","v":0},{"$f":"+SUMIFS('Detall - Detalle'!$V:$V,'Detall - Detalle'!$T:$T,AG$4,'Detall - Detalle'!$AA:$AA,'Pressupost - Pressupuesto'!$A25)","v":0},{"$f":"+SUMIFS('Detall - Detalle'!$V:$V,'Detall - Detalle'!$T:$T,AH$4,'Detall - Detalle'!$AA:$AA,'Pressupost - Pressupuesto'!$A25)","v":0}]
["a18 Imprevistos / Imprevistos",0,{"$f":"+IF(OR($A$1=\"TOTES LES ACTIVITATS\",$A$1=\"\"),SUMIF('Detall - Detalle'!$AA:$AA,$A26,'Detall - Detalle'!$W:$W),SUMIFS('Detall - Detalle'!$W:$W,'Detall - Detalle'!$T:$T,'Pressupost - Pressupuesto'!$A$1,'Detall - Detalle'!$AA:$AA,'Pressupost - Pressupuesto'!$A26))","v":0},{"$f":"+IF(OR($A$1=\"TOTES LES ACTIVITATS\",$A$1=\"\"),SUMIF('Detall - Detalle'!$AA:$AA,$A26,'Detall - Detalle'!$X:$X),SUMIFS('Detall - Detalle'!$X:$X,'Detall - Detalle'!$T:$T,'Pressupost - Pressupuesto'!$A$1,'Detall - Detalle'!$AA:$AA,'Pressupost - Pressupuesto'!$A26))","v":0},{"$f":"+IF(OR($A$1=\"TOTES LES ACTIVITATS\",$A$1=\"\"),SUMIFS('Detall - Detalle'!$Y:$Y,'Detall - Detalle'!$AA:$AA,'Pressupost - Pressupuesto'!$A26,'Detall - Detalle'!$Z:$Z,E$4),SUMIFS('Detall - Detalle'!$Y:$Y,'Detall - Detalle'!$T:$T,'Pressupost - Pressupuesto'!$A$1,'Detall - Detalle'!$AA:$AA,'Pressupost - Pressupuesto'!$A26,'Detall - Detalle'!$Z:$Z,E$4))","v":0},{"$f":"+IF(OR($A$1=\"TOTES LES ACTIVITATS\",$A$1=\"\"),SUMIFS('Detall - Detalle'!$Y:$Y,'Detall - Detalle'!$AA:$AA,'Pressupost - Pressupuesto'!$A26,'Detall - Detalle'!$Z:$Z,F$4),SUMIFS('Detall - Detalle'!$Y:$Y,'Detall - Detalle'!$T:$T,'Pressupost - Pressupuesto'!$A$1,'Detall - Detalle'!$AA:$AA,'Pressupost - Pressupuesto'!$A26,'Detall - Detalle'!$Z:$Z,F$4))","v":0},{"$f":"+IF(OR($A$1=\"TOTES LES ACTIVITATS\",$A$1=\"\"),SUMIFS('Detall - Detalle'!$Y:$Y,'Detall - Detalle'!$AA:$AA,'Pressupost - Pressupuesto'!$A26,'Detall - Detalle'!$Z:$Z,G$4),SUMIFS('Detall - Detalle'!$Y:$Y,'Detall - Detalle'!$T:$T,'Pressupost - Pressupuesto'!$A$1,'Detall - Detalle'!$AA:$AA,'Pressupost - Pressupuesto'!$A26,'Detall - Detalle'!$Z:$Z,G$4))","v":0},{"$f":"+IF(OR($A$1=\"TOTES LES ACTIVITATS\",$A$1=\"\"),SUMIFS('Detall - Detalle'!$Y:$Y,'Detall - Detalle'!$AA:$AA,'Pressupost - Pressupuesto'!$A26,'Detall - Detalle'!$Z:$Z,H$4),SUMIFS('Detall - Detalle'!$Y:$Y,'Detall - Detalle'!$T:$T,'Pressupost - Pressupuesto'!$A$1,'Detall - Detalle'!$AA:$AA,'Pressupost - Pressupuesto'!$A26,'Detall - Detalle'!$Z:$Z,H$4))","v":0},{"$f":"+IF(OR($A$1=\"TOTES LES ACTIVITATS\",$A$1=\"\"),SUMIFS('Detall - Detalle'!$Y:$Y,'Detall - Detalle'!$AA:$AA,'Pressupost - Pressupuesto'!$A26,'Detall - Detalle'!$Z:$Z,I$4),SUMIFS('Detall - Detalle'!$Y:$Y,'Detall - Detalle'!$T:$T,'Pressupost - Pressupuesto'!$A$1,'Detall - Detalle'!$AA:$AA,'Pressupost - Pressupuesto'!$A26,'Detall - Detalle'!$Z:$Z,I$4))","v":0},{"$f":"+IF(OR($A$1=\"TOTES LES ACTIVITATS\",$A$1=\"\"),SUMIFS('Detall - Detalle'!$V:$V,'Detall - Detalle'!$AA:$AA,'Pressupost - Pressupuesto'!$A26,'Detall - Detalle'!$Z:$Z,J$4),SUMIFS('Detall - Detalle'!$V:$V,'Detall - Detalle'!$T:$T,'Pressupost - Pressupuesto'!$A$1,'Detall - Detalle'!$AA:$AA,'Pressupost - Pressupuesto'!$A26,'Detall - Detalle'!$Z:$Z,J$4))","v":0},{"$f":"+IF(OR($A$1=\"TOTES LES ACTIVITATS\",$A$1=\"\"),SUMIFS('Detall - Detalle'!$V:$V,'Detall - Detalle'!$AA:$AA,'Pressupost - Pressupuesto'!$A26,'Detall - Detalle'!$Z:$Z,K$4),SUMIFS('Detall - Detalle'!$V:$V,'Detall - Detalle'!$T:$T,'Pressupost - Pressupuesto'!$A$1,'Detall - Detalle'!$AA:$AA,'Pressupost - Pressupuesto'!$A26,'Detall - Detalle'!$Z:$Z,K$4))","v":0},{"$f":"+IF(OR($A$1=\"TOTES LES ACTIVITATS\",$A$1=\"\"),SUMIFS('Detall - Detalle'!$V:$V,'Detall - Detalle'!$AA:$AA,'Pressupost - Pressupuesto'!$A26,'Detall - Detalle'!$Z:$Z,L$4),SUMIFS('Detall - Detalle'!$V:$V,'Detall - Detalle'!$T:$T,'Pressupost - Pressupuesto'!$A$1,'Detall - Detalle'!$AA:$AA,'Pressupost - Pressupuesto'!$A26,'Detall - Detalle'!$Z:$Z,L$4))","v":0},{"$f":"+IF(OR($A$1=\"TOTES LES ACTIVITATS\",$A$1=\"\"),SUMIFS('Detall - Detalle'!$V:$V,'Detall - Detalle'!$AA:$AA,'Pressupost - Pressupuesto'!$A26,'Detall - Detalle'!$Z:$Z,M$4),SUMIFS('Detall - Detalle'!$V:$V,'Detall - Detalle'!$T:$T,'Pressupost - Pressupuesto'!$A$1,'Detall - Detalle'!$AA:$AA,'Pressupost - Pressupuesto'!$A26,'Detall - Detalle'!$Z:$Z,M$4))","v":0},{"$f":"+IF(OR($A$1=\"TOTES LES ACTIVITATS\",$A$1=\"\"),SUMIFS('Detall - Detalle'!$V:$V,'Detall - Detalle'!$AA:$AA,'Pressupost - Pressupuesto'!$A26,'Detall - Detalle'!$Z:$Z,N$4),SUMIFS('Detall - Detalle'!$V:$V,'Detall - Detalle'!$T:$T,'Pressupost - Pressupuesto'!$A$1,'Detall - Detalle'!$AA:$AA,'Pressupost - Pressupuesto'!$A26,'Detall - Detalle'!$Z:$Z,N$4))","v":0},{"$f":"+SUMIFS('Detall - Detalle'!$V:$V,'Detall - Detalle'!$T:$T,O$4,'Detall - Detalle'!$AA:$AA,'Pressupost - Pressupuesto'!$A26)","v":0},{"$f":"+SUMIFS('Detall - Detalle'!$V:$V,'Detall - Detalle'!$T:$T,P$4,'Detall - Detalle'!$AA:$AA,'Pressupost - Pressupuesto'!$A26)","v":0},{"$f":"+SUMIFS('Detall - Detalle'!$V:$V,'Detall - Detalle'!$T:$T,Q$4,'Detall - Detalle'!$AA:$AA,'Pressupost - Pressupuesto'!$A26)","v":0},{"$f":"+SUMIFS('Detall - Detalle'!$V:$V,'Detall - Detalle'!$T:$T,R$4,'Detall - Detalle'!$AA:$AA,'Pressupost - Pressupuesto'!$A26)","v":0},{"$f":"+SUMIFS('Detall - Detalle'!$V:$V,'Detall - Detalle'!$T:$T,S$4,'Detall - Detalle'!$AA:$AA,'Pressupost - Pressupuesto'!$A26)","v":0},{"$f":"+SUMIFS('Detall - Detalle'!$V:$V,'Detall - Detalle'!$T:$T,T$4,'Detall - Detalle'!$AA:$AA,'Pressupost - Pressupuesto'!$A26)","v":0},{"$f":"+SUMIFS('Detall - Detalle'!$V:$V,'Detall - Detalle'!$T:$T,U$4,'Detall - Detalle'!$AA:$AA,'Pressupost - Pressupuesto'!$A26)","v":0},{"$f":"+SUMIFS('Detall - Detalle'!$V:$V,'Detall - Detalle'!$T:$T,V$4,'Detall - Detalle'!$AA:$AA,'Pressupost - Pressupuesto'!$A26)","v":0},{"$f":"+SUMIFS('Detall - Detalle'!$V:$V,'Detall - Detalle'!$T:$T,W$4,'Detall - Detalle'!$AA:$AA,'Pressupost - Pressupuesto'!$A26)","v":0},{"$f":"+SUMIFS('Detall - Detalle'!$V:$V,'Detall - Detalle'!$T:$T,X$4,'Detall - Detalle'!$AA:$AA,'Pressupost - Pressupuesto'!$A26)","v":0},{"$f":"+SUMIFS('Detall - Detalle'!$V:$V,'Detall - Detalle'!$T:$T,Y$4,'Detall - Detalle'!$AA:$AA,'Pressupost - Pressupuesto'!$A26)","v":0},{"$f":"+SUMIFS('Detall - Detalle'!$V:$V,'Detall - Detalle'!$T:$T,Z$4,'Detall - Detalle'!$AA:$AA,'Pressupost - Pressupuesto'!$A26)","v":0},{"$f":"+SUMIFS('Detall - Detalle'!$V:$V,'Detall - Detalle'!$T:$T,AA$4,'Detall - Detalle'!$AA:$AA,'Pressupost - Pressupuesto'!$A26)","v":0},{"$f":"+SUMIFS('Detall - Detalle'!$V:$V,'Detall - Detalle'!$T:$T,AB$4,'Detall - Detalle'!$AA:$AA,'Pressupost - Pressupuesto'!$A26)","v":0},{"$f":"+SUMIFS('Detall - Detalle'!$V:$V,'Detall - Detalle'!$T:$T,AC$4,'Detall - Detalle'!$AA:$AA,'Pressupost - Pressupuesto'!$A26)","v":0},{"$f":"+SUMIFS('Detall - Detalle'!$V:$V,'Detall - Detalle'!$T:$T,AD$4,'Detall - Detalle'!$AA:$AA,'Pressupost - Pressupuesto'!$A26)","v":0},{"$f":"+SUMIFS('Detall - Detalle'!$V:$V,'Detall - Detalle'!$T:$T,AE$4,'Detall - Detalle'!$AA:$AA,'Pressupost - Pressupuesto'!$A26)","v":0},{"$f":"+SUMIFS('Detall - Detalle'!$V:$V,'Detall - Detalle'!$T:$T,AF$4,'Detall - Detalle'!$AA:$AA,'Pressupost - Pressupuesto'!$A26)","v":0},{"$f":"+SUMIFS('Detall - Detalle'!$V:$V,'Detall - Detalle'!$T:$T,AG$4,'Detall - Detalle'!$AA:$AA,'Pressupost - Pressupuesto'!$A26)","v":0},{"$f":"+SUMIFS('Detall - Detalle'!$V:$V,'Detall - Detalle'!$T:$T,AH$4,'Detall - Detalle'!$AA:$AA,'Pressupost - Pressupuesto'!$A26)","v":0}]
["DESPESES DIRECTES D'INVERSIÓ (Capítol VII) / GASTOS DIRECTOS DE INVERSIÓN (Capítulo VII)",0,{"$f":"SUM(C28:C29)","v":0},{"$f":"SUM(D28:D29)","v":0},{"$f":"SUM(E28:E29)","v":0},{"$f":"SUM(F28:F29)","v":0},{"$f":"SUM(G28:G29)","v":0},{"$f":"SUM(H28:H29)","v":0},{"$f":"SUM(I28:I29)","v":0},{"$f":"SUM(J28:J29)","v":0},0,0,{"$f":"SUM(M28:M29)","v":0},0,{"$f":"SUM(O28:O29)","v":0},0,0,0,0,0,0,0,0,0,0,0,0,0,0,0,0,0,0,0]
["b1 Béns inventariables / Bienes inventariables",0,{"$f":"+IF(OR($A$1=\"TOTES LES ACTIVITATS\",$A$1=\"\"),SUMIF('Detall - Detalle'!$AA:$AA,$A28,'Detall - Detalle'!$W:$W),SUMIFS('Detall - Detalle'!$W:$W,'Detall - Detalle'!$T:$T,'Pressupost - Pressupuesto'!$A$1,'Detall - Detalle'!$AA:$AA,'Pressupost - Pressupuesto'!$A28))","v":0},{"$f":"+IF(OR($A$1=\"TOTES LES ACTIVITATS\",$A$1=\"\"),SUMIF('Detall - Detalle'!$AA:$AA,$A28,'Detall - Detalle'!$X:$X),SUMIFS('Detall - Detalle'!$X:$X,'Detall - Detalle'!$T:$T,'Pressupost - Pressupuesto'!$A$1,'Detall - Detalle'!$AA:$AA,'Pressupost - Pressupuesto'!$A28))","v":0},{"$f":"+IF(OR($A$1=\"TOTES LES ACTIVITATS\",$A$1=\"\"),SUMIFS('Detall - Detalle'!$Y:$Y,'Detall - Detalle'!$AA:$AA,'Pressupost - Pressupuesto'!$A28,'Detall - Detalle'!$Z:$Z,E$4),SUMIFS('Detall - Detalle'!$Y:$Y,'Detall - Detalle'!$T:$T,'Pressupost - Pressupuesto'!$A$1,'Detall - Detalle'!$AA:$AA,'Pressupost - Pressupuesto'!$A28,'Detall - Detalle'!$Z:$Z,E$4))","v":0},{"$f":"+IF(OR($A$1=\"TOTES LES ACTIVITATS\",$A$1=\"\"),SUMIFS('Detall - Detalle'!$Y:$Y,'Detall - Detalle'!$AA:$AA,'Pressupost - Pressupuesto'!$A28,'Detall - Detalle'!$Z:$Z,F$4),SUMIFS('Detall - Detalle'!$Y:$Y,'Detall - Detalle'!$T:$T,'Pressupost - Pressupuesto'!$A$1,'Detall - Detalle'!$AA:$AA,'Pressupost - Pressupuesto'!$A28,'Detall - Detalle'!$Z:$Z,F$4))","v":0},{"$f":"+IF(OR($A$1=\"TOTES LES ACTIVITATS\",$A$1=\"\"),SUMIFS('Detall - Detalle'!$Y:$Y,'Detall - Detalle'!$AA:$AA,'Pressupost - Pressupuesto'!$A28,'Detall - Detalle'!$Z:$Z,G$4),SUMIFS('Detall - Detalle'!$Y:$Y,'Detall - Detalle'!$T:$T,'Pressupost - Pressupuesto'!$A$1,'Detall - Detalle'!$AA:$AA,'Pressupost - Pressupuesto'!$A28,'Detall - Detalle'!$Z:$Z,G$4))","v":0},{"$f":"+IF(OR($A$1=\"TOTES LES ACTIVITATS\",$A$1=\"\"),SUMIFS('Detall - Detalle'!$Y:$Y,'Detall - Detalle'!$AA:$AA,'Pressupost - Pressupuesto'!$A28,'Detall - Detalle'!$Z:$Z,H$4),SUMIFS('Detall - Detalle'!$Y:$Y,'Detall - Detalle'!$T:$T,'Pressupost - Pressupuesto'!$A$1,'Detall - Detalle'!$AA:$AA,'Pressupost - Pressupuesto'!$A28,'Detall - Detalle'!$Z:$Z,H$4))","v":0},{"$f":"+IF(OR($A$1=\"TOTES LES ACTIVITATS\",$A$1=\"\"),SUMIFS('Detall - Detalle'!$Y:$Y,'Detall - Detalle'!$AA:$AA,'Pressupost - Pressupuesto'!$A28,'Detall - Detalle'!$Z:$Z,I$4),SUMIFS('Detall - Detalle'!$Y:$Y,'Detall - Detalle'!$T:$T,'Pressupost - Pressupuesto'!$A$1,'Detall - Detalle'!$AA:$AA,'Pressupost - Pressupuesto'!$A28,'Detall - Detalle'!$Z:$Z,I$4))","v":0},{"$f":"+IF(OR($A$1=\"TOTES LES ACTIVITATS\",$A$1=\"\"),SUMIFS('Detall - Detalle'!$V:$V,'Detall - Detalle'!$AA:$AA,'Pressupost - Pressupuesto'!$A28,'Detall - Detalle'!$Z:$Z,J$4),SUMIFS('Detall - Detalle'!$V:$V,'Detall - Detalle'!$T:$T,'Pressupost - Pressupuesto'!$A$1,'Detall - Detalle'!$AA:$AA,'Pressupost - Pressupuesto'!$A28,'Detall - Detalle'!$Z:$Z,J$4))","v":0},{"$f":"+IF(OR($A$1=\"TOTES LES ACTIVITATS\",$A$1=\"\"),SUMIFS('Detall - Detalle'!$V:$V,'Detall - Detalle'!$AA:$AA,'Pressupost - Pressupuesto'!$A28,'Detall - Detalle'!$Z:$Z,K$4),SUMIFS('Detall - Detalle'!$V:$V,'Detall - Detalle'!$T:$T,'Pressupost - Pressupuesto'!$A$1,'Detall - Detalle'!$AA:$AA,'Pressupost - Pressupuesto'!$A28,'Detall - Detalle'!$Z:$Z,K$4))","v":0},{"$f":"+IF(OR($A$1=\"TOTES LES ACTIVITATS\",$A$1=\"\"),SUMIFS('Detall - Detalle'!$V:$V,'Detall - Detalle'!$AA:$AA,'Pressupost - Pressupuesto'!$A28,'Detall - Detalle'!$Z:$Z,L$4),SUMIFS('Detall - Detalle'!$V:$V,'Detall - Detalle'!$T:$T,'Pressupost - Pressupuesto'!$A$1,'Detall - Detalle'!$AA:$AA,'Pressupost - Pressupuesto'!$A28,'Detall - Detalle'!$Z:$Z,L$4))","v":0},{"$f":"+IF(OR($A$1=\"TOTES LES ACTIVITATS\",$A$1=\"\"),SUMIFS('Detall - Detalle'!$V:$V,'Detall - Detalle'!$AA:$AA,'Pressupost - Pressupuesto'!$A28,'Detall - Detalle'!$Z:$Z,M$4),SUMIFS('Detall - Detalle'!$V:$V,'Detall - Detalle'!$T:$T,'Pressupost - Pressupuesto'!$A$1,'Detall - Detalle'!$AA:$AA,'Pressupost - Pressupuesto'!$A28,'Detall - Detalle'!$Z:$Z,M$4))","v":0},{"$f":"+IF(OR($A$1=\"TOTES LES ACTIVITATS\",$A$1=\"\"),SUMIFS('Detall - Detalle'!$V:$V,'Detall - Detalle'!$AA:$AA,'Pressupost - Pressupuesto'!$A28,'Detall - Detalle'!$Z:$Z,N$4),SUMIFS('Detall - Detalle'!$V:$V,'Detall - Detalle'!$T:$T,'Pressupost - Pressupuesto'!$A$1,'Detall - Detalle'!$AA:$AA,'Pressupost - Pressupuesto'!$A28,'Detall - Detalle'!$Z:$Z,N$4))","v":0},{"$f":"+SUMIFS('Detall - Detalle'!$V:$V,'Detall - Detalle'!$T:$T,O$4,'Detall - Detalle'!$AA:$AA,'Pressupost - Pressupuesto'!$A28)","v":0},{"$f":"+SUMIFS('Detall - Detalle'!$V:$V,'Detall - Detalle'!$T:$T,P$4,'Detall - Detalle'!$AA:$AA,'Pressupost - Pressupuesto'!$A28)","v":0},{"$f":"+SUMIFS('Detall - Detalle'!$V:$V,'Detall - Detalle'!$T:$T,Q$4,'Detall - Detalle'!$AA:$AA,'Pressupost - Pressupuesto'!$A28)","v":0},{"$f":"+SUMIFS('Detall - Detalle'!$V:$V,'Detall - Detalle'!$T:$T,R$4,'Detall - Detalle'!$AA:$AA,'Pressupost - Pressupuesto'!$A28)","v":0},{"$f":"+SUMIFS('Detall - Detalle'!$V:$V,'Detall - Detalle'!$T:$T,S$4,'Detall - Detalle'!$AA:$AA,'Pressupost - Pressupuesto'!$A28)","v":0},{"$f":"+SUMIFS('Detall - Detalle'!$V:$V,'Detall - Detalle'!$T:$T,T$4,'Detall - Detalle'!$AA:$AA,'Pressupost - Pressupuesto'!$A28)","v":0},{"$f":"+SUMIFS('Detall - Detalle'!$V:$V,'Detall - Detalle'!$T:$T,U$4,'Detall - Detalle'!$AA:$AA,'Pressupost - Pressupuesto'!$A28)","v":0},{"$f":"+SUMIFS('Detall - Detalle'!$V:$V,'Detall - Detalle'!$T:$T,V$4,'Detall - Detalle'!$AA:$AA,'Pressupost - Pressupuesto'!$A28)","v":0},{"$f":"+SUMIFS('Detall - Detalle'!$V:$V,'Detall - Detalle'!$T:$T,W$4,'Detall - Detalle'!$AA:$AA,'Pressupost - Pressupuesto'!$A28)","v":0},{"$f":"+SUMIFS('Detall - Detalle'!$V:$V,'Detall - Detalle'!$T:$T,X$4,'Detall - Detalle'!$AA:$AA,'Pressupost - Pressupuesto'!$A28)","v":0},{"$f":"+SUMIFS('Detall - Detalle'!$V:$V,'Detall - Detalle'!$T:$T,Y$4,'Detall - Detalle'!$AA:$AA,'Pressupost - Pressupuesto'!$A28)","v":0},{"$f":"+SUMIFS('Detall - Detalle'!$V:$V,'Detall - Detalle'!$T:$T,Z$4,'Detall - Detalle'!$AA:$AA,'Pressupost - Pressupuesto'!$A28)","v":0},{"$f":"+SUMIFS('Detall - Detalle'!$V:$V,'Detall - Detalle'!$T:$T,AA$4,'Detall - Detalle'!$AA:$AA,'Pressupost - Pressupuesto'!$A28)","v":0},{"$f":"+SUMIFS('Detall - Detalle'!$V:$V,'Detall - Detalle'!$T:$T,AB$4,'Detall - Detalle'!$AA:$AA,'Pressupost - Pressupuesto'!$A28)","v":0},{"$f":"+SUMIFS('Detall - Detalle'!$V:$V,'Detall - Detalle'!$T:$T,AC$4,'Detall - Detalle'!$AA:$AA,'Pressupost - Pressupuesto'!$A28)","v":0},{"$f":"+SUMIFS('Detall - Detalle'!$V:$V,'Detall - Detalle'!$T:$T,AD$4,'Detall - Detalle'!$AA:$AA,'Pressupost - Pressupuesto'!$A28)","v":0},{"$f":"+SUMIFS('Detall - Detalle'!$V:$V,'Detall - Detalle'!$T:$T,AE$4,'Detall - Detalle'!$AA:$AA,'Pressupost - Pressupuesto'!$A28)","v":0},{"$f":"+SUMIFS('Detall - Detalle'!$V:$V,'Detall - Detalle'!$T:$T,AF$4,'Detall - Detalle'!$AA:$AA,'Pressupost - Pressupuesto'!$A28)","v":0},{"$f":"+SUMIFS('Detall - Detalle'!$V:$V,'Detall - Detalle'!$T:$T,AG$4,'Detall - Detalle'!$AA:$AA,'Pressupost - Pressupuesto'!$A28)","v":0},{"$f":"+SUMIFS('Detall - Detalle'!$V:$V,'Detall - Detalle'!$T:$T,AH$4,'Detall - Detalle'!$AA:$AA,'Pressupost - Pressupuesto'!$A28)","v":0}]
["b2 Amortitzacions / Amortizaciones",0,{"$f":"+IF(OR($A$1=\"TOTES LES ACTIVITATS\",$A$1=\"\"),SUMIF('Detall - Detalle'!$AA:$AA,$A29,'Detall - Detalle'!$W:$W),SUMIFS('Detall - Detalle'!$W:$W,'Detall - Detalle'!$T:$T,'Pressupost - Pressupuesto'!$A$1,'Detall - Detalle'!$AA:$AA,'Pressupost - Pressupuesto'!$A29))","v":0},{"$f":"+IF(OR($A$1=\"TOTES LES ACTIVITATS\",$A$1=\"\"),SUMIF('Detall - Detalle'!$AA:$AA,$A29,'Detall - Detalle'!$X:$X),SUMIFS('Detall - Detalle'!$X:$X,'Detall - Detalle'!$T:$T,'Pressupost - Pressupuesto'!$A$1,'Detall - Detalle'!$AA:$AA,'Pressupost - Pressupuesto'!$A29))","v":0},{"$f":"+IF(OR($A$1=\"TOTES LES ACTIVITATS\",$A$1=\"\"),SUMIFS('Detall - Detalle'!$Y:$Y,'Detall - Detalle'!$AA:$AA,'Pressupost - Pressupuesto'!$A29,'Detall - Detalle'!$Z:$Z,E$4),SUMIFS('Detall - Detalle'!$Y:$Y,'Detall - Detalle'!$T:$T,'Pressupost - Pressupuesto'!$A$1,'Detall - Detalle'!$AA:$AA,'Pressupost - Pressupuesto'!$A29,'Detall - Detalle'!$Z:$Z,E$4))","v":0},{"$f":"+IF(OR($A$1=\"TOTES LES ACTIVITATS\",$A$1=\"\"),SUMIFS('Detall - Detalle'!$Y:$Y,'Detall - Detalle'!$AA:$AA,'Pressupost - Pressupuesto'!$A29,'Detall - Detalle'!$Z:$Z,F$4),SUMIFS('Detall - Detalle'!$Y:$Y,'Detall - Detalle'!$T:$T,'Pressupost - Pressupuesto'!$A$1,'Detall - Detalle'!$AA:$AA,'Pressupost - Pressupuesto'!$A29,'Detall - Detalle'!$Z:$Z,F$4))","v":0},{"$f":"+IF(OR($A$1=\"TOTES LES ACTIVITATS\",$A$1=\"\"),SUMIFS('Detall - Detalle'!$Y:$Y,'Detall - Detalle'!$AA:$AA,'Pressupost - Pressupuesto'!$A29,'Detall - Detalle'!$Z:$Z,G$4),SUMIFS('Detall - Detalle'!$Y:$Y,'Detall - Detalle'!$T:$T,'Pressupost - Pressupuesto'!$A$1,'Detall - Detalle'!$AA:$AA,'Pressupost - Pressupuesto'!$A29,'Detall - Detalle'!$Z:$Z,G$4))","v":0},{"$f":"+IF(OR($A$1=\"TOTES LES ACTIVITATS\",$A$1=\"\"),SUMIFS('Detall - Detalle'!$Y:$Y,'Detall - Detalle'!$AA:$AA,'Pressupost - Pressupuesto'!$A29,'Detall - Detalle'!$Z:$Z,H$4),SUMIFS('Detall - Detalle'!$Y:$Y,'Detall - Detalle'!$T:$T,'Pressupost - Pressupuesto'!$A$1,'Detall - Detalle'!$AA:$AA,'Pressupost - Pressupuesto'!$A29,'Detall - Detalle'!$Z:$Z,H$4))","v":0},{"$f":"+IF(OR($A$1=\"TOTES LES ACTIVITATS\",$A$1=\"\"),SUMIFS('Detall - Detalle'!$Y:$Y,'Detall - Detalle'!$AA:$AA,'Pressupost - Pressupuesto'!$A29,'Detall - Detalle'!$Z:$Z,I$4),SUMIFS('Detall - Detalle'!$Y:$Y,'Detall - Detalle'!$T:$T,'Pressupost - Pressupuesto'!$A$1,'Detall - Detalle'!$AA:$AA,'Pressupost - Pressupuesto'!$A29,'Detall - Detalle'!$Z:$Z,I$4))","v":0},{"$f":"+IF(OR($A$1=\"TOTES LES ACTIVITATS\",$A$1=\"\"),SUMIFS('Detall - Detalle'!$V:$V,'Detall - Detalle'!$AA:$AA,'Pressupost - Pressupuesto'!$A29,'Detall - Detalle'!$Z:$Z,J$4),SUMIFS('Detall - Detalle'!$V:$V,'Detall - Detalle'!$T:$T,'Pressupost - Pressupuesto'!$A$1,'Detall - Detalle'!$AA:$AA,'Pressupost - Pressupuesto'!$A29,'Detall - Detalle'!$Z:$Z,J$4))","v":0},{"$f":"+IF(OR($A$1=\"TOTES LES ACTIVITATS\",$A$1=\"\"),SUMIFS('Detall - Detalle'!$V:$V,'Detall - Detalle'!$AA:$AA,'Pressupost - Pressupuesto'!$A29,'Detall - Detalle'!$Z:$Z,K$4),SUMIFS('Detall - Detalle'!$V:$V,'Detall - Detalle'!$T:$T,'Pressupost - Pressupuesto'!$A$1,'Detall - Detalle'!$AA:$AA,'Pressupost - Pressupuesto'!$A29,'Detall - Detalle'!$Z:$Z,K$4))","v":0},{"$f":"+IF(OR($A$1=\"TOTES LES ACTIVITATS\",$A$1=\"\"),SUMIFS('Detall - Detalle'!$V:$V,'Detall - Detalle'!$AA:$AA,'Pressupost - Pressupuesto'!$A29,'Detall - Detalle'!$Z:$Z,L$4),SUMIFS('Detall - Detalle'!$V:$V,'Detall - Detalle'!$T:$T,'Pressupost - Pressupuesto'!$A$1,'Detall - Detalle'!$AA:$AA,'Pressupost - Pressupuesto'!$A29,'Detall - Detalle'!$Z:$Z,L$4))","v":0},{"$f":"+IF(OR($A$1=\"TOTES LES ACTIVITATS\",$A$1=\"\"),SUMIFS('Detall - Detalle'!$V:$V,'Detall - Detalle'!$AA:$AA,'Pressupost - Pressupuesto'!$A29,'Detall - Detalle'!$Z:$Z,M$4),SUMIFS('Detall - Detalle'!$V:$V,'Detall - Detalle'!$T:$T,'Pressupost - Pressupuesto'!$A$1,'Detall - Detalle'!$AA:$AA,'Pressupost - Pressupuesto'!$A29,'Detall - Detalle'!$Z:$Z,M$4))","v":0},{"$f":"+IF(OR($A$1=\"TOTES LES ACTIVITATS\",$A$1=\"\"),SUMIFS('Detall - Detalle'!$V:$V,'Detall - Detalle'!$AA:$AA,'Pressupost - Pressupuesto'!$A29,'Detall - Detalle'!$Z:$Z,N$4),SUMIFS('Detall - Detalle'!$V:$V,'Detall - Detalle'!$T:$T,'Pressupost - Pressupuesto'!$A$1,'Detall - Detalle'!$AA:$AA,'Pressupost - Pressupuesto'!$A29,'Detall - Detalle'!$Z:$Z,N$4))","v":0},{"$f":"+SUMIFS('Detall - Detalle'!$V:$V,'Detall - Detalle'!$T:$T,O$4,'Detall - Detalle'!$AA:$AA,'Pressupost - Pressupuesto'!$A29)","v":0},{"$f":"+SUMIFS('Detall - Detalle'!$V:$V,'Detall - Detalle'!$T:$T,P$4,'Detall - Detalle'!$AA:$AA,'Pressupost - Pressupuesto'!$A29)","v":0},{"$f":"+SUMIFS('Detall - Detalle'!$V:$V,'Detall - Detalle'!$T:$T,Q$4,'Detall - Detalle'!$AA:$AA,'Pressupost - Pressupuesto'!$A29)","v":0},{"$f":"+SUMIFS('Detall - Detalle'!$V:$V,'Detall - Detalle'!$T:$T,R$4,'Detall - Detalle'!$AA:$AA,'Pressupost - Pressupuesto'!$A29)","v":0},{"$f":"+SUMIFS('Detall - Detalle'!$V:$V,'Detall - Detalle'!$T:$T,S$4,'Detall - Detalle'!$AA:$AA,'Pressupost - Pressupuesto'!$A29)","v":0},{"$f":"+SUMIFS('Detall - Detalle'!$V:$V,'Detall - Detalle'!$T:$T,T$4,'Detall - Detalle'!$AA:$AA,'Pressupost - Pressupuesto'!$A29)","v":0},{"$f":"+SUMIFS('Detall - Detalle'!$V:$V,'Detall - Detalle'!$T:$T,U$4,'Detall - Detalle'!$AA:$AA,'Pressupost - Pressupuesto'!$A29)","v":0},{"$f":"+SUMIFS('Detall - Detalle'!$V:$V,'Detall - Detalle'!$T:$T,V$4,'Detall - Detalle'!$AA:$AA,'Pressupost - Pressupuesto'!$A29)","v":0},{"$f":"+SUMIFS('Detall - Detalle'!$V:$V,'Detall - Detalle'!$T:$T,W$4,'Detall - Detalle'!$AA:$AA,'Pressupost - Pressupuesto'!$A29)","v":0},{"$f":"+SUMIFS('Detall - Detalle'!$V:$V,'Detall - Detalle'!$T:$T,X$4,'Detall - Detalle'!$AA:$AA,'Pressupost - Pressupuesto'!$A29)","v":0},{"$f":"+SUMIFS('Detall - Detalle'!$V:$V,'Detall - Detalle'!$T:$T,Y$4,'Detall - Detalle'!$AA:$AA,'Pressupost - Pressupuesto'!$A29)","v":0},{"$f":"+SUMIFS('Detall - Detalle'!$V:$V,'Detall - Detalle'!$T:$T,Z$4,'Detall - Detalle'!$AA:$AA,'Pressupost - Pressupuesto'!$A29)","v":0},{"$f":"+SUMIFS('Detall - Detalle'!$V:$V,'Detall - Detalle'!$T:$T,AA$4,'Detall - Detalle'!$AA:$AA,'Pressupost - Pressupuesto'!$A29)","v":0},{"$f":"+SUMIFS('Detall - Detalle'!$V:$V,'Detall - Detalle'!$T:$T,AB$4,'Detall - Detalle'!$AA:$AA,'Pressupost - Pressupuesto'!$A29)","v":0},{"$f":"+SUMIFS('Detall - Detalle'!$V:$V,'Detall - Detalle'!$T:$T,AC$4,'Detall - Detalle'!$AA:$AA,'Pressupost - Pressupuesto'!$A29)","v":0},{"$f":"+SUMIFS('Detall - Detalle'!$V:$V,'Detall - Detalle'!$T:$T,AD$4,'Detall - Detalle'!$AA:$AA,'Pressupost - Pressupuesto'!$A29)","v":0},{"$f":"+SUMIFS('Detall - Detalle'!$V:$V,'Detall - Detalle'!$T:$T,AE$4,'Detall - Detalle'!$AA:$AA,'Pressupost - Pressupuesto'!$A29)","v":0},{"$f":"+SUMIFS('Detall - Detalle'!$V:$V,'Detall - Detalle'!$T:$T,AF$4,'Detall - Detalle'!$AA:$AA,'Pressupost - Pressupuesto'!$A29)","v":0},{"$f":"+SUMIFS('Detall - Detalle'!$V:$V,'Detall - Detalle'!$T:$T,AG$4,'Detall - Detalle'!$AA:$AA,'Pressupost - Pressupuesto'!$A29)","v":0},{"$f":"+SUMIFS('Detall - Detalle'!$V:$V,'Detall - Detalle'!$T:$T,AH$4,'Detall - Detalle'!$AA:$AA,'Pressupost - Pressupuesto'!$A29)","v":0}]
["TOTAL DESPESES DIRECTES / TOTAL GASTOS DIRECTOS",0,{"$f":"+C27+C5","v":0},0,0,0,0,{"$f":"+H27+H5","v":0},0,{"$f":"+J27+J5","v":0},0,0,{"$f":"+M27+M5","v":0},0,{"$f":"+O27+O5","v":0},0,0,0,0,0,0,0,0,0,0,0,0,0,0,0,0,0,0,0]
["DESPESES INDIRECTES (Capítol IV) / GASTOS INDIRECTOS (Capítulo IV)",0,{"$f":"+IF(OR(A1=\"TOTES LES ACTIVITATS\",A1=\"\"),'Dades i com... - Datos y com...'!J20,0)","v":0}]
["TOTAL DESPESES / TOTAL GASTOS",0,{"$f":"+C31+C30","v":0},{"$f":"+D31+D30","v":0},{"$f":"+E31+E30","v":0},0,{"$f":"+G31+G30","v":0},{"$f":"+H31+H30","v":0},{"$f":"+I31+I30","v":0},{"$f":"+J31+J30","v":0},0,0,{"$f":"+M31+M30","v":0},0,{"$f":"+O31+O30","v":0},{"$f":"+P31+P30","v":0},0,0,0,0,0,0,0,0,0,0,0,0,0,0,0,0,{"$f":"+AG29+AG7","v":0},{"$f":"+AH29+AH7","v":0}]

{"sheet":"Detall - Detalle","index":3,"n_rows":81,"n_cols":31,"rows_kept":81,"cut":false,"hidden":false,"merged":[[1,0,2,2],[4,28,4,30],[4,10,4,15],[4,0,4,9],[4,16,4,24],[4,25,4,27]]}
[]
["Introducció del detall de les despeses del projecte / \nIntoducción del detalle de los gastos del proyecto"]
[]
[]
["DADES DE LES DESPESES / DATOS DE LOS GASTOS",null,null,null,null,null,null,null,null,null,"QUI FINANÇA LES DESPESES? / QUIEN FINANCIA LOS GASTOS?",null,null,null,null,null,"A QUINES ACTIVITATS AFECTA? / A QUE ACTIVIDADES AFECTAN LOS GASTOS?",null,null,null,null,null,null,null,null,"FILTRES / FILTROS",null,null,"AUXILIARS CÀLCULS"]
["ENTITAT QUE EXECUTA LA DESPESA / ENTIDAD EJECUTORA DEL GASTO","AGRUPADA-SOCIA LOCAL / AGRUPADA-SOCIA LOCAL","CONCEPTE PRESSUPOST / CONCEPTO PRESUPUESTO","DETALL DESPESA / DETALLE GASTO","VALORITZACIÓ / VALORIZACIÓN","SUBCONTRACTACIÓ / SUBCONTRATACIÓN","UNITATS / UNIDADES","QUANTITAT / CANTIDAD","PREU UNITARI / PRECIO UNITARIO","IMPORT / IMPORTE","% ACCD / \n%  ACCD","TOTAL ACCD / TOTAL ACCD","% ALTRES FINANÇADORS / \n% OTROS FINANCIADORES","TOTAL ALTRES FINANÇADORS / TOTAL OTROS FINANCIADORES","% ENTITAT EXECUTORA / \n% ENTIDAD EJECUTORA","TOTAL ENTITAT EXECUTORA / TOTAL ENTIDAD EJECUTORA","NÚM. D'ACTIVITATS AFECTADES / NÚM. ACTIVIDADES AFECTADAS","CHECK","COMPTADOR / CONTADOR","ACTIVITAT / ACTIVIDAD","% IMPUTAT A LA ACTIVITAT / % IMPUTADO A LA ACTIVIDAD","IMPORT ACTIVITAT / IMPORTE ACTIVIDAD","IMPORT ACCD / IMPORTE ACCD","IMPORT ALTRES FINANÇADORS / IMPORTE OTROS FINANCIADORES","IMPORT ENTITAT / IMPORTE ENTIDAD","ENTITAT EXECUTORA / ENTIDAD EJECUTORA","CONCEPTE PRESSUPOST / CONCEPTO PRESSUPUESTO","DETALL DESPESA / DETALLE GASTO","IMPORT","% FINANÇAT ACCD","% IMPUTAT ALTRES FINANÇADORS"]
[null,null,null,null,null,null,null,null,null,{"$f":"+IF(I7<>\"\",I7*H7,\"\")","v":""},null,{"$f":"+IF(I7<>\"\",K7*J7,\"\")","v":""},null,{"$f":"+IF(I7<>\"\",M7*J7,\"\")","v":""},{"$f":"IF(I7<>\"\",1-K7-M7,\"\")","v":""},{"$f":"+IFERROR(J7-L7-N7,\"\")","v":""},null,{"$f":"IF(Q7<>\"\",IF(SUM(OFFSET(W7,0,0,Q7,3))=J7,1,0),\"\")","v":""},{"$f":"+IFERROR(IF(Q7<>\"\",Q7,IF(S6>1,S6-1,\"\")),\"\")","v":""},null,null,{"$f":"+IFERROR(IF(Q7=1,AC7,IF(U7<>\"\",U7*AC7,\"\")),\"\")","v":""},{"$f":"+IFERROR(IF(V7<>\"\",AD7*V7,\"\"),\"\")","v":""},{"$f":"+IFERROR(IF(V7<>\"\",V7*AE7,\"\"),\"\")","v":""},{"$f":"+IFERROR(V7-W7-X7,\"\")","v":""},{"$f":"+IF(S7<>\"\",IF(A7<>\"\",A7,Z6),\"\")","v":""},{"$f":"+IF(S7<>\"\",IF(C7<>\"\",C7,AA6),\"\")","v":""},{"$f":"+IF(S7<>\"\",IF(D7<>\"\",D7,AB6),\"\")","v":""},{"$f":"+IF(S7<>\"\",IF(J7<>\"\",J7,AC6),\"\")","v":""},{"$f":"+IF(S7<>\"\",IF(J7<>\"\",K7,AD6),\"\")","v":""},{"$f":"+IF(S7<>\"\",IF(J7<>\"\",M7,AE6),\"\")","v":""}]
[null,null,null,null,null,null,null,null,null,{"$f":"+IF(I8<>\"\",I8*H8,\"\")","v":""},null,{"$f":"+IF(I8<>\"\",K8*J8,\"\")","v":""},null,{"$f":"+IF(I8<>\"\",M8*J8,\"\")","v":""},{"$f":"IF(I8<>\"\",1-K8-M8,\"\")","v":""},{"$f":"+IFERROR(J8-L8-N8,\"\")","v":""},null,{"$f":"IF(Q8<>\"\",IF(SUM(OFFSET(W8,0,0,Q8,3))=J8,1,0),\"\")","v":""},"",null,null,"",{"$f":"+IFERROR(IF(V8<>\"\",AD8*V8,\"\"),\"\")","v":""},{"$f":"+IFERROR(IF(V8<>\"\",V8*AE8,\"\"),\"\")","v":""},{"$f":"+IFERROR(V8-W8-X8,\"\")","v":""},{"$f":"+IF(S8<>\"\",IF(A8<>\"\",A8,Z7),\"\")","v":""},{"$f":"+IF(S8<>\"\",IF(C8<>\"\",C8,AA7),\"\")","v":""},{"$f":"+IF(S8<>\"\",IF(D8<>\"\",D8,AB7),\"\")","v":""},{"$f":"+IF(S8<>\"\",IF(J8<>\"\",J8,AC7),\"\")","v":""},{"$f":"+IF(S8<>\"\",IF(J8<>\"\",K8,AD7),\"\")","v":""},{"$f":"+IF(S8<>\"\",IF(J8<>\"\",M8,AE7),\"\")","v":""}]
[null,null,null,null,null,null,null,null,null,"",null,"",null,"","","",null,"",{"$f":"+IFERROR(IF(Q9<>\"\",Q9,IF(S8>1,S8-1,\"\")),\"\")","v":""},null,null,"","","","",{"$f":"+IF(S9<>\"\",IF(A9<>\"\",A9,Z8),\"\")","v":""},{"$f":"+IF(S9<>\"\",IF(C9<>\"\",C9,AA8),\"\")","v":""},{"$f":"+IF(S9<>\"\",IF(D9<>\"\",D9,AB8),\"\")","v":""},{"$f":"+IF(S9<>\"\",IF(J9<>\"\",J9,AC8),\"\")","v":""},{"$f":"+IF(S9<>\"\",IF(J9<>\"\",K9,AD8),\"\")","v":""},{"$f":"+IF(S9<>\"\",IF(J9<>\"\",M9,AE8),\"\")","v":""}]
[null,null,null,null,null,null,null,null,null,"",null,"",null,"","","",null,"","",null,null,"","","","",{"$f":"+IF(S10<>\"\",IF(A10<>\"\",A10,Z9),\"\")","v":""},{"$f":"+IF(S10<>\"\",IF(C10<>\"\",C10,AA9),\"\")","v":""},{"$f":"+IF(S10<>\"\",IF(D10<>\"\",D10,AB9),\"\")","v":""},{"$f":"+IF(S10<>\"\",IF(J10<>\"\",J10,AC9),\"\")","v":""},{"$f":"+IF(S10<>\"\",IF(J10<>\"\",K10,AD9),\"\")","v":""},{"$f":"+IF(S10<>\"\",IF(J10<>\"\",M10,AE9),\"\")","v":""}]
[null,null,null,null,null,null,null,null,null,"",null,"",null,"","","",null,"","",null,null,"","","","","","","","","",""]
[null,null,null,null,null,null,null,null,null,"",null,"",null,"","","",null,"","",null,null,"","","","","","","","","",""]
[null,null,null,null,null,null,null,null,null,"",null,"",null,"","","",null,"","",null,null,"","","","","","","","","",""]
[null,null,null,null,null,null,null,null,null,"",null,"",null,"","","",null,"","",null,null,"","","","","","","","","",""]
[null,null,null,null,null,null,null,null,null,"",null,"",null,"","","",null,"","",null,null,"","","","","","","","","",""]
[null,null,null,null,null,null,null,null,null,"",null,"",null,"","","",null,"","",null,null,"","","","","","","","","",""]
[null,null,null,null,null,null,null,null,null,"",null,"",null,"","","",null,"","",null,null,"","","","","","","","","",""]
[null,null,null,null,null,null,null,null,null,"",null,"",null,"","","",null,"","",null,null,"","","","","","","","","",""]
[null,null,null,null,null,null,null,null,null,"",null,"",null,"","","",null,"","",null,null,"","","","","","","","","",""]
[null,null,null,null,null,null,null,null,null,"",null,"",null,"","","",null,"","",null,null,"","","","","","","","","",""]
[null,null,null,null,null,null,null,null,null,"",null,"",null,"","","",null,"","",null,null,"","","","","","","","","",""]
[null,null,null,null,null,null,null,null,null,"",null,"",null,"","","",null,"","",null,null,"","","","","","","","","",""]
[null,null,null,null,null,null,null,null,null,"",null,"",null,"","","",null,"","",null,null,"","","","","","","","","",""]
[null,null,null,null,null,null,null,null,null,"",null,"",null,"","","",null,"","",null,null,"","","","","","","","","",""]
[null,null,null,null,null,null,null,null,null,"",null,"",null,"","","",null,"","",null,null,"","","","","","","","","",""]
[null,null,null,null,null,null,null,null,null,"",null,"",null,"","","",null,"","",null,null,"","","","",{"$f":"+IF(S26<>\"\",IF(A26<>\"\",A26,Z25),\"\")","v":""},{"$f":"+IF(S26<>\"\",IF(C26<>\"\",C26,AA25),\"\")","v":""},{"$f":"+IF(S26<>\"\",IF(D26<>\"\",D26,AB25),\"\")","v":""},{"$f":"+IF(S26<>\"\",IF(J26<>\"\",J26,AC25),\"\")","v":""},{"$f":"+IF(S26<>\"\",IF(J26<>\"\",K26,AD25),\"\")","v":""},{"$f":"+IF(S26<>\"\",IF(J26<>\"\",M26,AE25),\"\")","v":""}]
[null,null,null,null,null,null,null,null,null,"",null,"",null,"","","",null,"","",null,null,"","","","","","","","","",""]
[null,null,null,null,null,null,null,null,null,"",null,"",null,"","","",null,"","",null,null,"","","","","","","","","",""]
[null,null,null,null,null,null,null,null,null,"",null,"",null,"","","",null,"","",null,null,"","","","","","","","","",""]
[null,null,null,null,null,null,null,null,null,"",null,"",null,"","","",null,"","",null,null,"","","","","","","","","",""]
[null,null,null,null,null,null,null,null,null,"",null,"",null,"","","",null,"","",null,null,{"$f":"+IFERROR(IF(Q31=1,AC31,IF(U31<>\"\",U31*AC31,\"\")),\"\")","v":""},"","","","","","","","",""]
[null,null,null,null,null,null,null,null,null,"",null,"",null,"","","",null,"","",null,null,"","","","","","","","","",""]
[null,null,null,null,null,null,null,null,null,"",null,"",null,"","","",null,"","",null,null,"","","","","","","","","",""]
[null,null,null,null,null,null,null,null,null,"",null,"",null,"","","",null,"","",null,null,"","","","","","","","","",""]
[null,null,null,null,null,null,null,null,null,"",null,"",null,"","","",null,"","",null,null,"","","","","","","","","",""]
[null,null,null,null,null,null,null,null,null,"",null,"",null,"","","",null,"","",null,null,"","","","","","","","","",""]
[null,null,null,null,null,null,null,null,null,"",null,"",null,"","","",null,"","",null,null,"","","","","","","","","",""]
[null,null,null,null,null,null,null,null,null,"",null,"",null,"","","",null,"","",null,null,"","","","","","","","","",""]
[null,null,null,null,null,null,null,null,null,"",null,"",null,"","","",null,"","",null,null,"","","","","","","","","",""]
[null,null,null,null,null,null,null,null,null,"",null,"",null,"","","",null,"","",null,null,"","","","","","","","","",""]
[null,null,null,null,null,null,null,null,null,"",null,"",null,"","","",null,"","",null,null,"","","","","","","","","",""]
[null,null,null,null,null,null,null,null,null,"",null,"",null,"","","",null,"","",null,null,"","","","","","","","","",""]
[null,null,null,null,null,null,null,null,null,"",null,"",null,"","","",null,"","",null,null,"","","","","","","","","",""]
[null,null,null,null,null,null,null,null,null,"",null,"",null,"","","",null,"","",null,null,"","","","","","","","","",""]
[null,null,null,null,null,null,null,null,null,"",null,"",null,"","","",null,"","",null,null,"","","","","","","","","",""]
[null,null,null,null,null,null,null,null,null,"",null,"",null,"","","",null,"","",null,null,"","","","","","","","","",""]
[null,null,null,null,null,null,null,null,null,"",null,"",null,"","","",null,"","",null,null,"","","","","","","","","",""]
[null,null,null,null,null,null,null,null,null,"",null,"",null,"","","",null,"","",null,null,"","","","",{"$f":"+IF(S48<>\"\",IF(A48<>\"\",A48,Z47),\"\")","v":""},{"$f":"+IF(S48<>\"\",IF(C48<>\"\",C48,AA47),\"\")","v":""},{"$f":"+IF(S48<>\"\",IF(D48<>\"\",D48,AB47),\"\")","v":""},{"$f":"+IF(S48<>\"\",IF(J48<>\"\",J48,AC47),\"\")","v":""},{"$f":"+IF(S48<>\"\",IF(J48<>\"\",K48,AD47),\"\")","v":""},{"$f":"+IF(S48<>\"\",IF(J48<>\"\",M48,AE47),\"\")","v":""}]
[null,null,null,null,null,null,null,null,null,"",null,"",null,"","","",null,"","",null,null,"","","","",{"$f":"+IF(S49<>\"\",IF(A49<>\"\",A49,Z48),\"\")","v":""},{"$f":"+IF(S49<>\"\",IF(C49<>\"\",C49,AA48),\"\")","v":""},{"$f":"+IF(S49<>\"\",IF(D49<>\"\",D49,AB48),\"\")","v":""},{"$f":"+IF(S49<>\"\",IF(J49<>\"\",J49,AC48),\"\")","v":""},{"$f":"+IF(S49<>\"\",IF(J49<>\"\",K49,AD48),\"\")","v":""},{"$f":"+IF(S49<>\"\",IF(J49<>\"\",M49,AE48),\"\")","v":""}]
[null,null,null,null,null,null,null,null,null,"",null,"",null,"","","",null,"","",null,null,"","","","","","","","","",""]
[null,null,null,null,null,null,null,null,null,"",null,"",null,"","","",null,"","",null,null,"","","","","","","","","",""]
[null,null,null,null,null,null,null,null,null,{"$f":"+IF(I52<>\"\",I52*H52,\"\")","v":""},null,{"$f":"+IF(I52<>\"\",K52*J52,\"\")","v":""},null,{"$f":"+IF(I52<>\"\",M52*J52,\"\")","v":""},{"$f":"IF(I52<>\"\",1-K52-M52,\"\")","v":""},{"$f":"+IFERROR(J52-L52-N52,\"\")","v":""},null,{"$f":"IF(Q52<>\"\",IF(SUM(OFFSET(W52,0,0,Q52,3))=J52,1,0),\"\")","v":""},"",null,null,"",{"$f":"+IFERROR(IF(V52<>\"\",AD52*V52,\"\"),\"\")","v":""},{"$f":"+IFERROR(IF(V52<>\"\",V52*AE52,\"\"),\"\")","v":""},{"$f":"+IFERROR(V52-W52-X52,\"\")","v":""},"","","","","",""]
[null,null,null,null,null,null,null,null,null,"",null,"",null,"","","",null,"","",null,null,"","","","","","","","","",""]
[null,null,null,null,null,null,null,null,null,"",null,"",null,"","","",null,"","",null,null,"","","","","","","","","",""]
[null,null,null,null,null,null,null,null,null,"",null,"",null,"","","",null,"","",null,null,"","","","","","","","","",""]
[null,null,null,null,null,null,null,null,null,"",null,"",null,"","","",null,"","",null,null,"","","","","","","","","",""]
[null,null,null,null,null,null,null,null,null,"",null,"",null,"","","",null,"",{"$f":"+IFERROR(IF(Q57<>\"\",Q57,IF(S56>1,S56-1,\"\")),\"\")","v":""},null,null,"","","","",{"$f":"+IF(S57<>\"\",IF(A57<>\"\",A57,Z56),\"\")","v":""},{"$f":"+IF(S57<>\"\",IF(C57<>\"\",C57,AA56),\"\")","v":""},{"$f":"+IF(S57<>\"\",IF(D57<>\"\",D57,AB56),\"\")","v":""},{"$f":"+IF(S57<>\"\",IF(J57<>\"\",J57,AC56),\"\")","v":""},{"$f":"+IF(S57<>\"\",IF(J57<>\"\",K57,AD56),\"\")","v":""},{"$f":"+IF(S57<>\"\",IF(J57<>\"\",M57,AE56),\"\")","v":""}]
[null,null,null,null,null,null,null,null,null,"",null,"",null,"","","",null,"","",null,null,"","","","","","","","","",""]
[null,null,null,null,null,null,null,null,null,"",null,"",null,"","","",null,"","",null,null,"","","","","","","","","",""]
[null,null,null,null,null,null,null,null,null,"",null,"",null,"","","",null,"","",null,null,"","","","","","","","","",""]
[null,null,null,null,null,null,null,null,null,"",null,"",null,"","","",null,"","",null,null,"","","","","","","","","",""]
[null,null,null,null,null,null,null,null,null,"",null,"",null,"","","",null,"","",null,null,"","","","","","","","","",""]
[null,null,null,null,null,null,null,null,null,"",null,"",null,"","","",null,"","",null,null,"","","","","","","","","",""]
[null,null,null,null,null,null,null,null,null,"",null,"",null,"","","",null,"","",null,null,"","","","","","","","","",""]
[null,null,null,null,null,null,null,null,null,"",null,"",null,"","","",null,"","",null,null,"","","","","","","","","",""]
[null,null,null,null,null,null,null,null,null,"",null,"",null,"","","",null,"","",null,null,"","","","","","","","","",""]
[null,null,null,null,null,null,null,null,null,"",null,"",null,"","","",null,"","",null,null,"","","","",{"$f":"+IF(S67<>\"\",IF(A67<>\"\",A67,Z66),\"\")","v":""},{"$f":"+IF(S67<>\"\",IF(C67<>\"\",C67,AA66),\"\")","v":""},{"$f":"+IF(S67<>\"\",IF(D67<>\"\",D67,AB66),\"\")","v":""},{"$f":"+IF(S67<>\"\",IF(J67<>\"\",J67,AC66),\"\")","v":""},{"$f":"+IF(S67<>\"\",IF(J67<>\"\",K67,AD66),\"\")","v":""},{"$f":"+IF(S67<>\"\",IF(J67<>\"\",M67,AE66),\"\")","v":""}]
[null,null,null,null,null,null,null,null,null,"",null,"",null,"","","",null,"","",null,null,"","","","","","","","","",""]
[null,null,null,null,null,null,null,null,null,"",null,"",null,"","","",null,"","",null,null,"","","","","","","","","",""]
[null,null,null,null,null,null,null,null,null,"",null,"",null,"","","",null,"","",null,null,"","","","","","","","","",""]
[null,null,null,null,null,null,null,null,null,"",null,"",null,"","","",null,"","",null,null,"","","","","","","","","",""]
[null,null,null,null,null,null,null,null,null,"",null,"",null,"","","",null,"","",null,null,"","","","","","","","","",""]
[null,null,null,null,null,null,null,null,null,"",null,"",null,"","","",null,"","",null,null,"","","","","","","","","",""]
[null,null,null,null,null,null,null,null,null,"",null,"",null,"","","",null,"","",null,null,"","","","","","","","","",""]
[null,null,null,null,null,null,null,null,null,"",null,"",null,"","","",null,"","",null,null,"","","","","","","","","",""]
[null,null,null,null,null,null,null,null,null,"",null,"",null,"","","",null,"","",null,null,"","","","","","","","","",""]
[null,null,null,null,null,null,null,null,null,"",null,"",null,"","","",null,"","",null,null,"","","","","","","","","",""]
[null,null,null,null,null,null,null,null,null,"",null,"",null,"","","",null,"","",null,null,"","","","","","","","","",""]
[null,null,null,null,null,null,null,null,null,"",null,"",null,"","","",null,"","",null,null,"","","","","","","","","",""]
[null,null,null,null,null,null,null,null,null,"",null,"",null,"","","",null,"","",null,null,"","","","","","","","","",""]
[null,null,null,null,null,null,null,null,null,"",null,"",null,"","","",null,"","",null,null,"","","","","","","","","",""]

{"sheet":"Llista desplegable","index":4,"n_rows":49,"n_cols":13,"rows_kept":49,"cut":false,"hidden":true,"merged":[]}
["Partida pressupostària",null,"Executor del projecte/finançador",null,"Valorització",null,"Unitats",null,"Tipus_projecte",null,null,"Màxim","Mínim"]
["a1.1 Personal assalariat local / Personal asalariado local",null,"Líder",null,"Sí",null,"Hores",null,"Desenvolupament",null,"DesenvolupamentIndividual",300000,150000]
["a1.2 Personal assalariat expatriat / Personal asalariado expatriado",null,"Agrupada",null,null,null,"Dies",null,"Educació global",null,"DesenvolupamentAgrupació",450000,150000]
["a1.3 Personal assalariat a Catalunya / Personal asalariado Cataluña",null,"Soci_local",null,null,null,"Mesos",null,null,null,"Educació globalIndividual",200000,100000]
["a2 Lloguers / Alquileres",null,"Col·lectius protagonistes",null,null,null,"Anys",null,null,null,"Educació globalAgrupació",350000,100000]
["a3 Manteniment, conservació i reparació / Mantenimiento, conservación y reparación",null,"Tercer sector",null,null,null,"Unitats"]
["a4 Material ordinari / Material ordinario",null,null,null,null,null,"Servei"]
["a5 Subministraments / Suministros",null,null,null,null,null,"Litres"]
["a6 Comunicacions, despeses postals i missatgeria / Comunicaciones, gastos postales y mensajería",null,null,null,null,null,"Kit"]
["a7 Reunions, conferències i formacions / Reuniones, conferencias y formaciones",null,null,null,null,null,"Lot"]
["a8 Publicitat i difusió / Publicidad y difusión",null,null,null,null,null,"Forfait"]
["a9 Publicacions / Publicaciones"]
["a10 Treballs tècnics i professionals / Trabajos técnicos y profesionales"]
["a11 Identificació i formulació / Identificación y formulación"]
["a12 Avaluació / Evaluación"]
["a13 Dietes, locomoció, trasllats i allotjaments / Dietas, locomoción, traslados y alojamientos"]
["a14 Informe auditor / Informe de auditor"]
["a15 Despeses financeres / Gastos financieros"]
["a16 Despeses de suport legal / Gastos de soporte legal"]
["a17 Beques / Becas"]
["a18 Imprevistos / Imprevistos"]
["b1 Béns inventariables / Bienes inventariables"]
["b2 Amortitzacions / Amortizaciones"]
[]
[]
[]
[]
[]
[]
[]
[]
[]
[]
[]
[]
[]
[]
[]
[]
[]
[]
[]
[]
[]
[]
["Activitats"]
["Elaboració de Podcasts"]
["Dossier ISBN"]
["Escola"]